Organisation Code,Organisation Label,Effective Date,Organisational Unit,Service Division Label,Category Internal Name,Purpose,Detailed Expenditure Code,Payment Date,Transaction Number,Irrecoverable VAT Amount,Amount,Capital Or Revenue,Benificiary Name,Procurement Card
Http://opendatacommunities.org/id/metropolitan-district-council/leeds,Leeds City Council,28/02/2018,Communities and Environment,Benefits  Wlefare And Poverty  ,Supplies and Services,Telephones,213,02-Jan-2018,1802-00001,0.00,80.00,R,(Aq) Limited,Yes
Http://opendatacommunities.org/id/metropolitan-district-council/leeds,Leeds City Council,28/02/2018,Resources and Housing,Leeds Building Services,Supplies and Services,Operational Materials,205,05-Feb-2018,1802-00002,0.00,124.00,R,A & A Electrical Distributors Ltd,No
Http://opendatacommunities.org/id/metropolitan-district-council/leeds,Leeds City Council,28/02/2018,Resources and Housing,Leeds Building Services,Supplies and Services,Operational Materials,205,08-Feb-2018,1802-00003,0.00,52.50,R,A & A Electrical Distributors Ltd,No
Http://opendatacommunities.org/id/metropolitan-district-council/leeds,Leeds City Council,28/02/2018,Resources and Housing,Leeds Building Services,Supplies and Services,Operational Materials,205,08-Feb-2018,1802-00004,0.00,70.00,R,A & A Electrical Distributors Ltd,No
Http://opendatacommunities.org/id/metropolitan-district-council/leeds,Leeds City Council,28/02/2018,Resources and Housing,Leeds Building Services,Supplies and Services,Operational Materials,205,19-Feb-2018,1802-00005,0.00,112.57,R,A & A Electrical Distributors Ltd,No
Http://opendatacommunities.org/id/metropolitan-district-council/leeds,Leeds City Council,28/02/2018,Resources and Housing,Leeds Building Services,Supplies and Services,Operational Materials,205,19-Feb-2018,1802-00006,0.00,181.20,R,A & A Electrical Distributors Ltd,No
Http://opendatacommunities.org/id/metropolitan-district-council/leeds,Leeds City Council,28/02/2018,Resources and Housing,Leeds Building Services,Supplies and Services,Operational Materials,205,23-Feb-2018,1802-00007,0.00,150.36,R,A & A Electrical Distributors Ltd,No
Http://opendatacommunities.org/id/metropolitan-district-council/leeds,Leeds City Council,28/02/2018,Resources and Housing,Leeds Building Services,Supplies and Services,Operational Materials,205,01-Feb-2018,1802-00008,0.00,16.10,R,A Andrews & Sons (Marbles & Tiles),No
Http://opendatacommunities.org/id/metropolitan-district-council/leeds,Leeds City Council,28/02/2018,Resources and Housing,Leeds Building Services,Supplies and Services,Operational Materials,205,01-Feb-2018,1802-00009,0.00,7.80,R,A Andrews & Sons (Marbles & Tiles),No
Http://opendatacommunities.org/id/metropolitan-district-council/leeds,Leeds City Council,28/02/2018,Resources and Housing,Leeds Building Services,Supplies and Services,Operational Materials,205,02-Feb-2018,1802-00010,0.00,84.28,R,A Andrews & Sons (Marbles & Tiles),No
Http://opendatacommunities.org/id/metropolitan-district-council/leeds,Leeds City Council,28/02/2018,Resources and Housing,Leeds Building Services,Supplies and Services,Operational Materials,205,02-Feb-2018,1802-00011,0.00,15.86,R,A Andrews & Sons (Marbles & Tiles),No
Http://opendatacommunities.org/id/metropolitan-district-council/leeds,Leeds City Council,28/02/2018,Resources and Housing,Leeds Building Services,Supplies and Services,Operational Materials,205,02-Feb-2018,1802-00012,0.00,10.83,R,A Andrews & Sons (Marbles & Tiles),No
Http://opendatacommunities.org/id/metropolitan-district-council/leeds,Leeds City Council,28/02/2018,Resources and Housing,Leeds Building Services,Supplies and Services,Operational Materials,205,02-Feb-2018,1802-00013,0.00,22.60,R,A Andrews & Sons (Marbles & Tiles),No
Http://opendatacommunities.org/id/metropolitan-district-council/leeds,Leeds City Council,28/02/2018,Resources and Housing,Leeds Building Services,Supplies and Services,Operational Materials,205,14-Feb-2018,1802-00014,0.00,13.29,R,A Andrews & Sons (Marbles & Tiles),No
Http://opendatacommunities.org/id/metropolitan-district-council/leeds,Leeds City Council,28/02/2018,Resources and Housing,Leeds Building Services,Supplies and Services,Operational Materials,205,16-Feb-2018,1802-00015,0.00,200.00,R,A Andrews & Sons (Marbles & Tiles),No
Http://opendatacommunities.org/id/metropolitan-district-council/leeds,Leeds City Council,28/02/2018,Resources and Housing,Leeds Building Services,Supplies and Services,Operational Materials,205,21-Feb-2018,1802-00016,0.00,50.17,R,A Andrews & Sons (Marbles & Tiles),No
Http://opendatacommunities.org/id/metropolitan-district-council/leeds,Leeds City Council,28/02/2018,Resources and Housing,HRA Housing Leeds,Capital,Other Costs,7,22-Feb-2018,1802-00017,0.00,550.00,C,REDACTED PERSONAL DATA,No
Http://opendatacommunities.org/id/metropolitan-district-council/leeds,Leeds City Council,28/02/2018,City Development,Libraries  Arts & Heritage,Supplies and Services,Other Hired And Contracted Services,265,07-Feb-2018,1802-00018,0.00,44.15,R,A C Entertainment Technologies Ltd,No
Http://opendatacommunities.org/id/metropolitan-district-council/leeds,Leeds City Council,28/02/2018,Children and Families,Safeguarding Targeted & Specialist,Third Party Payments,Services Rendered By Voluntary Sector,505,19-Feb-2018,1802-00019,0.00,296.99,R,REDACTED PERSONAL DATA,No
Http://opendatacommunities.org/id/metropolitan-district-council/leeds,Leeds City Council,28/02/2018,City Development,Highways,Capital,Construction,3,12-Feb-2018,1802-00020,0.00,107882.56,C,A E Yates Ltd,No
Http://opendatacommunities.org/id/metropolitan-district-council/leeds,Leeds City Council,28/02/2018,Resources and Housing,Commercial Services  ,Supplies and Services,Operational Materials,205,23-Jan-2018,1802-00021,0.00,250.85,R,A F Blakemore & Son Ltd,Yes
Http://opendatacommunities.org/id/metropolitan-district-council/leeds,Leeds City Council,28/02/2018,Children and Families,Safeguarding Targeted & Specialist,Third Party Payments,Services Rendered By Other Organisations,511,19-Feb-2018,1802-00022,0.00,111.37,R,REDACTED PERSONAL DATA,No
Http://opendatacommunities.org/id/metropolitan-district-council/leeds,Leeds City Council,28/02/2018,Children and Families,Safeguarding Targeted & Specialist,Third Party Payments,Services Rendered By Other Organisations,511,19-Feb-2018,1802-00023,0.00,95.46,R,REDACTED PERSONAL DATA,No
Http://opendatacommunities.org/id/metropolitan-district-council/leeds,Leeds City Council,28/02/2018,City Development,Libraries  Arts & Heritage,Supplies and Services,Other Hired And Contracted Services,265,15-Feb-2018,1802-00024,0.00,307.50,R,REDACTED COMMERCIAL CONFIDENTIALITY,No
Http://opendatacommunities.org/id/metropolitan-district-council/leeds,Leeds City Council,28/02/2018,Resources and Housing,Leeds Building Services,Supplies and Services,Operational Materials,205,01-Feb-2018,1802-00025,0.00,671.40,R,A J H  Pump Supply & Repair Ltd,No
Http://opendatacommunities.org/id/metropolitan-district-council/leeds,Leeds City Council,28/02/2018,Resources and Housing,Leeds Building Services,Supplies and Services,Operational Materials,205,01-Feb-2018,1802-00026,0.00,18220.00,R,A J H  Pump Supply & Repair Ltd,No
Http://opendatacommunities.org/id/metropolitan-district-council/leeds,Leeds City Council,28/02/2018,Resources and Housing,Leeds Building Services,Supplies and Services,Operational Materials,205,06-Feb-2018,1802-00027,0.00,294.20,R,A J H  Pump Supply & Repair Ltd,No
Http://opendatacommunities.org/id/metropolitan-district-council/leeds,Leeds City Council,28/02/2018,Resources and Housing,Leeds Building Services,Supplies and Services,Operational Materials,205,06-Feb-2018,1802-00028,0.00,763.65,R,A J H  Pump Supply & Repair Ltd,No
Http://opendatacommunities.org/id/metropolitan-district-council/leeds,Leeds City Council,28/02/2018,Resources and Housing,Leeds Building Services,Supplies and Services,Operational Materials,205,06-Feb-2018,1802-00029,0.00,79.60,R,A J H  Pump Supply & Repair Ltd,No
Http://opendatacommunities.org/id/metropolitan-district-council/leeds,Leeds City Council,28/02/2018,Resources and Housing,Leeds Building Services,Supplies and Services,Operational Materials,205,06-Feb-2018,1802-00030,0.00,120.00,R,A J H  Pump Supply & Repair Ltd,No
Http://opendatacommunities.org/id/metropolitan-district-council/leeds,Leeds City Council,28/02/2018,Resources and Housing,Leeds Building Services,Supplies and Services,Operational Materials,205,06-Feb-2018,1802-00031,0.00,43.07,R,A J H  Pump Supply & Repair Ltd,No
Http://opendatacommunities.org/id/metropolitan-district-council/leeds,Leeds City Council,28/02/2018,Resources and Housing,Leeds Building Services,Supplies and Services,Operational Materials,205,06-Feb-2018,1802-00032,0.00,34.00,R,A J H  Pump Supply & Repair Ltd,No
Http://opendatacommunities.org/id/metropolitan-district-council/leeds,Leeds City Council,28/02/2018,Resources and Housing,Leeds Building Services,Supplies and Services,Operational Materials,205,06-Feb-2018,1802-00033,0.00,836.09,R,A J H  Pump Supply & Repair Ltd,No
Http://opendatacommunities.org/id/metropolitan-district-council/leeds,Leeds City Council,28/02/2018,Resources and Housing,Leeds Building Services,Supplies and Services,Operational Materials,205,06-Feb-2018,1802-00034,0.00,45.45,R,A J H  Pump Supply & Repair Ltd,No
Http://opendatacommunities.org/id/metropolitan-district-council/leeds,Leeds City Council,28/02/2018,Resources and Housing,Leeds Building Services,Supplies and Services,Operational Materials,205,06-Feb-2018,1802-00035,0.00,235.00,R,A J H  Pump Supply & Repair Ltd,No
Http://opendatacommunities.org/id/metropolitan-district-council/leeds,Leeds City Council,28/02/2018,Resources and Housing,Leeds Building Services,Supplies and Services,Operational Materials,205,06-Feb-2018,1802-00036,0.00,24.55,R,A J H  Pump Supply & Repair Ltd,No
Http://opendatacommunities.org/id/metropolitan-district-council/leeds,Leeds City Council,28/02/2018,Resources and Housing,Leeds Building Services,Supplies and Services,Operational Materials,205,06-Feb-2018,1802-00037,0.00,7.20,R,A J H  Pump Supply & Repair Ltd,No
Http://opendatacommunities.org/id/metropolitan-district-council/leeds,Leeds City Council,28/02/2018,Resources and Housing,Leeds Building Services,Supplies and Services,Operational Materials,205,06-Feb-2018,1802-00038,0.00,57.50,R,A J H  Pump Supply & Repair Ltd,No
Http://opendatacommunities.org/id/metropolitan-district-council/leeds,Leeds City Council,28/02/2018,Resources and Housing,Leeds Building Services,Supplies and Services,Operational Materials,205,06-Feb-2018,1802-00039,0.00,50.65,R,A J H  Pump Supply & Repair Ltd,No
Http://opendatacommunities.org/id/metropolitan-district-council/leeds,Leeds City Council,28/02/2018,Resources and Housing,Leeds Building Services,Supplies and Services,Operational Materials,205,06-Feb-2018,1802-00040,0.00,99.00,R,A J H  Pump Supply & Repair Ltd,No
Http://opendatacommunities.org/id/metropolitan-district-council/leeds,Leeds City Council,28/02/2018,Resources and Housing,Leeds Building Services,Supplies and Services,Operational Materials,205,06-Feb-2018,1802-00041,0.00,872.00,R,A J H  Pump Supply & Repair Ltd,No
Http://opendatacommunities.org/id/metropolitan-district-council/leeds,Leeds City Council,28/02/2018,Resources and Housing,Leeds Building Services,Supplies and Services,Operational Materials,205,06-Feb-2018,1802-00042,0.00,987.00,R,A J H  Pump Supply & Repair Ltd,No
Http://opendatacommunities.org/id/metropolitan-district-council/leeds,Leeds City Council,28/02/2018,Resources and Housing,Leeds Building Services,Supplies and Services,Operational Materials,205,08-Feb-2018,1802-00043,0.00,228.00,R,A J H  Pump Supply & Repair Ltd,No
Http://opendatacommunities.org/id/metropolitan-district-council/leeds,Leeds City Council,28/02/2018,Resources and Housing,Leeds Building Services,Supplies and Services,Operational Materials,205,08-Feb-2018,1802-00044,0.00,91.88,R,A J H  Pump Supply & Repair Ltd,No
Http://opendatacommunities.org/id/metropolitan-district-council/leeds,Leeds City Council,28/02/2018,Resources and Housing,Leeds Building Services,Supplies and Services,Operational Materials,205,08-Feb-2018,1802-00045,0.00,324.95,R,A J H  Pump Supply & Repair Ltd,No
Http://opendatacommunities.org/id/metropolitan-district-council/leeds,Leeds City Council,28/02/2018,Resources and Housing,Leeds Building Services,Supplies and Services,Operational Materials,205,08-Feb-2018,1802-00046,0.00,61.75,R,A J H  Pump Supply & Repair Ltd,No
Http://opendatacommunities.org/id/metropolitan-district-council/leeds,Leeds City Council,28/02/2018,Resources and Housing,Leeds Building Services,Supplies and Services,Operational Materials,205,08-Feb-2018,1802-00047,0.00,105.66,R,A J H  Pump Supply & Repair Ltd,No
Http://opendatacommunities.org/id/metropolitan-district-council/leeds,Leeds City Council,28/02/2018,Resources and Housing,Leeds Building Services,Supplies and Services,Operational Materials,205,08-Feb-2018,1802-00048,0.00,66.10,R,A J H  Pump Supply & Repair Ltd,No
Http://opendatacommunities.org/id/metropolitan-district-council/leeds,Leeds City Council,28/02/2018,Resources and Housing,Leeds Building Services,Supplies and Services,Operational Materials,205,08-Feb-2018,1802-00049,0.00,106.68,R,A J H  Pump Supply & Repair Ltd,No
Http://opendatacommunities.org/id/metropolitan-district-council/leeds,Leeds City Council,28/02/2018,Resources and Housing,Leeds Building Services,Supplies and Services,Operational Materials,205,08-Feb-2018,1802-00050,0.00,9.00,R,A J H  Pump Supply & Repair Ltd,No
Http://opendatacommunities.org/id/metropolitan-district-council/leeds,Leeds City Council,28/02/2018,Resources and Housing,Leeds Building Services,Supplies and Services,Operational Materials,205,08-Feb-2018,1802-00051,0.00,306.20,R,A J H  Pump Supply & Repair Ltd,No
Http://opendatacommunities.org/id/metropolitan-district-council/leeds,Leeds City Council,28/02/2018,Resources and Housing,Leeds Building Services,Supplies and Services,Operational Materials,205,09-Feb-2018,1802-00052,0.00,114.79,R,A J H  Pump Supply & Repair Ltd,No
Http://opendatacommunities.org/id/metropolitan-district-council/leeds,Leeds City Council,28/02/2018,Resources and Housing,Leeds Building Services,Supplies and Services,Operational Materials,205,09-Feb-2018,1802-00053,0.00,91.45,R,A J H  Pump Supply & Repair Ltd,No
Http://opendatacommunities.org/id/metropolitan-district-council/leeds,Leeds City Council,28/02/2018,Resources and Housing,Leeds Building Services,Supplies and Services,Operational Materials,205,09-Feb-2018,1802-00054,0.00,116.00,R,A J H  Pump Supply & Repair Ltd,No
Http://opendatacommunities.org/id/metropolitan-district-council/leeds,Leeds City Council,28/02/2018,Resources and Housing,Leeds Building Services,Supplies and Services,Operational Materials,205,09-Feb-2018,1802-00055,0.00,609.95,R,A J H  Pump Supply & Repair Ltd,No
Http://opendatacommunities.org/id/metropolitan-district-council/leeds,Leeds City Council,28/02/2018,Resources and Housing,Leeds Building Services,Supplies and Services,Operational Materials,205,09-Feb-2018,1802-00056,0.00,305.00,R,A J H  Pump Supply & Repair Ltd,No
Http://opendatacommunities.org/id/metropolitan-district-council/leeds,Leeds City Council,28/02/2018,Resources and Housing,Leeds Building Services,Supplies and Services,Operational Materials,205,09-Feb-2018,1802-00057,0.00,95.00,R,A J H  Pump Supply & Repair Ltd,No
Http://opendatacommunities.org/id/metropolitan-district-council/leeds,Leeds City Council,28/02/2018,Resources and Housing,Leeds Building Services,Supplies and Services,Operational Materials,205,09-Feb-2018,1802-00058,0.00,14.49,R,A J H  Pump Supply & Repair Ltd,No
Http://opendatacommunities.org/id/metropolitan-district-council/leeds,Leeds City Council,28/02/2018,Resources and Housing,Leeds Building Services,Supplies and Services,Operational Materials,205,09-Feb-2018,1802-00059,0.00,1810.00,R,A J H  Pump Supply & Repair Ltd,No
Http://opendatacommunities.org/id/metropolitan-district-council/leeds,Leeds City Council,28/02/2018,Resources and Housing,Leeds Building Services,Supplies and Services,Operational Materials,205,09-Feb-2018,1802-00060,0.00,1459.00,R,A J H  Pump Supply & Repair Ltd,No
Http://opendatacommunities.org/id/metropolitan-district-council/leeds,Leeds City Council,28/02/2018,Resources and Housing,Leeds Building Services,Supplies and Services,Operational Materials,205,09-Feb-2018,1802-00061,0.00,275.60,R,A J H  Pump Supply & Repair Ltd,No
Http://opendatacommunities.org/id/metropolitan-district-council/leeds,Leeds City Council,28/02/2018,Resources and Housing,Leeds Building Services,Supplies and Services,Operational Materials,205,09-Feb-2018,1802-00062,0.00,74.00,R,A J H  Pump Supply & Repair Ltd,No
Http://opendatacommunities.org/id/metropolitan-district-council/leeds,Leeds City Council,28/02/2018,Resources and Housing,Leeds Building Services,Supplies and Services,Operational Materials,205,09-Feb-2018,1802-00063,0.00,138.90,R,A J H  Pump Supply & Repair Ltd,No
Http://opendatacommunities.org/id/metropolitan-district-council/leeds,Leeds City Council,28/02/2018,Resources and Housing,Leeds Building Services,Supplies and Services,Operational Materials,205,09-Feb-2018,1802-00064,0.00,190.36,R,A J H  Pump Supply & Repair Ltd,No
Http://opendatacommunities.org/id/metropolitan-district-council/leeds,Leeds City Council,28/02/2018,Resources and Housing,Leeds Building Services,Supplies and Services,Operational Materials,205,09-Feb-2018,1802-00065,0.00,112.85,R,A J H  Pump Supply & Repair Ltd,No
Http://opendatacommunities.org/id/metropolitan-district-council/leeds,Leeds City Council,28/02/2018,Resources and Housing,Leeds Building Services,Supplies and Services,Operational Materials,205,09-Feb-2018,1802-00066,0.00,671.00,R,A J H  Pump Supply & Repair Ltd,No
Http://opendatacommunities.org/id/metropolitan-district-council/leeds,Leeds City Council,28/02/2018,Resources and Housing,Leeds Building Services,Supplies and Services,Operational Materials,205,12-Feb-2018,1802-00067,0.00,59.78,R,A J H  Pump Supply & Repair Ltd,No
Http://opendatacommunities.org/id/metropolitan-district-council/leeds,Leeds City Council,28/02/2018,Resources and Housing,Leeds Building Services,Supplies and Services,Operational Materials,205,12-Feb-2018,1802-00068,0.00,115.85,R,A J H  Pump Supply & Repair Ltd,No
Http://opendatacommunities.org/id/metropolitan-district-council/leeds,Leeds City Council,28/02/2018,Resources and Housing,Leeds Building Services,Supplies and Services,Operational Materials,205,12-Feb-2018,1802-00069,0.00,23.43,R,A J H  Pump Supply & Repair Ltd,No
Http://opendatacommunities.org/id/metropolitan-district-council/leeds,Leeds City Council,28/02/2018,Resources and Housing,Leeds Building Services,Supplies and Services,Operational Materials,205,12-Feb-2018,1802-00070,0.00,85.00,R,A J H  Pump Supply & Repair Ltd,No
Http://opendatacommunities.org/id/metropolitan-district-council/leeds,Leeds City Council,28/02/2018,Resources and Housing,Leeds Building Services,Supplies and Services,Operational Materials,205,12-Feb-2018,1802-00071,0.00,51.86,R,A J H  Pump Supply & Repair Ltd,No
Http://opendatacommunities.org/id/metropolitan-district-council/leeds,Leeds City Council,28/02/2018,Resources and Housing,Leeds Building Services,Supplies and Services,Operational Materials,205,12-Feb-2018,1802-00072,0.00,169.95,R,A J H  Pump Supply & Repair Ltd,No
Http://opendatacommunities.org/id/metropolitan-district-council/leeds,Leeds City Council,28/02/2018,Resources and Housing,Leeds Building Services,Supplies and Services,Operational Materials,205,12-Feb-2018,1802-00073,0.00,196.91,R,A J H  Pump Supply & Repair Ltd,No
Http://opendatacommunities.org/id/metropolitan-district-council/leeds,Leeds City Council,28/02/2018,Resources and Housing,Leeds Building Services,Supplies and Services,Operational Materials,205,12-Feb-2018,1802-00074,0.00,138.00,R,A J H  Pump Supply & Repair Ltd,No
Http://opendatacommunities.org/id/metropolitan-district-council/leeds,Leeds City Council,28/02/2018,Resources and Housing,Leeds Building Services,Supplies and Services,Operational Materials,205,12-Feb-2018,1802-00075,0.00,88.04,R,A J H  Pump Supply & Repair Ltd,No
Http://opendatacommunities.org/id/metropolitan-district-council/leeds,Leeds City Council,28/02/2018,Resources and Housing,Leeds Building Services,Supplies and Services,Operational Furniture And Equipment,203,12-Feb-2018,1802-00076,0.00,155.50,R,A J H  Pump Supply & Repair Ltd,No
Http://opendatacommunities.org/id/metropolitan-district-council/leeds,Leeds City Council,28/02/2018,Resources and Housing,Leeds Building Services,Supplies and Services,Operational Materials,205,12-Feb-2018,1802-00077,0.00,24.50,R,A J H  Pump Supply & Repair Ltd,No
Http://opendatacommunities.org/id/metropolitan-district-council/leeds,Leeds City Council,28/02/2018,Resources and Housing,Leeds Building Services,Supplies and Services,Operational Materials,205,12-Feb-2018,1802-00078,0.00,115.85,R,A J H  Pump Supply & Repair Ltd,No
Http://opendatacommunities.org/id/metropolitan-district-council/leeds,Leeds City Council,28/02/2018,Resources and Housing,Leeds Building Services,Supplies and Services,Operational Materials,205,12-Feb-2018,1802-00079,0.00,688.00,R,A J H  Pump Supply & Repair Ltd,No
Http://opendatacommunities.org/id/metropolitan-district-council/leeds,Leeds City Council,28/02/2018,Resources and Housing,Leeds Building Services,Supplies and Services,Operational Materials,205,15-Feb-2018,1802-00080,0.00,775.00,R,A J H  Pump Supply & Repair Ltd,No
Http://opendatacommunities.org/id/metropolitan-district-council/leeds,Leeds City Council,28/02/2018,Resources and Housing,Leeds Building Services,Supplies and Services,Operational Materials,205,16-Feb-2018,1802-00081,0.00,32.50,R,A J H  Pump Supply & Repair Ltd,No
Http://opendatacommunities.org/id/metropolitan-district-council/leeds,Leeds City Council,28/02/2018,Resources and Housing,Leeds Building Services,Supplies and Services,Operational Materials,205,16-Feb-2018,1802-00082,0.00,89.50,R,A J H  Pump Supply & Repair Ltd,No
Http://opendatacommunities.org/id/metropolitan-district-council/leeds,Leeds City Council,28/02/2018,Resources and Housing,Leeds Building Services,Supplies and Services,Operational Materials,205,16-Feb-2018,1802-00083,0.00,57.83,R,A J H  Pump Supply & Repair Ltd,No
Http://opendatacommunities.org/id/metropolitan-district-council/leeds,Leeds City Council,28/02/2018,Resources and Housing,Leeds Building Services,Supplies and Services,Operational Materials,205,16-Feb-2018,1802-00084,0.00,198.50,R,A J H  Pump Supply & Repair Ltd,No
Http://opendatacommunities.org/id/metropolitan-district-council/leeds,Leeds City Council,28/02/2018,Resources and Housing,Leeds Building Services,Supplies and Services,Operational Materials,205,16-Feb-2018,1802-00085,0.00,69.00,R,A J H  Pump Supply & Repair Ltd,No
Http://opendatacommunities.org/id/metropolitan-district-council/leeds,Leeds City Council,28/02/2018,Resources and Housing,Leeds Building Services,Supplies and Services,Operational Materials,205,16-Feb-2018,1802-00086,0.00,475.00,R,A J H  Pump Supply & Repair Ltd,No
Http://opendatacommunities.org/id/metropolitan-district-council/leeds,Leeds City Council,28/02/2018,Resources and Housing,Leeds Building Services,Supplies and Services,Operational Materials,205,16-Feb-2018,1802-00087,0.00,480.66,R,A J H  Pump Supply & Repair Ltd,No
Http://opendatacommunities.org/id/metropolitan-district-council/leeds,Leeds City Council,28/02/2018,Resources and Housing,Leeds Building Services,Supplies and Services,Operational Materials,205,16-Feb-2018,1802-00088,0.00,108.72,R,A J H  Pump Supply & Repair Ltd,No
Http://opendatacommunities.org/id/metropolitan-district-council/leeds,Leeds City Council,28/02/2018,Resources and Housing,Leeds Building Services,Supplies and Services,Operational Materials,205,16-Feb-2018,1802-00089,0.00,33.59,R,A J H  Pump Supply & Repair Ltd,No
Http://opendatacommunities.org/id/metropolitan-district-council/leeds,Leeds City Council,28/02/2018,Resources and Housing,Leeds Building Services,Supplies and Services,Operational Materials,205,16-Feb-2018,1802-00090,0.00,170.44,R,A J H  Pump Supply & Repair Ltd,No
Http://opendatacommunities.org/id/metropolitan-district-council/leeds,Leeds City Council,28/02/2018,Resources and Housing,Leeds Building Services,Supplies and Services,Operational Materials,205,16-Feb-2018,1802-00091,0.00,243.51,R,A J H  Pump Supply & Repair Ltd,No
Http://opendatacommunities.org/id/metropolitan-district-council/leeds,Leeds City Council,28/02/2018,Resources and Housing,Leeds Building Services,Supplies and Services,Operational Materials,205,16-Feb-2018,1802-00092,0.00,95.00,R,A J H  Pump Supply & Repair Ltd,No
Http://opendatacommunities.org/id/metropolitan-district-council/leeds,Leeds City Council,28/02/2018,Resources and Housing,Leeds Building Services,Supplies and Services,Operational Materials,205,16-Feb-2018,1802-00093,0.00,312.00,R,A J H  Pump Supply & Repair Ltd,No
Http://opendatacommunities.org/id/metropolitan-district-council/leeds,Leeds City Council,28/02/2018,Resources and Housing,Leeds Building Services,Supplies and Services,Operational Materials,205,16-Feb-2018,1802-00094,0.00,98.00,R,A J H  Pump Supply & Repair Ltd,No
Http://opendatacommunities.org/id/metropolitan-district-council/leeds,Leeds City Council,28/02/2018,Resources and Housing,Leeds Building Services,Supplies and Services,Operational Materials,205,16-Feb-2018,1802-00095,0.00,306.00,R,A J H  Pump Supply & Repair Ltd,No
Http://opendatacommunities.org/id/metropolitan-district-council/leeds,Leeds City Council,28/02/2018,Resources and Housing,Leeds Building Services,Supplies and Services,Operational Materials,205,16-Feb-2018,1802-00096,0.00,396.75,R,A J H  Pump Supply & Repair Ltd,No
Http://opendatacommunities.org/id/metropolitan-district-council/leeds,Leeds City Council,28/02/2018,Resources and Housing,Leeds Building Services,Supplies and Services,Operational Materials,205,16-Feb-2018,1802-00097,0.00,106.25,R,A J H  Pump Supply & Repair Ltd,No
Http://opendatacommunities.org/id/metropolitan-district-council/leeds,Leeds City Council,28/02/2018,Resources and Housing,Leeds Building Services,Supplies and Services,Operational Materials,205,16-Feb-2018,1802-00098,0.00,29.50,R,A J H  Pump Supply & Repair Ltd,No
Http://opendatacommunities.org/id/metropolitan-district-council/leeds,Leeds City Council,28/02/2018,Resources and Housing,Leeds Building Services,Supplies and Services,Operational Materials,205,21-Feb-2018,1802-00099,0.00,488.45,R,A J H  Pump Supply & Repair Ltd,No
Http://opendatacommunities.org/id/metropolitan-district-council/leeds,Leeds City Council,28/02/2018,City Development,Libraries  Arts & Heritage,Supplies and Services,Art Galleries Total Stores,3,02-Feb-2018,1802-00100,0.00,640.56,R,A J Promotions,No
Http://opendatacommunities.org/id/metropolitan-district-council/leeds,Leeds City Council,28/02/2018,Communities and Environment,Customer Access,Supplies and Services,Operational Materials,205,05-Feb-2018,1802-00101,0.00,920.00,R,A J Promotions,No
Http://opendatacommunities.org/id/metropolitan-district-council/leeds,Leeds City Council,28/02/2018,Communities and Environment,Customer Access,Supplies and Services,Operational Materials,205,05-Feb-2018,1802-00102,0.00,93.60,R,A J Promotions,No
Http://opendatacommunities.org/id/metropolitan-district-council/leeds,Leeds City Council,28/02/2018,Communities and Environment,Customer Access,Supplies and Services,Resaleable Materials,204,05-Feb-2018,1802-00103,0.00,40.20,R,A J Promotions,No
Http://opendatacommunities.org/id/metropolitan-district-council/leeds,Leeds City Council,28/02/2018,Communities and Environment,Customer Access,Supplies and Services,Resaleable Materials,204,08-Feb-2018,1802-00104,0.00,137.48,R,A J Promotions,No
Http://opendatacommunities.org/id/metropolitan-district-council/leeds,Leeds City Council,28/02/2018,City Development,Economic Development,Capital,Furniture And Equipment,5,14-Feb-2018,1802-00105,0.00,13202.00,C,A J Wells & Sons,No
Http://opendatacommunities.org/id/metropolitan-district-council/leeds,Leeds City Council,28/02/2018,Adults and Health,Public Health,Third Party Payments,Public Health Commissioned Services,526,19-Feb-2018,1802-00106,0.00,379.00,R,A Khan & K Muneer,No
Http://opendatacommunities.org/id/metropolitan-district-council/leeds,Leeds City Council,28/02/2018,Resources and Housing,HRA Housing Leeds,Capital,Other Costs,7,22-Feb-2018,1802-00107,0.00,500.00,C,REDACTED PERSONAL DATA,No
Http://opendatacommunities.org/id/metropolitan-district-council/leeds,Leeds City Council,28/02/2018,Children and Families,Safeguarding Targeted & Specialist,Third Party Payments,Services Rendered By Other Organisations,511,23-Feb-2018,1802-00108,0.00,87.50,R,A Little Something Extra Ltd,No
Http://opendatacommunities.org/id/metropolitan-district-council/leeds,Leeds City Council,28/02/2018,Children and Families,Safeguarding Targeted & Specialist,Third Party Payments,Services Rendered By Other Organisations,511,23-Feb-2018,1802-00109,0.00,210.00,R,A Little Something Extra Ltd,No
Http://opendatacommunities.org/id/metropolitan-district-council/leeds,Leeds City Council,28/02/2018,Children and Families,Safeguarding Targeted & Specialist,Third Party Payments,Services Rendered By Voluntary Sector,505,26-Feb-2018,1802-00110,0.00,690.00,R,A Little Something Extra Ltd,No
Http://opendatacommunities.org/id/metropolitan-district-council/leeds,Leeds City Council,28/02/2018,Children and Families,Safeguarding Targeted & Specialist,Third Party Payments,Services Rendered By Voluntary Sector,505,26-Feb-2018,1802-00111,0.00,330.00,R,A Little Something Extra Ltd,No
Http://opendatacommunities.org/id/metropolitan-district-council/leeds,Leeds City Council,28/02/2018,Communities and Environment,Customer Access,Supplies and Services,Other Hired And Contracted Services,265,05-Feb-2018,1802-00112,0.00,680.25,R,A Mohammed,No
Http://opendatacommunities.org/id/metropolitan-district-council/leeds,Leeds City Council,28/02/2018,Communities and Environment,Customer Access,Supplies and Services,Other Hired And Contracted Services,265,01-Feb-2018,1802-00113,0.00,69.25,R,A Musalam,No
Http://opendatacommunities.org/id/metropolitan-district-council/leeds,Leeds City Council,28/02/2018,Communities and Environment,Customer Access,Supplies and Services,Other Hired And Contracted Services,265,05-Feb-2018,1802-00114,0.00,484.10,R,A Namaki,No
Http://opendatacommunities.org/id/metropolitan-district-council/leeds,Leeds City Council,28/02/2018,Communities and Environment,Parks and Countryside,Supplies and Services,Operational Materials,205,21-Feb-2018,1802-00115,0.00,467.00,R,A Newton,No
Http://opendatacommunities.org/id/metropolitan-district-council/leeds,Leeds City Council,28/02/2018,Communities and Environment,Parks and Countryside,Supplies and Services,Operational Materials,205,21-Feb-2018,1802-00116,0.00,250.00,R,A Newton,No
Http://opendatacommunities.org/id/metropolitan-district-council/leeds,Leeds City Council,28/02/2018,Communities and Environment,Parks and Countryside,Supplies and Services,Operational Materials,205,22-Feb-2018,1802-00117,0.00,768.00,R,A Newton,No
Http://opendatacommunities.org/id/metropolitan-district-council/leeds,Leeds City Council,28/02/2018,Communities and Environment,Parks and Countryside,Supplies and Services,Operational Materials,205,26-Feb-2018,1802-00118,0.00,457.50,R,A Newton,No
Http://opendatacommunities.org/id/metropolitan-district-council/leeds,Leeds City Council,28/02/2018,Communities and Environment,Parks and Countryside,Supplies and Services,Operational Materials,205,26-Feb-2018,1802-00119,0.00,250.00,R,A Newton,No
Http://opendatacommunities.org/id/metropolitan-district-council/leeds,Leeds City Council,28/02/2018,Resources and Housing,Commercial Services,Employees,Training & Development,70,16-Feb-2018,1802-00120,0.00,1520.00,R,A Positive Mind Matters,No
Http://opendatacommunities.org/id/metropolitan-district-council/leeds,Leeds City Council,28/02/2018,Resources and Housing,Commercial Services,Employees,Training & Development,70,16-Feb-2018,1802-00121,0.00,1520.00,R,A Positive Mind Matters,No
Http://opendatacommunities.org/id/metropolitan-district-council/leeds,Leeds City Council,28/02/2018,Resources and Housing,HRA Housing Leeds,Capital,Other Costs,7,01-Feb-2018,1802-00122,0.00,400.00,C,REDACTED PERSONAL DATA,No
Http://opendatacommunities.org/id/metropolitan-district-council/leeds,Leeds City Council,28/02/2018,Resources and Housing,Shared Services,Supplies and Services,Other Hired And Contracted Services,265,14-Feb-2018,1802-00123,0.00,92.50,R,A Star Couriers Ltd,No
Http://opendatacommunities.org/id/metropolitan-district-council/leeds,Leeds City Council,28/02/2018,Children and Families,Safeguarding Targeted & Specialist,Third Party Payments,Services Rendered By Other Organisations,511,19-Feb-2018,1802-00124,0.00,95.46,R,REDACTED PERSONAL DATA,No
Http://opendatacommunities.org/id/metropolitan-district-council/leeds,Leeds City Council,28/02/2018,Communities and Environment,Waste Management,Capital,Furniture And Equipment,5,01-Feb-2018,1802-00125,0.00,5722.50,C,A&C Weber Uk Ltd,No
Http://opendatacommunities.org/id/metropolitan-district-council/leeds,Leeds City Council,28/02/2018,Communities and Environment,Waste Management,Capital,Furniture And Equipment,5,01-Feb-2018,1802-00126,0.00,8009.30,C,A&C Weber Uk Ltd,No
Http://opendatacommunities.org/id/metropolitan-district-council/leeds,Leeds City Council,28/02/2018,Adults and Health,Public Health,Third Party Payments,Public Health Commissioned Services,526,20-Feb-2018,1802-00127,0.00,12.00,R,Aaa Healthcare Ltd,No
Http://opendatacommunities.org/id/metropolitan-district-council/leeds,Leeds City Council,28/02/2018,City Development,Recreation  ,Supplies and Services,Operational Furniture And Equipment,203,23-Jan-2018,1802-00128,0.00,67.40,R,Aal Ltd,Yes
Http://opendatacommunities.org/id/metropolitan-district-council/leeds,Leeds City Council,28/02/2018,Resources and Housing,Leeds Building Services,Supplies and Services,Operational Materials,205,01-Feb-2018,1802-00129,0.00,140.00,R,Aalco Leeds,No
Http://opendatacommunities.org/id/metropolitan-district-council/leeds,Leeds City Council,28/02/2018,Children and Families,Safeguarding Targeted & Specialist,Third Party Payments,Section 17,551,08-Feb-2018,1802-00130,0.00,84.80,R,REDACTED PERSONAL DATA,No
Http://opendatacommunities.org/id/metropolitan-district-council/leeds,Leeds City Council,28/02/2018,Adults and Health,Social Services Support Services,Transport,Public Transport Expenses,310,02-Feb-2018,1802-00131,0.00,272.00,R,Ab Cars (Garforth) Ltd,No
Http://opendatacommunities.org/id/metropolitan-district-council/leeds,Leeds City Council,28/02/2018,Adults and Health,Social Services Support Services,Transport,Public Transport Expenses,310,27-Feb-2018,1802-00132,0.00,-17.00,R,Ab Cars (Garforth) Ltd,No
Http://opendatacommunities.org/id/metropolitan-district-council/leeds,Leeds City Council,28/02/2018,Adults and Health,Social Services Support Services,Transport,Public Transport Expenses,310,27-Feb-2018,1802-00133,0.00,17.00,R,Ab Cars (Garforth) Ltd,No
Http://opendatacommunities.org/id/metropolitan-district-council/leeds,Leeds City Council,28/02/2018,Insurance,Insurance,Supplies and Services,Insurance Claims,248,01-Feb-2018,1802-00134,0.00,200.00,R,REDACTED PERSONAL DATA,No
Http://opendatacommunities.org/id/metropolitan-district-council/leeds,Leeds City Council,28/02/2018,Communities and Environment,Parks and Countryside,Capital,Other Costs,7,06-Feb-2018,1802-00135,0.00,12630.00,C,Abacus Cost Management Ltd,No
Http://opendatacommunities.org/id/metropolitan-district-council/leeds,Leeds City Council,28/02/2018,Children and Families,Safeguarding Targeted & Specialist,Support Services,Legal Disbursements,411,02-Feb-2018,1802-00136,0.00,31.02,R,Abacus Express Limited,No
Http://opendatacommunities.org/id/metropolitan-district-council/leeds,Leeds City Council,28/02/2018,Children and Families,Safeguarding Targeted & Specialist,Support Services,Legal Disbursements,411,02-Feb-2018,1802-00137,0.00,26.77,R,Abacus Express Limited,No
Http://opendatacommunities.org/id/metropolitan-district-council/leeds,Leeds City Council,28/02/2018,Children and Families,Safeguarding Targeted & Specialist,Support Services,Legal Disbursements,411,07-Feb-2018,1802-00138,0.00,15.59,R,Abacus Express Limited,No
Http://opendatacommunities.org/id/metropolitan-district-council/leeds,Leeds City Council,28/02/2018,Children and Families,Safeguarding Targeted & Specialist,Support Services,Legal Disbursements,411,07-Feb-2018,1802-00139,0.00,16.66,R,Abacus Express Limited,No
Http://opendatacommunities.org/id/metropolitan-district-council/leeds,Leeds City Council,28/02/2018,Children and Families,Safeguarding Targeted & Specialist,Support Services,Legal Disbursements,411,23-Feb-2018,1802-00140,0.00,31.02,R,Abacus Express Limited,No
Http://opendatacommunities.org/id/metropolitan-district-council/leeds,Leeds City Council,28/02/2018,Adults and Health,Services For Older People - 65 And Over,Third Party Payments,Nursing Care Dementia,574,07-Feb-2018,1802-00141,0.00,1556.00,R,Abbendon Nursing Home,No
Http://opendatacommunities.org/id/metropolitan-district-council/leeds,Leeds City Council,28/02/2018,Resources and Housing,Commercial Services,Transport,Private Hire,360,14-Feb-2018,1802-00142,0.00,665.00,R,Abbey Cars (Wakefield) Ltd,No
Http://opendatacommunities.org/id/metropolitan-district-council/leeds,Leeds City Council,28/02/2018,City Development,Libraries  Arts & Heritage,Supplies and Services,Other Hired And Contracted Services,265,01-Feb-2018,1802-00143,0.00,480.00,R,Abbey Event Services,No
Http://opendatacommunities.org/id/metropolitan-district-council/leeds,Leeds City Council,28/02/2018,Children and Families,Safeguarding Targeted & Specialist,Premises,Hire of meeting rooms,143,02-Feb-2018,1802-00144,0.00,20.00,R,Abbey Grange C Of E Academy Trust,No
Http://opendatacommunities.org/id/metropolitan-district-council/leeds,Leeds City Council,28/02/2018,Children and Families,Safeguarding Targeted & Specialist,Supplies and Services,Catering Service,233,02-Feb-2018,1802-00145,0.00,62.40,R,Abbey Grange C Of E Academy Trust,No
Http://opendatacommunities.org/id/metropolitan-district-council/leeds,Leeds City Council,28/02/2018,Children and Families,Safeguarding Targeted & Specialist,Premises,Hire of meeting rooms,143,02-Feb-2018,1802-00146,0.00,30.00,R,Abbey Grange C Of E Academy Trust,No
Http://opendatacommunities.org/id/metropolitan-district-council/leeds,Leeds City Council,28/02/2018,Children and Families,Safeguarding Targeted & Specialist,Supplies and Services,Catering Service,233,02-Feb-2018,1802-00147,0.00,216.00,R,Abbey Grange C Of E Academy Trust,No
Http://opendatacommunities.org/id/metropolitan-district-council/leeds,Leeds City Council,28/02/2018,Adults and Health,Public Health,Third Party Payments,Public Health Commissioned Services,526,19-Feb-2018,1802-00148,0.00,2461.57,R,Abbey Grange Medical Practice,No
Http://opendatacommunities.org/id/metropolitan-district-council/leeds,Leeds City Council,28/02/2018,Adults and Health,Services For Adults Under 65 Mental/Dis,Third Party Payments,Nursing Home,570,07-Feb-2018,1802-00149,0.00,1732.00,R,Abbey Grange Nursing Home,No
Http://opendatacommunities.org/id/metropolitan-district-council/leeds,Leeds City Council,28/02/2018,Children and Families,Safeguarding Targeted & Specialist,Third Party Payments,Services Rendered By Other Organisations,511,19-Feb-2018,1802-00150,0.00,307.60,R,Abc Daycare And Ozone Out Of School,No
Http://opendatacommunities.org/id/metropolitan-district-council/leeds,Leeds City Council,28/02/2018,Children and Families,Safeguarding Targeted & Specialist,Third Party Payments,Services Rendered By Other Organisations,511,19-Feb-2018,1802-00151,0.00,1588.37,R,Abc Nursery At Lufc,No
Http://opendatacommunities.org/id/metropolitan-district-council/leeds,Leeds City Council,28/02/2018,Children and Families,Safeguarding Targeted & Specialist,Transfer Payments,Leaving Care Allowances,634,08-Feb-2018,1802-00152,0.00,60.00,R,REDACTED PERSONAL DATA,No
Http://opendatacommunities.org/id/metropolitan-district-council/leeds,Leeds City Council,28/02/2018,Communities and Environment,Customer Access,Supplies and Services,Other Hired And Contracted Services,265,05-Feb-2018,1802-00153,0.00,148.25,R,Abdulahad Denha,No
Http://opendatacommunities.org/id/metropolitan-district-council/leeds,Leeds City Council,28/02/2018,Children and Families,Safeguarding Targeted & Specialist,Transfer Payments,Leaving Care Allowances,634,02-Feb-2018,1802-00154,0.00,20.00,R,REDACTED PERSONAL DATA,No
Http://opendatacommunities.org/id/metropolitan-district-council/leeds,Leeds City Council,28/02/2018,Children and Families,Safeguarding Targeted & Specialist,Transfer Payments,Leaving Care Allowances,634,09-Feb-2018,1802-00155,0.00,20.00,R,REDACTED PERSONAL DATA,No
Http://opendatacommunities.org/id/metropolitan-district-council/leeds,Leeds City Council,28/02/2018,Children and Families,Safeguarding Targeted & Specialist,Transfer Payments,Leaving Care Allowances,634,16-Feb-2018,1802-00156,0.00,20.00,R,REDACTED PERSONAL DATA,No
Http://opendatacommunities.org/id/metropolitan-district-council/leeds,Leeds City Council,28/02/2018,Children and Families,Safeguarding Targeted & Specialist,Transfer Payments,Leaving Care Allowances,634,23-Feb-2018,1802-00157,0.00,20.00,R,REDACTED PERSONAL DATA,No
Http://opendatacommunities.org/id/metropolitan-district-council/leeds,Leeds City Council,28/02/2018,Adults and Health,Services For Older People - 65 And Over,Third Party Payments,Nursing Home,570,07-Feb-2018,1802-00158,0.00,64267.96,R,Aberford Hall,No
Http://opendatacommunities.org/id/metropolitan-district-council/leeds,Leeds City Council,28/02/2018,Adults and Health,Services For Older People - 65 And Over,Third Party Payments,Nursing Care Dementia,574,07-Feb-2018,1802-00159,0.00,1566.20,R,Aberford Hall,No
Http://opendatacommunities.org/id/metropolitan-district-council/leeds,Leeds City Council,28/02/2018,Adults and Health,Services For Older People - 65 And Over,Third Party Payments,Residential,580,07-Feb-2018,1802-00160,0.00,6013.37,R,Aberford Hall,No
Http://opendatacommunities.org/id/metropolitan-district-council/leeds,Leeds City Council,28/02/2018,Resources and Housing,Leeds Building Services,Supplies and Services,Operational Materials,205,02-Feb-2018,1802-00161,0.00,54.50,R,Abi Garage Doors Ltd,No
Http://opendatacommunities.org/id/metropolitan-district-council/leeds,Leeds City Council,28/02/2018,Resources and Housing,Leeds Building Services,Supplies and Services,Operational Materials,205,02-Feb-2018,1802-00162,0.00,14.40,R,Abi Garage Doors Ltd,No
Http://opendatacommunities.org/id/metropolitan-district-council/leeds,Leeds City Council,28/02/2018,Resources and Housing,Leeds Building Services,Supplies and Services,Operational Materials,205,06-Feb-2018,1802-00163,0.00,251.78,R,Abi Garage Doors Ltd,No
Http://opendatacommunities.org/id/metropolitan-district-council/leeds,Leeds City Council,28/02/2018,Resources and Housing,Leeds Building Services,Supplies and Services,Operational Materials,205,12-Feb-2018,1802-00164,0.00,250.45,R,Abi Garage Doors Ltd,No
Http://opendatacommunities.org/id/metropolitan-district-council/leeds,Leeds City Council,28/02/2018,Resources and Housing,Leeds Building Services,Supplies and Services,Operational Materials,205,15-Feb-2018,1802-00165,0.00,250.45,R,Abi Garage Doors Ltd,No
Http://opendatacommunities.org/id/metropolitan-district-council/leeds,Leeds City Council,28/02/2018,Resources and Housing,Leeds Building Services,Supplies and Services,Operational Materials,205,27-Feb-2018,1802-00166,0.00,3005.40,R,Abi Garage Doors Ltd,No
Http://opendatacommunities.org/id/metropolitan-district-council/leeds,Leeds City Council,28/02/2018,Insurance,Insurance,Supplies and Services,Insurance Claims,248,13-Feb-2018,1802-00167,0.00,600.00,R,REDACTED PERSONAL DATA,No
Http://opendatacommunities.org/id/metropolitan-district-council/leeds,Leeds City Council,28/02/2018,Children and Families,Safeguarding Targeted & Specialist,Employees,Agency Staff,8,09-Feb-2018,1802-00168,0.00,995.00,R,Academic Appointments Ltd,No
Http://opendatacommunities.org/id/metropolitan-district-council/leeds,Leeds City Council,28/02/2018,Children and Families,Safeguarding Targeted & Specialist,Employees,Agency Staff,8,15-Feb-2018,1802-00169,0.00,398.00,R,Academic Appointments Ltd,No
Http://opendatacommunities.org/id/metropolitan-district-council/leeds,Leeds City Council,28/02/2018,Children and Families,Safeguarding Targeted & Specialist,Employees,Agency Staff,8,16-Feb-2018,1802-00170,0.00,995.00,R,Academic Appointments Ltd,No
Http://opendatacommunities.org/id/metropolitan-district-council/leeds,Leeds City Council,28/02/2018,Resources and Housing,Shared Services,Supplies and Services,Computer Software & Equipment,214,02-Feb-2018,1802-00171,0.00,5162.60,R,Accenture (Uk) Ltd,No
Http://opendatacommunities.org/id/metropolitan-district-council/leeds,Leeds City Council,28/02/2018,Resources and Housing,Shared Services,Supplies and Services,Computer Software & Equipment,214,02-Feb-2018,1802-00172,0.00,5700.00,R,Accenture (Uk) Ltd,No
Http://opendatacommunities.org/id/metropolitan-district-council/leeds,Leeds City Council,28/02/2018,Communities and Environment,Community Safety,Transport,Hire Of Movable Plant & Machinery,315,02-Feb-2018,1802-00173,0.00,1310.86,R,Access Hire Nationwide Ltd,No
Http://opendatacommunities.org/id/metropolitan-district-council/leeds,Leeds City Council,28/02/2018,Communities and Environment,Community Safety,Transport,Hire Of Movable Plant & Machinery,315,28-Feb-2018,1802-00174,0.00,1310.86,R,Access Hire Nationwide Ltd,No
Http://opendatacommunities.org/id/metropolitan-district-council/leeds,Leeds City Council,28/02/2018,Communities and Environment,Parks And Countryside  ,Supplies and Services,Operational Materials,205,05-Jan-2018,1802-00175,0.00,121.18,R,Access Locksmiths,Yes
Http://opendatacommunities.org/id/metropolitan-district-council/leeds,Leeds City Council,28/02/2018,Communities and Environment,Waste Management,Supplies and Services,Operational Furniture And Equipment,203,01-Feb-2018,1802-00176,0.00,32.28,R,Access Locksmiths (Leeds) Limited,No
Http://opendatacommunities.org/id/metropolitan-district-council/leeds,Leeds City Council,28/02/2018,Strategic Landlord,Property and Contracts,Premises,General Maintenance,104,02-Feb-2018,1802-00177,0.00,38.85,R,Access Locksmiths (Leeds) Limited,No
Http://opendatacommunities.org/id/metropolitan-district-council/leeds,Leeds City Council,28/02/2018,Strategic Landlord,Property and Contracts,Premises,General Maintenance,104,02-Feb-2018,1802-00178,0.00,133.42,R,Access Locksmiths (Leeds) Limited,No
Http://opendatacommunities.org/id/metropolitan-district-council/leeds,Leeds City Council,28/02/2018,Resources and Housing,Leeds Building Services,Supplies and Services,Operational Materials,205,08-Feb-2018,1802-00179,0.00,35.13,R,Access Locksmiths (Leeds) Limited,No
Http://opendatacommunities.org/id/metropolitan-district-council/leeds,Leeds City Council,28/02/2018,Resources and Housing,Leeds Building Services,Supplies and Services,Operational Materials,205,08-Feb-2018,1802-00180,0.00,15.72,R,Access Locksmiths (Leeds) Limited,No
Http://opendatacommunities.org/id/metropolitan-district-council/leeds,Leeds City Council,28/02/2018,Resources and Housing,Leeds Building Services,Supplies and Services,Operational Materials,205,08-Feb-2018,1802-00181,0.00,83.74,R,Access Locksmiths (Leeds) Limited,No
Http://opendatacommunities.org/id/metropolitan-district-council/leeds,Leeds City Council,28/02/2018,Resources and Housing,Leeds Building Services,Supplies and Services,Operational Materials,205,08-Feb-2018,1802-00182,0.00,15.30,R,Access Locksmiths (Leeds) Limited,No
Http://opendatacommunities.org/id/metropolitan-district-council/leeds,Leeds City Council,28/02/2018,Resources and Housing,Leeds Building Services,Supplies and Services,Other Hired And Contracted Services,265,08-Feb-2018,1802-00183,0.00,14.40,R,Access Locksmiths (Leeds) Limited,No
Http://opendatacommunities.org/id/metropolitan-district-council/leeds,Leeds City Council,28/02/2018,Resources and Housing,Leeds Building Services,Supplies and Services,Operational Materials,205,08-Feb-2018,1802-00184,0.00,290.10,R,Access Locksmiths (Leeds) Limited,No
Http://opendatacommunities.org/id/metropolitan-district-council/leeds,Leeds City Council,28/02/2018,Resources and Housing,Leeds Building Services,Supplies and Services,Operational Materials,205,08-Feb-2018,1802-00185,0.00,11.66,R,Access Locksmiths (Leeds) Limited,No
Http://opendatacommunities.org/id/metropolitan-district-council/leeds,Leeds City Council,28/02/2018,Resources and Housing,Leeds Building Services,Supplies and Services,Operational Materials,205,08-Feb-2018,1802-00186,0.00,7.10,R,Access Locksmiths (Leeds) Limited,No
Http://opendatacommunities.org/id/metropolitan-district-council/leeds,Leeds City Council,28/02/2018,Resources and Housing,Leeds Building Services,Supplies and Services,Operational Materials,205,12-Feb-2018,1802-00187,0.00,85.00,R,Access Locksmiths (Leeds) Limited,No
Http://opendatacommunities.org/id/metropolitan-district-council/leeds,Leeds City Council,28/02/2018,Resources and Housing,Leeds Building Services,Supplies and Services,Operational Materials,205,12-Feb-2018,1802-00188,0.00,125.62,R,Access Locksmiths (Leeds) Limited,No
Http://opendatacommunities.org/id/metropolitan-district-council/leeds,Leeds City Council,28/02/2018,Resources and Housing,Leeds Building Services,Supplies and Services,Operational Materials,205,12-Feb-2018,1802-00189,0.00,3.36,R,Access Locksmiths (Leeds) Limited,No
Http://opendatacommunities.org/id/metropolitan-district-council/leeds,Leeds City Council,28/02/2018,Strategic Landlord,Housing Management,Premises,General Maintenance,104,14-Feb-2018,1802-00190,0.00,834.00,R,Access Locksmiths (Leeds) Limited,No
Http://opendatacommunities.org/id/metropolitan-district-council/leeds,Leeds City Council,28/02/2018,Strategic Landlord,Housing Management,Supplies and Services,Resaleable Materials,204,14-Feb-2018,1802-00191,0.00,5.00,R,Access Locksmiths (Leeds) Limited,No
Http://opendatacommunities.org/id/metropolitan-district-council/leeds,Leeds City Council,28/02/2018,Resources and Housing,Leeds Building Services,Supplies and Services,Operational Materials,205,19-Feb-2018,1802-00192,0.00,58.92,R,Access Locksmiths (Leeds) Limited,No
Http://opendatacommunities.org/id/metropolitan-district-council/leeds,Leeds City Council,28/02/2018,Resources and Housing,Leeds Building Services,Supplies and Services,Operational Materials,205,22-Feb-2018,1802-00193,0.00,162.10,R,Access Locksmiths (Leeds) Limited,No
Http://opendatacommunities.org/id/metropolitan-district-council/leeds,Leeds City Council,28/02/2018,Resources and Housing,Leeds Building Services,Supplies and Services,Operational Materials,205,22-Feb-2018,1802-00194,0.00,15.12,R,Access Locksmiths (Leeds) Limited,No
Http://opendatacommunities.org/id/metropolitan-district-council/leeds,Leeds City Council,28/02/2018,Resources and Housing,Leeds Building Services,Supplies and Services,Operational Materials,205,22-Feb-2018,1802-00195,0.00,11.80,R,Access Locksmiths (Leeds) Limited,No
Http://opendatacommunities.org/id/metropolitan-district-council/leeds,Leeds City Council,28/02/2018,Resources and Housing,Leeds Building Services,Supplies and Services,Operational Materials,205,22-Feb-2018,1802-00196,0.00,113.95,R,Access Locksmiths (Leeds) Limited,No
Http://opendatacommunities.org/id/metropolitan-district-council/leeds,Leeds City Council,28/02/2018,Resources and Housing,Leeds Building Services,Supplies and Services,Operational Materials,205,22-Feb-2018,1802-00197,0.00,107.90,R,Access Locksmiths (Leeds) Limited,No
Http://opendatacommunities.org/id/metropolitan-district-council/leeds,Leeds City Council,28/02/2018,Strategic Landlord,Property and Contracts,Premises,General Maintenance,104,28-Feb-2018,1802-00198,0.00,169.84,R,Access Locksmiths (Leeds) Limited,No
Http://opendatacommunities.org/id/metropolitan-district-council/leeds,Leeds City Council,28/02/2018,City Development,Highways,Supplies and Services,Operational Furniture And Equipment,203,08-Feb-2018,1802-00199,0.00,85.00,R,Acco Service Division,No
Http://opendatacommunities.org/id/metropolitan-district-council/leeds,Leeds City Council,28/02/2018,Communities and Environment,Community Safety  ,Supplies and Services,Other Hired And Contracted Services,265,24-Jan-2018,1802-00200,0.00,258.99,R,Accutime.Co.Uk,Yes
Http://opendatacommunities.org/id/metropolitan-district-council/leeds,Leeds City Council,28/02/2018,City Development,Libraries  Arts & Heritage,Transport,Hire Of Movable Plant & Machinery,315,08-Feb-2018,1802-00201,0.00,46.50,R,Ace Container Services Limited,No
Http://opendatacommunities.org/id/metropolitan-district-council/leeds,Leeds City Council,28/02/2018,Communities and Environment,Waste Management,Supplies and Services,Advertising,211,09-Feb-2018,1802-00202,0.00,360.00,R,Ace Leaflet Distribution & Print Ltd,No
Http://opendatacommunities.org/id/metropolitan-district-council/leeds,Leeds City Council,28/02/2018,City Development,Highways,Supplies and Services,Printing,215,09-Feb-2018,1802-00203,0.00,80.00,R,Ace Leaflet Distribution & Print Ltd,No
Http://opendatacommunities.org/id/metropolitan-district-council/leeds,Leeds City Council,28/02/2018,Adults and Health,Public Health,Supplies and Services,Publication And Promotion,267,28-Feb-2018,1802-00204,0.00,1390.82,R,Ace Leaflet Distribution & Print Ltd,No
Http://opendatacommunities.org/id/metropolitan-district-council/leeds,Leeds City Council,28/02/2018,Communities and Environment,Parks and Countryside,Supplies and Services,Operational Materials,205,15-Feb-2018,1802-00205,0.00,220.00,R,Acm (Yorkshire) Ltd,No
Http://opendatacommunities.org/id/metropolitan-district-council/leeds,Leeds City Council,28/02/2018,Resources and Housing,Leeds Building Services,Supplies and Services,Other Hired And Contracted Services,265,16-Feb-2018,1802-00206,0.00,3745.00,R,Acme Facilities Group Ltd,No
Http://opendatacommunities.org/id/metropolitan-district-council/leeds,Leeds City Council,28/02/2018,Resources and Housing,Commercial Services,Supplies and Services,Operational Furniture And Equipment,203,16-Feb-2018,1802-00207,0.00,1110.00,R,Acme Facilities Group Ltd,No
Http://opendatacommunities.org/id/metropolitan-district-council/leeds,Leeds City Council,28/02/2018,Resources and Housing,Commercial Services,Supplies and Services,Operational Furniture And Equipment,203,16-Feb-2018,1802-00208,0.00,1628.00,R,Acme Facilities Group Ltd,No
Http://opendatacommunities.org/id/metropolitan-district-council/leeds,Leeds City Council,28/02/2018,Resources and Housing,Commercial Services,Supplies and Services,Operational Furniture And Equipment,203,16-Feb-2018,1802-00209,0.00,1280.00,R,Acme Facilities Group Ltd,No
Http://opendatacommunities.org/id/metropolitan-district-council/leeds,Leeds City Council,28/02/2018,Communities and Environment,Waste Management,Supplies and Services,Other Hired And Contracted Services,265,09-Feb-2018,1802-00210,0.00,200.00,R,Acorn Analytical Services Limited,No
Http://opendatacommunities.org/id/metropolitan-district-council/leeds,Leeds City Council,28/02/2018,Children and Families,Partnerships,Third Party Payments,SEN Placements,566,02-Feb-2018,1802-00211,0.00,-18138.67,R,Acorn Care And Education Ltd,No
Http://opendatacommunities.org/id/metropolitan-district-council/leeds,Leeds City Council,28/02/2018,Children and Families,Partnerships,Third Party Payments,SEN Placements,566,02-Feb-2018,1802-00212,0.00,-2833.33,R,Acorn Care And Education Ltd,No
Http://opendatacommunities.org/id/metropolitan-district-council/leeds,Leeds City Council,28/02/2018,Children and Families,Partnerships,Third Party Payments,SEN Placements,566,02-Feb-2018,1802-00213,0.00,-16475.96,R,Acorn Care And Education Ltd,No
Http://opendatacommunities.org/id/metropolitan-district-council/leeds,Leeds City Council,28/02/2018,Children and Families,Partnerships,Third Party Payments,SEN Placements,566,02-Feb-2018,1802-00214,0.00,4170.62,R,Acorn Care And Education Ltd,No
Http://opendatacommunities.org/id/metropolitan-district-council/leeds,Leeds City Council,28/02/2018,Children and Families,Partnerships,Third Party Payments,SEN Placements,566,02-Feb-2018,1802-00215,0.00,18172.00,R,Acorn Care And Education Ltd,No
Http://opendatacommunities.org/id/metropolitan-district-council/leeds,Leeds City Council,28/02/2018,Children and Families,Partnerships,Third Party Payments,SEN Placements,566,02-Feb-2018,1802-00216,0.00,975.41,R,Acorn Care And Education Ltd,No
Http://opendatacommunities.org/id/metropolitan-district-council/leeds,Leeds City Council,28/02/2018,Children and Families,Partnerships,Third Party Payments,SEN Placements,566,02-Feb-2018,1802-00217,0.00,18172.00,R,Acorn Care And Education Ltd,No
Http://opendatacommunities.org/id/metropolitan-district-council/leeds,Leeds City Council,28/02/2018,Children and Families,Partnerships,Third Party Payments,SEN Placements,566,06-Feb-2018,1802-00218,0.00,18138.67,R,Acorn Care And Education Ltd,No
Http://opendatacommunities.org/id/metropolitan-district-council/leeds,Leeds City Council,28/02/2018,Children and Families,Partnerships,Third Party Payments,SEN Placements,566,08-Feb-2018,1802-00219,0.00,8500.00,R,Acorn Care And Education Ltd,No
Http://opendatacommunities.org/id/metropolitan-district-council/leeds,Leeds City Council,28/02/2018,Children and Families,Partnerships,Third Party Payments,SEN Placements,566,23-Feb-2018,1802-00220,0.00,-16475.96,R,Acorn Care And Education Ltd,No
Http://opendatacommunities.org/id/metropolitan-district-council/leeds,Leeds City Council,28/02/2018,Children and Families,Partnerships,Third Party Payments,SEN Placements,566,23-Feb-2018,1802-00221,0.00,16657.67,R,Acorn Care And Education Ltd,No
Http://opendatacommunities.org/id/metropolitan-district-council/leeds,Leeds City Council,28/02/2018,Children and Families,Partnerships,Third Party Payments,SEN Placements,566,27-Feb-2018,1802-00222,0.00,7000.00,R,Acorn Care And Education Ltd,No
Http://opendatacommunities.org/id/metropolitan-district-council/leeds,Leeds City Council,28/02/2018,Children and Families,Partnerships,Third Party Payments,SEN Placements,566,27-Feb-2018,1802-00223,0.00,18138.67,R,Acorn Care And Education Ltd,No
Http://opendatacommunities.org/id/metropolitan-district-council/leeds,Leeds City Council,28/02/2018,Children and Families,Partnerships,Third Party Payments,SEN Placements,566,27-Feb-2018,1802-00224,0.00,2085.31,R,Acorn Care And Education Ltd,No
Http://opendatacommunities.org/id/metropolitan-district-council/leeds,Leeds City Council,28/02/2018,Adults and Health,Services For Older People - 65 And Over,Third Party Payments,Nursing Care Dementia,574,07-Feb-2018,1802-00225,0.00,1546.28,R,Acorn Nursing Home,No
Http://opendatacommunities.org/id/metropolitan-district-council/leeds,Leeds City Council,28/02/2018,City Development,Libraries  Arts & Heritage,Supplies and Services,Other Hired And Contracted Services,265,23-Feb-2018,1802-00226,0.00,4876.00,R,Acorn Scaffolding (Yorkshire) Ltd,No
Http://opendatacommunities.org/id/metropolitan-district-council/leeds,Leeds City Council,28/02/2018,City Development,Libraries  Arts & Heritage,Supplies and Services,Operational Furniture And Equipment,203,23-Feb-2018,1802-00227,0.00,7890.00,R,Acorn Scaffolding (Yorkshire) Ltd,No
Http://opendatacommunities.org/id/metropolitan-district-council/leeds,Leeds City Council,28/02/2018,Communities and Environment,Parks and Countryside,Supplies and Services,Other Hired And Contracted Services,265,23-Feb-2018,1802-00228,0.00,1649.00,R,Acorn Scaffolding (Yorkshire) Ltd,No
Http://opendatacommunities.org/id/metropolitan-district-council/leeds,Leeds City Council,28/02/2018,Children and Families,Safeguarding Targeted & Specialist,Third Party Payments,Services Rendered By Voluntary Sector,505,27-Feb-2018,1802-00229,0.00,4320.00,R,Acorns Nursery,No
Http://opendatacommunities.org/id/metropolitan-district-council/leeds,Leeds City Council,28/02/2018,Adults and Health,Services For Adults Under 65 Mental/Dis,Third Party Payments,Residential,580,07-Feb-2018,1802-00230,0.00,344.57,R,Acre Green,No
Http://opendatacommunities.org/id/metropolitan-district-council/leeds,Leeds City Council,28/02/2018,Adults and Health,Services For Older People - 65 And Over,Third Party Payments,Nursing Home,570,07-Feb-2018,1802-00231,0.00,51578.67,R,Acre Green,No
Http://opendatacommunities.org/id/metropolitan-district-council/leeds,Leeds City Council,28/02/2018,Adults and Health,Services For Older People - 65 And Over,Third Party Payments,Nursing Care Dementia,574,07-Feb-2018,1802-00232,0.00,2153.92,R,Acre Green,No
Http://opendatacommunities.org/id/metropolitan-district-council/leeds,Leeds City Council,28/02/2018,Adults and Health,Services For Older People - 65 And Over,Third Party Payments,Residential,580,07-Feb-2018,1802-00233,0.00,10138.12,R,Acre Green,No
Http://opendatacommunities.org/id/metropolitan-district-council/leeds,Leeds City Council,28/02/2018,Adults and Health,Services For Older People Under 65 P/Dis,Third Party Payments,Nursing Home,570,07-Feb-2018,1802-00234,0.00,2347.29,R,Acre Green,No
Http://opendatacommunities.org/id/metropolitan-district-council/leeds,Leeds City Council,28/02/2018,Adults and Health,Services For Older People Under 65 P/Dis,Third Party Payments,Residential,580,07-Feb-2018,1802-00235,0.00,6092.06,R,Acre Green,No
Http://opendatacommunities.org/id/metropolitan-district-council/leeds,Leeds City Council,28/02/2018,Children and Families,Safeguarding Targeted & Specialist,Third Party Payments,Services Rendered By Other Organisations,511,19-Feb-2018,1802-00236,0.00,1435.90,R,Acre Wood Day Nursery,No
Http://opendatacommunities.org/id/metropolitan-district-council/leeds,Leeds City Council,28/02/2018,Resources and Housing,Leeds Building Services,Supplies and Services,Operational Materials,205,15-Feb-2018,1802-00237,0.00,1760.00,R,Actavo Uk Limited,No
Http://opendatacommunities.org/id/metropolitan-district-council/leeds,Leeds City Council,28/02/2018,Adults and Health,Services For Adults Under 65 Mental/Dis,Third Party Payments,Fees - Level 4,520,06-Feb-2018,1802-00238,0.00,250.00,R,Action First Recruitment Ltd,No
Http://opendatacommunities.org/id/metropolitan-district-council/leeds,Leeds City Council,28/02/2018,Adults and Health,Services For Adults Under 65 Mental/Dis,Third Party Payments,Fees - Level 4,520,06-Feb-2018,1802-00239,0.00,250.00,R,Action First Recruitment Ltd,No
Http://opendatacommunities.org/id/metropolitan-district-council/leeds,Leeds City Council,28/02/2018,Adults and Health,Services For Adults Under 65 Mental/Dis,Third Party Payments,Fees - Level 4,520,06-Feb-2018,1802-00240,0.00,220.00,R,Action First Recruitment Ltd,No
Http://opendatacommunities.org/id/metropolitan-district-council/leeds,Leeds City Council,28/02/2018,Adults and Health,Services For Adults Under 65 Mental/Dis,Third Party Payments,Fees - Level 4,520,06-Feb-2018,1802-00241,0.00,220.00,R,Action First Recruitment Ltd,No
Http://opendatacommunities.org/id/metropolitan-district-council/leeds,Leeds City Council,28/02/2018,Adults and Health,Services For Adults Under 65 Mental/Dis,Third Party Payments,Fees - Level 4,520,06-Feb-2018,1802-00242,0.00,250.00,R,Action First Recruitment Ltd,No
Http://opendatacommunities.org/id/metropolitan-district-council/leeds,Leeds City Council,28/02/2018,Adults and Health,Services For Adults Under 65 Mental/Dis,Third Party Payments,Fees - Level 4,520,06-Feb-2018,1802-00243,0.00,250.00,R,Action First Recruitment Ltd,No
Http://opendatacommunities.org/id/metropolitan-district-council/leeds,Leeds City Council,28/02/2018,Adults and Health,Services For Adults Under 65 Mental/Dis,Third Party Payments,Fees - Level 4,520,06-Feb-2018,1802-00244,0.00,250.00,R,Action First Recruitment Ltd,No
Http://opendatacommunities.org/id/metropolitan-district-council/leeds,Leeds City Council,28/02/2018,Adults and Health,Services For Adults Under 65 Mental/Dis,Third Party Payments,Fees - Level 4,520,06-Feb-2018,1802-00245,0.00,250.00,R,Action First Recruitment Ltd,No
Http://opendatacommunities.org/id/metropolitan-district-council/leeds,Leeds City Council,28/02/2018,Adults and Health,Services For Adults Under 65 Mental/Dis,Third Party Payments,Fees - Level 4,520,06-Feb-2018,1802-00246,0.00,250.00,R,Action First Recruitment Ltd,No
Http://opendatacommunities.org/id/metropolitan-district-council/leeds,Leeds City Council,28/02/2018,Adults and Health,Services For Adults Under 65 Mental/Dis,Third Party Payments,Fees - Level 4,520,06-Feb-2018,1802-00247,0.00,250.00,R,Action First Recruitment Ltd,No
Http://opendatacommunities.org/id/metropolitan-district-council/leeds,Leeds City Council,28/02/2018,Adults and Health,Services For Adults Under 65 Mental/Dis,Third Party Payments,Fees - Level 4,520,06-Feb-2018,1802-00248,0.00,250.00,R,Action First Recruitment Ltd,No
Http://opendatacommunities.org/id/metropolitan-district-council/leeds,Leeds City Council,28/02/2018,Adults and Health,Services For Adults Under 65 Mental/Dis,Third Party Payments,Fees - Level 4,520,06-Feb-2018,1802-00249,0.00,250.00,R,Action First Recruitment Ltd,No
Http://opendatacommunities.org/id/metropolitan-district-council/leeds,Leeds City Council,28/02/2018,Adults and Health,Services For Adults Under 65 Mental/Dis,Third Party Payments,Fees - Level 4,520,06-Feb-2018,1802-00250,0.00,250.00,R,Action First Recruitment Ltd,No
Http://opendatacommunities.org/id/metropolitan-district-council/leeds,Leeds City Council,28/02/2018,Adults and Health,Services For Adults Under 65 Mental/Dis,Third Party Payments,Fees - Level 4,520,06-Feb-2018,1802-00251,0.00,250.00,R,Action First Recruitment Ltd,No
Http://opendatacommunities.org/id/metropolitan-district-council/leeds,Leeds City Council,28/02/2018,Adults and Health,Services For Adults Under 65 Mental/Dis,Third Party Payments,Fees - Level 4,520,06-Feb-2018,1802-00252,0.00,250.00,R,Action First Recruitment Ltd,No
Http://opendatacommunities.org/id/metropolitan-district-council/leeds,Leeds City Council,28/02/2018,Adults and Health,Services For Adults Under 65 Mental/Dis,Third Party Payments,Fees - Level 4,520,06-Feb-2018,1802-00253,0.00,220.00,R,Action First Recruitment Ltd,No
Http://opendatacommunities.org/id/metropolitan-district-council/leeds,Leeds City Council,28/02/2018,Adults and Health,Services For Adults Under 65 Mental/Dis,Third Party Payments,Fees - Level 4,520,06-Feb-2018,1802-00254,0.00,220.00,R,Action First Recruitment Ltd,No
Http://opendatacommunities.org/id/metropolitan-district-council/leeds,Leeds City Council,28/02/2018,Adults and Health,Services For Adults Under 65 Mental/Dis,Third Party Payments,Fees - Level 4,520,06-Feb-2018,1802-00255,0.00,250.00,R,Action First Recruitment Ltd,No
Http://opendatacommunities.org/id/metropolitan-district-council/leeds,Leeds City Council,28/02/2018,Adults and Health,Services For Adults Under 65 Mental/Dis,Third Party Payments,Fees - Level 4,520,06-Feb-2018,1802-00256,0.00,250.00,R,Action First Recruitment Ltd,No
Http://opendatacommunities.org/id/metropolitan-district-council/leeds,Leeds City Council,28/02/2018,Adults and Health,Services For Adults Under 65 Mental/Dis,Third Party Payments,Fees - Level 4,520,06-Feb-2018,1802-00257,0.00,250.00,R,Action First Recruitment Ltd,No
Http://opendatacommunities.org/id/metropolitan-district-council/leeds,Leeds City Council,28/02/2018,Adults and Health,Services For Adults Under 65 Mental/Dis,Third Party Payments,Fees - Level 4,520,06-Feb-2018,1802-00258,0.00,220.00,R,Action First Recruitment Ltd,No
Http://opendatacommunities.org/id/metropolitan-district-council/leeds,Leeds City Council,28/02/2018,Adults and Health,Services For Adults Under 65 Mental/Dis,Third Party Payments,Fees - Level 4,520,06-Feb-2018,1802-00259,0.00,220.00,R,Action First Recruitment Ltd,No
Http://opendatacommunities.org/id/metropolitan-district-council/leeds,Leeds City Council,28/02/2018,Adults and Health,Services For Adults Under 65 Mental/Dis,Third Party Payments,Fees - Level 4,520,06-Feb-2018,1802-00260,0.00,220.00,R,Action First Recruitment Ltd,No
Http://opendatacommunities.org/id/metropolitan-district-council/leeds,Leeds City Council,28/02/2018,Adults and Health,Services For Adults Under 65 Mental/Dis,Third Party Payments,Fees - Level 4,520,06-Feb-2018,1802-00261,0.00,220.00,R,Action First Recruitment Ltd,No
Http://opendatacommunities.org/id/metropolitan-district-council/leeds,Leeds City Council,28/02/2018,Adults and Health,Services For Adults Under 65 Mental/Dis,Third Party Payments,Fees - Level 4,520,06-Feb-2018,1802-00262,0.00,220.00,R,Action First Recruitment Ltd,No
Http://opendatacommunities.org/id/metropolitan-district-council/leeds,Leeds City Council,28/02/2018,Adults and Health,Services For Adults Under 65 Mental/Dis,Third Party Payments,Fees - Level 4,520,06-Feb-2018,1802-00263,0.00,220.00,R,Action First Recruitment Ltd,No
Http://opendatacommunities.org/id/metropolitan-district-council/leeds,Leeds City Council,28/02/2018,Adults and Health,Services For Adults Under 65 Mental/Dis,Third Party Payments,Fees - Level 4,520,06-Feb-2018,1802-00264,0.00,220.00,R,Action First Recruitment Ltd,No
Http://opendatacommunities.org/id/metropolitan-district-council/leeds,Leeds City Council,28/02/2018,Adults and Health,Services For Adults Under 65 Mental/Dis,Third Party Payments,Fees - Level 4,520,06-Feb-2018,1802-00265,0.00,250.00,R,Action First Recruitment Ltd,No
Http://opendatacommunities.org/id/metropolitan-district-council/leeds,Leeds City Council,28/02/2018,Adults and Health,Services For Adults Under 65 Mental/Dis,Third Party Payments,Fees - Level 4,520,06-Feb-2018,1802-00266,0.00,250.00,R,Action First Recruitment Ltd,No
Http://opendatacommunities.org/id/metropolitan-district-council/leeds,Leeds City Council,28/02/2018,Adults and Health,Services For Adults Under 65 Mental/Dis,Third Party Payments,Fees - Level 4,520,06-Feb-2018,1802-00267,0.00,250.00,R,Action First Recruitment Ltd,No
Http://opendatacommunities.org/id/metropolitan-district-council/leeds,Leeds City Council,28/02/2018,Adults and Health,Services For Adults Under 65 Mental/Dis,Third Party Payments,Fees - Level 4,520,06-Feb-2018,1802-00268,0.00,250.00,R,Action First Recruitment Ltd,No
Http://opendatacommunities.org/id/metropolitan-district-council/leeds,Leeds City Council,28/02/2018,Adults and Health,Services For Adults Under 65 Mental/Dis,Third Party Payments,Fees - Level 4,520,06-Feb-2018,1802-00269,0.00,250.00,R,Action First Recruitment Ltd,No
Http://opendatacommunities.org/id/metropolitan-district-council/leeds,Leeds City Council,28/02/2018,Adults and Health,Services For Adults Under 65 Mental/Dis,Third Party Payments,Fees - Level 4,520,06-Feb-2018,1802-00270,0.00,250.00,R,Action First Recruitment Ltd,No
Http://opendatacommunities.org/id/metropolitan-district-council/leeds,Leeds City Council,28/02/2018,Adults and Health,Services For Adults Under 65 Mental/Dis,Third Party Payments,Fees - Level 4,520,09-Feb-2018,1802-00271,0.00,220.00,R,Action First Recruitment Ltd,No
Http://opendatacommunities.org/id/metropolitan-district-council/leeds,Leeds City Council,28/02/2018,Adults and Health,Services For Adults Under 65 Mental/Dis,Third Party Payments,Fees - Level 4,520,09-Feb-2018,1802-00272,0.00,220.00,R,Action First Recruitment Ltd,No
Http://opendatacommunities.org/id/metropolitan-district-council/leeds,Leeds City Council,28/02/2018,Adults and Health,Services For Adults Under 65 Mental/Dis,Third Party Payments,Fees - Level 4,520,09-Feb-2018,1802-00273,0.00,220.00,R,Action First Recruitment Ltd,No
Http://opendatacommunities.org/id/metropolitan-district-council/leeds,Leeds City Council,28/02/2018,Adults and Health,Services For Adults Under 65 Mental/Dis,Third Party Payments,Fees - Level 4,520,09-Feb-2018,1802-00274,0.00,220.00,R,Action First Recruitment Ltd,No
Http://opendatacommunities.org/id/metropolitan-district-council/leeds,Leeds City Council,28/02/2018,Children and Families,Safeguarding Targeted & Specialist,Third Party Payments,Independent Fostering Agencies,509,01-Feb-2018,1802-00275,0.00,4776.48,R,Action For Children,No
Http://opendatacommunities.org/id/metropolitan-district-council/leeds,Leeds City Council,28/02/2018,Children and Families,Safeguarding Targeted & Specialist,Third Party Payments,Independent Fostering Agencies,509,01-Feb-2018,1802-00276,0.00,4776.48,R,Action For Children,No
Http://opendatacommunities.org/id/metropolitan-district-council/leeds,Leeds City Council,28/02/2018,Children and Families,Safeguarding Targeted & Specialist,Third Party Payments,Independent Fostering Agencies,509,01-Feb-2018,1802-00277,0.00,4776.48,R,Action For Children,No
Http://opendatacommunities.org/id/metropolitan-district-council/leeds,Leeds City Council,28/02/2018,Children and Families,Safeguarding Targeted & Specialist,Third Party Payments,Independent Fostering Agencies,509,01-Feb-2018,1802-00278,0.00,4776.48,R,Action For Children,No
Http://opendatacommunities.org/id/metropolitan-district-council/leeds,Leeds City Council,28/02/2018,Children and Families,Safeguarding Targeted & Specialist,Third Party Payments,Independent Fostering Agencies,509,16-Feb-2018,1802-00279,0.00,4776.48,R,Action For Children,No
Http://opendatacommunities.org/id/metropolitan-district-council/leeds,Leeds City Council,28/02/2018,Children and Families,Safeguarding Targeted & Specialist,Third Party Payments,Independent Fostering Agencies,509,16-Feb-2018,1802-00280,0.00,4776.48,R,Action For Children,No
Http://opendatacommunities.org/id/metropolitan-district-council/leeds,Leeds City Council,28/02/2018,Children and Families,Safeguarding Targeted & Specialist,Third Party Payments,Independent Fostering Agencies,509,16-Feb-2018,1802-00281,0.00,4776.48,R,Action For Children,No
Http://opendatacommunities.org/id/metropolitan-district-council/leeds,Leeds City Council,28/02/2018,Children and Families,Safeguarding Targeted & Specialist,Third Party Payments,Independent Fostering Agencies,509,01-Feb-2018,1802-00282,0.00,5163.67,R,Action For Children Services Ltd,No
Http://opendatacommunities.org/id/metropolitan-district-council/leeds,Leeds City Council,28/02/2018,Children and Families,Safeguarding Targeted & Specialist,Third Party Payments,Independent Fostering Agencies,509,16-Feb-2018,1802-00283,0.00,5163.67,R,Action For Children Services Ltd,No
Http://opendatacommunities.org/id/metropolitan-district-council/leeds,Leeds City Council,28/02/2018,Children and Families,Safeguarding Targeted & Specialist,Third Party Payments,Services Rendered By Other Organisations,511,19-Feb-2018,1802-00284,0.00,254.56,R,Active Kids Yeadon Llp,No
Http://opendatacommunities.org/id/metropolitan-district-council/leeds,Leeds City Council,28/02/2018,Children and Families,Safeguarding Targeted & Specialist  ,Supplies and Services,Admission Charges To Schools,283,12-Jan-2018,1802-00285,0.00,721.75,R,Activitybookercom,Yes
Http://opendatacommunities.org/id/metropolitan-district-council/leeds,Leeds City Council,28/02/2018,Communities and Environment,Waste Management,Supplies and Services,Recycling & Reuse Charges,234,02-Feb-2018,1802-00286,0.00,4458.18,R,Acumen Waste Services Ltd,No
Http://opendatacommunities.org/id/metropolitan-district-council/leeds,Leeds City Council,28/02/2018,Communities and Environment,Waste Management,Supplies and Services,Recycling & Reuse Charges,234,02-Feb-2018,1802-00287,0.00,3822.35,R,Acumen Waste Services Ltd,No
Http://opendatacommunities.org/id/metropolitan-district-council/leeds,Leeds City Council,28/02/2018,Communities and Environment,Waste Management,Supplies and Services,Recycling & Reuse Charges,234,07-Feb-2018,1802-00288,0.00,3901.41,R,Acumen Waste Services Ltd,No
Http://opendatacommunities.org/id/metropolitan-district-council/leeds,Leeds City Council,28/02/2018,Communities and Environment,Cleaner Neighbourhood Teams,Premises,Removal Of Workplace Waste,126,12-Feb-2018,1802-00289,0.00,110.00,R,Acumen Waste Services Ltd,No
Http://opendatacommunities.org/id/metropolitan-district-council/leeds,Leeds City Council,28/02/2018,Communities and Environment,Cleaner Neighbourhood Teams,Premises,Removal Of Workplace Waste,126,12-Feb-2018,1802-00290,0.00,110.00,R,Acumen Waste Services Ltd,No
Http://opendatacommunities.org/id/metropolitan-district-council/leeds,Leeds City Council,28/02/2018,Communities and Environment,Cleaner Neighbourhood Teams,Premises,Removal Of Workplace Waste,126,12-Feb-2018,1802-00291,0.00,110.00,R,Acumen Waste Services Ltd,No
Http://opendatacommunities.org/id/metropolitan-district-council/leeds,Leeds City Council,28/02/2018,Communities and Environment,Cleaner Neighbourhood Teams,Premises,Removal Of Workplace Waste,126,12-Feb-2018,1802-00292,0.00,110.00,R,Acumen Waste Services Ltd,No
Http://opendatacommunities.org/id/metropolitan-district-council/leeds,Leeds City Council,28/02/2018,Communities and Environment,Waste Management,Supplies and Services,Recycling & Reuse Charges,234,14-Feb-2018,1802-00293,0.00,5711.75,R,Acumen Waste Services Ltd,No
Http://opendatacommunities.org/id/metropolitan-district-council/leeds,Leeds City Council,28/02/2018,Communities and Environment,Cleaner Neighbourhood Teams,Premises,Removal Of Workplace Waste,126,20-Feb-2018,1802-00294,0.00,110.00,R,Acumen Waste Services Ltd,No
Http://opendatacommunities.org/id/metropolitan-district-council/leeds,Leeds City Council,28/02/2018,Communities and Environment,Cleaner Neighbourhood Teams,Premises,Removal Of Workplace Waste,126,20-Feb-2018,1802-00295,0.00,110.00,R,Acumen Waste Services Ltd,No
Http://opendatacommunities.org/id/metropolitan-district-council/leeds,Leeds City Council,28/02/2018,Communities and Environment,Cleaner Neighbourhood Teams,Premises,Removal Of Workplace Waste,126,20-Feb-2018,1802-00296,0.00,110.00,R,Acumen Waste Services Ltd,No
Http://opendatacommunities.org/id/metropolitan-district-council/leeds,Leeds City Council,28/02/2018,Communities and Environment,Waste Management,Supplies and Services,Recycling & Reuse Charges,234,22-Feb-2018,1802-00297,0.00,7450.40,R,Acumen Waste Services Ltd,No
Http://opendatacommunities.org/id/metropolitan-district-council/leeds,Leeds City Council,28/02/2018,Communities and Environment,Cleaner Neighbourhood Teams,Premises,Removal Of Workplace Waste,126,27-Feb-2018,1802-00298,0.00,110.00,R,Acumen Waste Services Ltd,No
Http://opendatacommunities.org/id/metropolitan-district-council/leeds,Leeds City Council,28/02/2018,Resources and Housing,Shared Services,Supplies and Services,Operational Materials,205,16-Feb-2018,1802-00299,0.00,645.00,R,Ad3 Envelope Printers Limited,No
Http://opendatacommunities.org/id/metropolitan-district-council/leeds,Leeds City Council,28/02/2018,Resources and Housing,Shared Services,Supplies and Services,Other Hired And Contracted Services,265,28-Feb-2018,1802-00300,0.00,96.44,R,Ad3 Envelope Printers Limited,No
Http://opendatacommunities.org/id/metropolitan-district-council/leeds,Leeds City Council,28/02/2018,Adults and Health,Services For Older People - 65 And Over,Third Party Payments,Nursing Home,570,07-Feb-2018,1802-00301,0.00,3786.24,R,Adbolton Hall,No
Http://opendatacommunities.org/id/metropolitan-district-council/leeds,Leeds City Council,28/02/2018,Communities and Environment,Communities,Supplies and Services,'Well Being' Large Grants Projects,230,21-Feb-2018,1802-00302,0.00,1000.00,R,Addictive Audio,No
Http://opendatacommunities.org/id/metropolitan-district-council/leeds,Leeds City Council,28/02/2018,Resources and Housing,Sustainable Energy & Climate Change,Capital,Other Costs,7,09-Feb-2018,1802-00303,0.00,13922.21,C,Addleshaw Goddard Llp,No
Http://opendatacommunities.org/id/metropolitan-district-council/leeds,Leeds City Council,28/02/2018,Resources and Housing,Sustainable Energy & Climate Change,Capital,Other Costs,7,20-Feb-2018,1802-00304,0.00,4602.55,C,Addleshaw Goddard Llp,No
Http://opendatacommunities.org/id/metropolitan-district-council/leeds,Leeds City Council,28/02/2018,Resources and Housing,Human Resources,Employees,Occupational Health,85,16-Feb-2018,1802-00305,0.00,40.00,R,Addlestone & Partners,No
Http://opendatacommunities.org/id/metropolitan-district-council/leeds,Leeds City Council,28/02/2018,Adults and Health,Public Health,Third Party Payments,Public Health Commissioned Services,526,16-Feb-2018,1802-00306,0.00,4779.18,R,Addlestone & Partners,No
Http://opendatacommunities.org/id/metropolitan-district-council/leeds,Leeds City Council,28/02/2018,Resources and Housing,Technology  ,Employees,Agency Staff,8,16-Jan-2018,1802-00307,0.00,55214.54,R,Adecco Alfred Marks,Yes
Http://opendatacommunities.org/id/metropolitan-district-council/leeds,Leeds City Council,28/02/2018,Resources and Housing,Technology  ,Employees,Agency Staff,8,30-Jan-2018,1802-00308,0.00,65516.92,R,Adecco Alfred Marks,Yes
Http://opendatacommunities.org/id/metropolitan-district-council/leeds,Leeds City Council,28/02/2018,Strategic Accounts,Miscellaneous,Supplies and Services,Non-Recurring Grants,227,26-Feb-2018,1802-00309,0.00,200.00,R,Adel & District Horticultural Society,No
Http://opendatacommunities.org/id/metropolitan-district-council/leeds,Leeds City Council,28/02/2018,Strategic Accounts,Miscellaneous,Supplies and Services,Non-Recurring Grants,227,12-Feb-2018,1802-00310,0.00,100.00,R,Adel Neighbourhood Forum,No
Http://opendatacommunities.org/id/metropolitan-district-council/leeds,Leeds City Council,28/02/2018,Children and Families,Safeguarding Targeted & Specialist,Third Party Payments,Services Rendered By Voluntary Sector,505,19-Feb-2018,1802-00311,0.00,795.51,R,Adel Pre School,No
Http://opendatacommunities.org/id/metropolitan-district-council/leeds,Leeds City Council,28/02/2018,Adults and Health,Services For Older People - 65 And Over,Third Party Payments,Nursing Home,570,07-Feb-2018,1802-00312,0.00,1157.68,R,Aden House,No
Http://opendatacommunities.org/id/metropolitan-district-council/leeds,Leeds City Council,28/02/2018,Resources and Housing,Leeds Building Services,Supplies and Services,Operational Materials,205,01-Feb-2018,1802-00313,0.00,140.66,R,Adi Global,No
Http://opendatacommunities.org/id/metropolitan-district-council/leeds,Leeds City Council,28/02/2018,Resources and Housing,Leeds Building Services,Supplies and Services,Operational Materials,205,01-Feb-2018,1802-00314,0.00,2488.90,R,Adi Global,No
Http://opendatacommunities.org/id/metropolitan-district-council/leeds,Leeds City Council,28/02/2018,Resources and Housing,Leeds Building Services,Supplies and Services,Operational Materials,205,02-Feb-2018,1802-00315,0.00,219.96,R,Adi Global,No
Http://opendatacommunities.org/id/metropolitan-district-council/leeds,Leeds City Council,28/02/2018,Resources and Housing,Leeds Building Services,Supplies and Services,Operational Materials,205,02-Feb-2018,1802-00316,0.00,153.16,R,Adi Global,No
Http://opendatacommunities.org/id/metropolitan-district-council/leeds,Leeds City Council,28/02/2018,Resources and Housing,Leeds Building Services,Supplies and Services,Operational Materials,205,02-Feb-2018,1802-00317,0.00,46.69,R,Adi Global,No
Http://opendatacommunities.org/id/metropolitan-district-council/leeds,Leeds City Council,28/02/2018,Resources and Housing,Leeds Building Services,Supplies and Services,Operational Materials,205,05-Feb-2018,1802-00318,0.00,5356.86,R,Adi Global,No
Http://opendatacommunities.org/id/metropolitan-district-council/leeds,Leeds City Council,28/02/2018,Resources and Housing,Leeds Building Services,Supplies and Services,Operational Materials,205,06-Feb-2018,1802-00319,0.00,719.94,R,Adi Global,No
Http://opendatacommunities.org/id/metropolitan-district-council/leeds,Leeds City Council,28/02/2018,Resources and Housing,Leeds Building Services,Supplies and Services,Operational Materials,205,06-Feb-2018,1802-00320,0.00,536.64,R,Adi Global,No
Http://opendatacommunities.org/id/metropolitan-district-council/leeds,Leeds City Council,28/02/2018,Resources and Housing,Leeds Building Services,Supplies and Services,Operational Materials,205,06-Feb-2018,1802-00321,0.00,453.24,R,Adi Global,No
Http://opendatacommunities.org/id/metropolitan-district-council/leeds,Leeds City Council,28/02/2018,Resources and Housing,Leeds Building Services,Supplies and Services,Operational Materials,205,08-Feb-2018,1802-00322,0.00,94.92,R,Adi Global,No
Http://opendatacommunities.org/id/metropolitan-district-council/leeds,Leeds City Council,28/02/2018,Resources and Housing,Leeds Building Services,Supplies and Services,Operational Materials,205,08-Feb-2018,1802-00323,0.00,730.55,R,Adi Global,No
Http://opendatacommunities.org/id/metropolitan-district-council/leeds,Leeds City Council,28/02/2018,Resources and Housing,Leeds Building Services,Supplies and Services,Operational Materials,205,08-Feb-2018,1802-00324,0.00,353.61,R,Adi Global,No
Http://opendatacommunities.org/id/metropolitan-district-council/leeds,Leeds City Council,28/02/2018,Resources and Housing,Leeds Building Services,Supplies and Services,Operational Materials,205,08-Feb-2018,1802-00325,0.00,125.30,R,Adi Global,No
Http://opendatacommunities.org/id/metropolitan-district-council/leeds,Leeds City Council,28/02/2018,Resources and Housing,Leeds Building Services,Supplies and Services,Operational Materials,205,08-Feb-2018,1802-00326,0.00,125.30,R,Adi Global,No
Http://opendatacommunities.org/id/metropolitan-district-council/leeds,Leeds City Council,28/02/2018,Resources and Housing,Leeds Building Services,Supplies and Services,Operational Materials,205,08-Feb-2018,1802-00327,0.00,373.04,R,Adi Global,No
Http://opendatacommunities.org/id/metropolitan-district-council/leeds,Leeds City Council,28/02/2018,Resources and Housing,Leeds Building Services,Supplies and Services,Operational Materials,205,08-Feb-2018,1802-00328,0.00,279.17,R,Adi Global,No
Http://opendatacommunities.org/id/metropolitan-district-council/leeds,Leeds City Council,28/02/2018,Resources and Housing,Leeds Building Services,Supplies and Services,Operational Materials,205,14-Feb-2018,1802-00329,0.00,27.37,R,Adi Global,No
Http://opendatacommunities.org/id/metropolitan-district-council/leeds,Leeds City Council,28/02/2018,Resources and Housing,Leeds Building Services,Supplies and Services,Operational Materials,205,14-Feb-2018,1802-00330,0.00,22.50,R,Adi Global,No
Http://opendatacommunities.org/id/metropolitan-district-council/leeds,Leeds City Council,28/02/2018,Resources and Housing,Leeds Building Services,Supplies and Services,Operational Materials,205,14-Feb-2018,1802-00331,0.00,280.10,R,Adi Global,No
Http://opendatacommunities.org/id/metropolitan-district-council/leeds,Leeds City Council,28/02/2018,Resources and Housing,Leeds Building Services,Supplies and Services,Operational Materials,205,14-Feb-2018,1802-00332,0.00,84.85,R,Adi Global,No
Http://opendatacommunities.org/id/metropolitan-district-council/leeds,Leeds City Council,28/02/2018,Resources and Housing,Leeds Building Services,Supplies and Services,Operational Materials,205,14-Feb-2018,1802-00333,0.00,108.84,R,Adi Global,No
Http://opendatacommunities.org/id/metropolitan-district-council/leeds,Leeds City Council,28/02/2018,Resources and Housing,Leeds Building Services,Supplies and Services,Operational Materials,205,14-Feb-2018,1802-00334,0.00,1114.64,R,Adi Global,No
Http://opendatacommunities.org/id/metropolitan-district-council/leeds,Leeds City Council,28/02/2018,Resources and Housing,Leeds Building Services,Supplies and Services,Operational Materials,205,14-Feb-2018,1802-00335,0.00,441.86,R,Adi Global,No
Http://opendatacommunities.org/id/metropolitan-district-council/leeds,Leeds City Council,28/02/2018,Resources and Housing,Leeds Building Services,Supplies and Services,Operational Materials,205,14-Feb-2018,1802-00336,0.00,129.85,R,Adi Global,No
Http://opendatacommunities.org/id/metropolitan-district-council/leeds,Leeds City Council,28/02/2018,Resources and Housing,Leeds Building Services,Supplies and Services,Operational Materials,205,14-Feb-2018,1802-00337,0.00,99.06,R,Adi Global,No
Http://opendatacommunities.org/id/metropolitan-district-council/leeds,Leeds City Council,28/02/2018,Resources and Housing,Leeds Building Services,Supplies and Services,Operational Materials,205,14-Feb-2018,1802-00338,0.00,448.14,R,Adi Global,No
Http://opendatacommunities.org/id/metropolitan-district-council/leeds,Leeds City Council,28/02/2018,Resources and Housing,Leeds Building Services,Supplies and Services,Operational Materials,205,16-Feb-2018,1802-00339,0.00,107.85,R,Adi Global,No
Http://opendatacommunities.org/id/metropolitan-district-council/leeds,Leeds City Council,28/02/2018,Resources and Housing,Leeds Building Services,Supplies and Services,Operational Materials,205,16-Feb-2018,1802-00340,0.00,129.42,R,Adi Global,No
Http://opendatacommunities.org/id/metropolitan-district-council/leeds,Leeds City Council,28/02/2018,Resources and Housing,Leeds Building Services,Supplies and Services,Operational Materials,205,16-Feb-2018,1802-00341,0.00,1216.15,R,Adi Global,No
Http://opendatacommunities.org/id/metropolitan-district-council/leeds,Leeds City Council,28/02/2018,Resources and Housing,Leeds Building Services,Supplies and Services,Operational Materials,205,19-Feb-2018,1802-00342,0.00,27.37,R,Adi Global,No
Http://opendatacommunities.org/id/metropolitan-district-council/leeds,Leeds City Council,28/02/2018,Resources and Housing,Leeds Building Services,Supplies and Services,Operational Materials,205,27-Feb-2018,1802-00343,0.00,27.37,R,Adi Global,No
Http://opendatacommunities.org/id/metropolitan-district-council/leeds,Leeds City Council,28/02/2018,Resources and Housing,Leeds Building Services,Supplies and Services,Operational Materials,205,27-Feb-2018,1802-00344,0.00,55.69,R,Adi Global,No
Http://opendatacommunities.org/id/metropolitan-district-council/leeds,Leeds City Council,28/02/2018,Resources and Housing,Leeds Building Services,Supplies and Services,Operational Materials,205,27-Feb-2018,1802-00345,0.00,55.69,R,Adi Global,No
Http://opendatacommunities.org/id/metropolitan-district-council/leeds,Leeds City Council,28/02/2018,Resources and Housing,Leeds Building Services,Supplies and Services,Operational Materials,205,27-Feb-2018,1802-00346,0.00,755.31,R,Adi Global,No
Http://opendatacommunities.org/id/metropolitan-district-council/leeds,Leeds City Council,28/02/2018,Resources and Housing,Leeds Building Services,Supplies and Services,Operational Materials,205,27-Feb-2018,1802-00347,0.00,226.62,R,Adi Global,No
Http://opendatacommunities.org/id/metropolitan-district-council/leeds,Leeds City Council,28/02/2018,Communities and Environment,Community Safety  ,Supplies and Services,Other Hired And Contracted Services,265,12-Jan-2018,1802-00348,0.00,59.68,R,Adi-Gardiner Ltd,Yes
Http://opendatacommunities.org/id/metropolitan-district-council/leeds,Leeds City Council,28/02/2018,Communities and Environment,Community Safety  ,Supplies and Services,Other Hired And Contracted Services,265,22-Jan-2018,1802-00349,0.00,495.60,R,Adi-Gardiner Ltd,Yes
Http://opendatacommunities.org/id/metropolitan-district-council/leeds,Leeds City Council as Accountable Body,28/02/2018,Social Services Pooled Budgets,Jcs For People With Learning Disabilitie,Third Party Payments,Residential,580,08-Feb-2018,1802-00350,0.00,2609.36,R,Adrian House,No
Http://opendatacommunities.org/id/metropolitan-district-council/leeds,Leeds City Council,28/02/2018,Adults and Health,Assessment And Care Management,Employees,Training & Development,70,08-Feb-2018,1802-00351,0.00,810.00,R,Adrian House,No
Http://opendatacommunities.org/id/metropolitan-district-council/leeds,Leeds City Council,28/02/2018,Resources and Housing,Shared Services,Supplies and Services,Licences,266,26-Feb-2018,1802-00352,0.00,-143.75,R,Adt Fire And Security Plc,No
Http://opendatacommunities.org/id/metropolitan-district-council/leeds,Leeds City Council,28/02/2018,Resources and Housing,Shared Services,Supplies and Services,Licences,266,26-Feb-2018,1802-00353,0.00,-2.40,R,Adt Fire And Security Plc,No
Http://opendatacommunities.org/id/metropolitan-district-council/leeds,Leeds City Council,28/02/2018,Resources and Housing,Shared Services,Supplies and Services,Licences,266,26-Feb-2018,1802-00354,0.00,-292.00,R,Adt Fire And Security Plc,No
Http://opendatacommunities.org/id/metropolitan-district-council/leeds,Leeds City Council,28/02/2018,Resources and Housing,Shared Services,Supplies and Services,Licences,266,26-Feb-2018,1802-00355,0.00,-45.16,R,Adt Fire And Security Plc,No
Http://opendatacommunities.org/id/metropolitan-district-council/leeds,Leeds City Council,28/02/2018,Resources and Housing,Shared Services,Supplies and Services,Licences,266,26-Feb-2018,1802-00356,0.00,-87.54,R,Adt Fire And Security Plc,No
Http://opendatacommunities.org/id/metropolitan-district-council/leeds,Leeds City Council,28/02/2018,Resources and Housing,Shared Services,Supplies and Services,Licences,266,26-Feb-2018,1802-00357,0.00,-34.00,R,Adt Fire And Security Plc,No
Http://opendatacommunities.org/id/metropolitan-district-council/leeds,Leeds City Council,28/02/2018,Resources and Housing,Shared Services,Supplies and Services,Licences,266,26-Feb-2018,1802-00358,0.00,-258.40,R,Adt Fire And Security Plc,No
Http://opendatacommunities.org/id/metropolitan-district-council/leeds,Leeds City Council,28/02/2018,Resources and Housing,Shared Services,Supplies and Services,Licences,266,26-Feb-2018,1802-00359,0.00,-365.00,R,Adt Fire And Security Plc,No
Http://opendatacommunities.org/id/metropolitan-district-council/leeds,Leeds City Council,28/02/2018,Resources and Housing,Shared Services,Supplies and Services,Licences,266,26-Feb-2018,1802-00360,0.00,-325.66,R,Adt Fire And Security Plc,No
Http://opendatacommunities.org/id/metropolitan-district-council/leeds,Leeds City Council,28/02/2018,Resources and Housing,Shared Services,Supplies and Services,Licences,266,26-Feb-2018,1802-00361,0.00,-39.00,R,Adt Fire And Security Plc,No
Http://opendatacommunities.org/id/metropolitan-district-council/leeds,Leeds City Council,28/02/2018,Resources and Housing,Shared Services,Supplies and Services,Licences,266,26-Feb-2018,1802-00362,0.00,-233.00,R,Adt Fire And Security Plc,No
Http://opendatacommunities.org/id/metropolitan-district-council/leeds,Leeds City Council,28/02/2018,Resources and Housing,Shared Services,Supplies and Services,Licences,266,26-Feb-2018,1802-00363,0.00,-330.00,R,Adt Fire And Security Plc,No
Http://opendatacommunities.org/id/metropolitan-district-council/leeds,Leeds City Council,28/02/2018,Resources and Housing,Shared Services,Supplies and Services,Licences,266,26-Feb-2018,1802-00364,0.00,-370.72,R,Adt Fire And Security Plc,No
Http://opendatacommunities.org/id/metropolitan-district-council/leeds,Leeds City Council,28/02/2018,Resources and Housing,Shared Services,Supplies and Services,Licences,266,26-Feb-2018,1802-00365,0.00,-49.00,R,Adt Fire And Security Plc,No
Http://opendatacommunities.org/id/metropolitan-district-council/leeds,Leeds City Council,28/02/2018,Resources and Housing,Shared Services,Supplies and Services,Licences,266,26-Feb-2018,1802-00366,0.00,-117.00,R,Adt Fire And Security Plc,No
Http://opendatacommunities.org/id/metropolitan-district-council/leeds,Leeds City Council,28/02/2018,Resources and Housing,Shared Services,Supplies and Services,Licences,266,26-Feb-2018,1802-00367,0.00,-49.00,R,Adt Fire And Security Plc,No
Http://opendatacommunities.org/id/metropolitan-district-council/leeds,Leeds City Council,28/02/2018,Resources and Housing,Shared Services,Supplies and Services,Licences,266,26-Feb-2018,1802-00368,0.00,-135.00,R,Adt Fire And Security Plc,No
Http://opendatacommunities.org/id/metropolitan-district-council/leeds,Leeds City Council,28/02/2018,Resources and Housing,Shared Services,Supplies and Services,Licences,266,26-Feb-2018,1802-00369,0.00,-607.84,R,Adt Fire And Security Plc,No
Http://opendatacommunities.org/id/metropolitan-district-council/leeds,Leeds City Council,28/02/2018,Resources and Housing,Shared Services,Supplies and Services,Licences,266,26-Feb-2018,1802-00370,0.00,-364.54,R,Adt Fire And Security Plc,No
Http://opendatacommunities.org/id/metropolitan-district-council/leeds,Leeds City Council,28/02/2018,Resources and Housing,Shared Services,Supplies and Services,Licences,266,26-Feb-2018,1802-00371,0.00,-142.00,R,Adt Fire And Security Plc,No
Http://opendatacommunities.org/id/metropolitan-district-council/leeds,Leeds City Council,28/02/2018,Resources and Housing,Shared Services,Supplies and Services,Licences,266,26-Feb-2018,1802-00372,0.00,-480.00,R,Adt Fire And Security Plc,No
Http://opendatacommunities.org/id/metropolitan-district-council/leeds,Leeds City Council,28/02/2018,Resources and Housing,Shared Services,Supplies and Services,Licences,266,26-Feb-2018,1802-00373,0.00,-142.00,R,Adt Fire And Security Plc,No
Http://opendatacommunities.org/id/metropolitan-district-council/leeds,Leeds City Council,28/02/2018,Resources and Housing,Shared Services,Supplies and Services,Licences,266,26-Feb-2018,1802-00374,0.00,-246.00,R,Adt Fire And Security Plc,No
Http://opendatacommunities.org/id/metropolitan-district-council/leeds,Leeds City Council,28/02/2018,Resources and Housing,Shared Services,Supplies and Services,Licences,266,26-Feb-2018,1802-00375,0.00,-164.00,R,Adt Fire And Security Plc,No
Http://opendatacommunities.org/id/metropolitan-district-council/leeds,Leeds City Council,28/02/2018,Resources and Housing,Shared Services,Supplies and Services,Licences,266,26-Feb-2018,1802-00376,0.00,-104.00,R,Adt Fire And Security Plc,No
Http://opendatacommunities.org/id/metropolitan-district-council/leeds,Leeds City Council,28/02/2018,Resources and Housing,Shared Services,Supplies and Services,Licences,266,26-Feb-2018,1802-00377,0.00,-2273.00,R,Adt Fire And Security Plc,No
Http://opendatacommunities.org/id/metropolitan-district-council/leeds,Leeds City Council,28/02/2018,Resources and Housing,Shared Services,Supplies and Services,Licences,266,26-Feb-2018,1802-00378,0.00,-60.74,R,Adt Fire And Security Plc,No
Http://opendatacommunities.org/id/metropolitan-district-council/leeds,Leeds City Council,28/02/2018,Resources and Housing,Shared Services,Supplies and Services,Licences,266,26-Feb-2018,1802-00379,0.00,-216.99,R,Adt Fire And Security Plc,No
Http://opendatacommunities.org/id/metropolitan-district-council/leeds,Leeds City Council,28/02/2018,Strategic Landlord,Housing Management,Premises,Premises Security Services,162,26-Feb-2018,1802-00380,0.00,149.60,R,Adt Fire And Security Plc,No
Http://opendatacommunities.org/id/metropolitan-district-council/leeds,Leeds City Council,28/02/2018,Resources and Housing,Shared Services,Supplies and Services,Licences,266,26-Feb-2018,1802-00381,0.00,-1668.00,R,Adt Fire And Security Plc,No
Http://opendatacommunities.org/id/metropolitan-district-council/leeds,Leeds City Council,28/02/2018,Resources and Housing,Shared Services,Supplies and Services,Licences,266,26-Feb-2018,1802-00382,0.00,-94.76,R,Adt Fire And Security Plc,No
Http://opendatacommunities.org/id/metropolitan-district-council/leeds,Leeds City Council,28/02/2018,Resources and Housing,Facilities Management  ,Supplies and Services,Other Hired And Contracted Services,265,18-Jan-2018,1802-00383,0.00,245.56,R,Adt Leeds Cc,Yes
Http://opendatacommunities.org/id/metropolitan-district-council/leeds,Leeds City Council,28/02/2018,Resources and Housing,Facilities Management  ,Supplies and Services,Other Hired And Contracted Services,265,18-Jan-2018,1802-00384,0.00,112.00,R,Adt Leeds Cc,Yes
Http://opendatacommunities.org/id/metropolitan-district-council/leeds,Leeds City Council as Accountable Body,28/02/2018,Social Services Pooled Budgets,Jcs For People With Learning Disabilitie,Third Party Payments,Sheltered Accommodation,569,02-Feb-2018,1802-00385,0.00,1332.20,R,Adult Placement Services,No
Http://opendatacommunities.org/id/metropolitan-district-council/leeds,Leeds City Council as Accountable Body,28/02/2018,Social Services Pooled Budgets,Jcs For People With Learning Disabilitie,Third Party Payments,Sheltered Accommodation,569,15-Feb-2018,1802-00386,0.00,461.37,R,Adult Placement Services,No
Http://opendatacommunities.org/id/metropolitan-district-council/leeds,Leeds City Council as Accountable Body,28/02/2018,Social Services Pooled Budgets,Jcs For People With Learning Disabilitie,Third Party Payments,Sheltered Accommodation,569,15-Feb-2018,1802-00387,0.00,823.81,R,Adult Placement Services,No
Http://opendatacommunities.org/id/metropolitan-district-council/leeds,Leeds City Council as Accountable Body,28/02/2018,Social Services Pooled Budgets,Jcs For People With Learning Disabilitie,Third Party Payments,Sheltered Accommodation,569,21-Feb-2018,1802-00388,0.00,1332.20,R,Adult Placement Services,No
Http://opendatacommunities.org/id/metropolitan-district-council/leeds,Leeds City Council as Accountable Body,28/02/2018,Social Services Pooled Budgets,Jcs For People With Learning Disabilitie,Third Party Payments,Sheltered Accommodation,569,22-Feb-2018,1802-00389,0.00,1332.20,R,Adult Placement Services,No
Http://opendatacommunities.org/id/metropolitan-district-council/leeds,Leeds City Council,28/02/2018,City Development,Recreation,Supplies and Services,External Audit Fees,261,02-Feb-2018,1802-00390,0.00,130.00,R,Advance Stocks Ltd,No
Http://opendatacommunities.org/id/metropolitan-district-council/leeds,Leeds City Council,28/02/2018,City Development,Libraries  Arts & Heritage,Supplies and Services,External Audit Fees,261,13-Feb-2018,1802-00391,0.00,90.00,R,Advance Stocks Ltd,No
Http://opendatacommunities.org/id/metropolitan-district-council/leeds,Leeds City Council,28/02/2018,City Development,Recreation,Supplies and Services,External Audit Fees,261,23-Feb-2018,1802-00392,0.00,85.00,R,Advance Stocks Ltd,No
Http://opendatacommunities.org/id/metropolitan-district-council/leeds,Leeds City Council,28/02/2018,City Development,Libraries  Arts & Heritage,Supplies and Services,External Audit Fees,261,23-Feb-2018,1802-00393,0.00,90.00,R,Advance Stocks Ltd,No
Http://opendatacommunities.org/id/metropolitan-district-council/leeds,Leeds City Council,28/02/2018,City Development,Libraries  Arts & Heritage,Supplies and Services,External Audit Fees,261,23-Feb-2018,1802-00394,0.00,90.00,R,Advance Stocks Ltd,No
Http://opendatacommunities.org/id/metropolitan-district-council/leeds,Leeds City Council,28/02/2018,City Development,Recreation,Supplies and Services,External Audit Fees,261,23-Feb-2018,1802-00395,0.00,130.00,R,Advance Stocks Ltd,No
Http://opendatacommunities.org/id/metropolitan-district-council/leeds,Leeds City Council,28/02/2018,Adults and Health,Home Care Services,Supplies and Services,Computer Software & Equipment,214,09-Feb-2018,1802-00396,0.00,15351.88,R,Advanced Health And Care Ltd,No
Http://opendatacommunities.org/id/metropolitan-district-council/leeds,Leeds City Council,28/02/2018,Resources and Housing,Leeds Building Services,Supplies and Services,Operational Materials,205,01-Feb-2018,1802-00397,0.00,139.00,R,Advanced Labelling Limited,No
Http://opendatacommunities.org/id/metropolitan-district-council/leeds,Leeds City Council,28/02/2018,Children and Families,Safeguarding Targeted & Specialist  ,Supplies and Services,Operational Materials,205,29-Jan-2018,1802-00398,0.00,371.98,R,Adventure Climb Rescue,Yes
Http://opendatacommunities.org/id/metropolitan-district-council/leeds,Leeds City Council,28/02/2018,Children and Families,Safeguarding Targeted & Specialist  ,Supplies and Services,Operational Materials,205,30-Jan-2018,1802-00399,0.00,281.00,R,Adventure Climb Rescue,Yes
Http://opendatacommunities.org/id/metropolitan-district-council/leeds,Leeds City Council as Accountable Body,28/02/2018,Social Services Pooled Budgets,Jcs For People With Learning Disabilitie,Third Party Payments,Residential,580,07-Feb-2018,1802-00400,0.00,29796.99,R,Advitam Ltd,No
Http://opendatacommunities.org/id/metropolitan-district-council/leeds,Leeds City Council,28/02/2018,Adults and Health,Services For Adults Under 65 Mental/Dis,Third Party Payments,Payments To Voluntary Organisations,561,06-Feb-2018,1802-00401,0.00,441.53,R,Advonet,No
Http://opendatacommunities.org/id/metropolitan-district-council/leeds,Leeds City Council,28/02/2018,Adults and Health,Services For Adults Under 65 Mental/Dis,Third Party Payments,Payments To Voluntary Organisations,561,06-Feb-2018,1802-00402,0.00,9678.25,R,Advonet,No
Http://opendatacommunities.org/id/metropolitan-district-council/leeds,Leeds City Council,28/02/2018,Adults and Health,Services For Adults Under 65 Mental/Dis,Third Party Payments,Payments To Voluntary Organisations,561,06-Feb-2018,1802-00403,0.00,9702.72,R,Advonet,No
Http://opendatacommunities.org/id/metropolitan-district-council/leeds,Leeds City Council,28/02/2018,Adults and Health,Services For Adults Under 65 Mental/Dis,Third Party Payments,Payments To Voluntary Organisations,561,07-Feb-2018,1802-00404,0.00,13031.70,R,Advonet,No
Http://opendatacommunities.org/id/metropolitan-district-council/leeds,Leeds City Council,28/02/2018,Adults and Health,Services For Adults Under 65 Mental/Dis,Third Party Payments,Payments To Voluntary Organisations,561,09-Feb-2018,1802-00405,0.00,12277.44,R,Advonet,No
Http://opendatacommunities.org/id/metropolitan-district-council/leeds,Leeds City Council,28/02/2018,Adults and Health,Services For Adults Under 65 Mental/Dis,Third Party Payments,Payments To Voluntary Organisations,561,09-Feb-2018,1802-00406,0.00,13024.17,R,Advonet,No
Http://opendatacommunities.org/id/metropolitan-district-council/leeds,Leeds City Council,28/02/2018,Adults and Health,Services For Adults Under 65 Mental/Dis,Third Party Payments,Payments To Voluntary Organisations,561,09-Feb-2018,1802-00407,0.00,613.90,R,Advonet,No
Http://opendatacommunities.org/id/metropolitan-district-council/leeds,Leeds City Council,28/02/2018,Communities and Environment,Communities,Supplies and Services,Other Hired And Contracted Services,265,13-Feb-2018,1802-00408,0.00,650.00,R,Advonet,No
Http://opendatacommunities.org/id/metropolitan-district-council/leeds,Leeds City Council,28/02/2018,Children and Families,Safeguarding Targeted & Specialist,Third Party Payments,Placement Support,550,13-Feb-2018,1802-00409,0.00,865.20,R,Advonet,No
Http://opendatacommunities.org/id/metropolitan-district-council/leeds,Leeds City Council,28/02/2018,Children and Families,Safeguarding Targeted & Specialist,Third Party Payments,Placement Support,550,13-Feb-2018,1802-00410,0.00,204.90,R,Advonet,No
Http://opendatacommunities.org/id/metropolitan-district-council/leeds,Leeds City Council as Accountable Body,28/02/2018,Social Services Pooled Budgets,Jcs For People With Learning Disabilitie,Third Party Payments,Other Agency Services,561,20-Feb-2018,1802-00411,0.00,32.40,R,Advonet,No
Http://opendatacommunities.org/id/metropolitan-district-council/leeds,Leeds City Council as Accountable Body,28/02/2018,Social Services Pooled Budgets,Jcs For People With Learning Disabilitie,Third Party Payments,Other Agency Services,561,20-Feb-2018,1802-00412,0.00,17.40,R,Advonet,No
Http://opendatacommunities.org/id/metropolitan-district-council/leeds,Leeds City Council as Accountable Body,28/02/2018,Social Services Pooled Budgets,Jcs For People With Learning Disabilitie,Third Party Payments,Other Agency Services,561,20-Feb-2018,1802-00413,0.00,7.50,R,Advonet,No
Http://opendatacommunities.org/id/metropolitan-district-council/leeds,Leeds City Council as Accountable Body,28/02/2018,Social Services Pooled Budgets,Jcs For People With Learning Disabilitie,Third Party Payments,Other Agency Services,561,20-Feb-2018,1802-00414,0.00,60.00,R,Advonet,No
Http://opendatacommunities.org/id/metropolitan-district-council/leeds,Leeds City Council as Accountable Body,28/02/2018,Social Services Pooled Budgets,Jcs For People With Learning Disabilitie,Third Party Payments,Other Agency Services,561,20-Feb-2018,1802-00415,0.00,384.90,R,Advonet,No
Http://opendatacommunities.org/id/metropolitan-district-council/leeds,Leeds City Council as Accountable Body,28/02/2018,Social Services Pooled Budgets,Jcs For People With Learning Disabilitie,Third Party Payments,Other Agency Services,561,20-Feb-2018,1802-00416,0.00,552.30,R,Advonet,No
Http://opendatacommunities.org/id/metropolitan-district-council/leeds,Leeds City Council,28/02/2018,City Development,Highways,Capital,Other Costs,7,07-Feb-2018,1802-00417,0.00,31229.96,C,Aecom Limited,No
Http://opendatacommunities.org/id/metropolitan-district-council/leeds,Leeds City Council,28/02/2018,City Development,Economic Development  ,Transport,Public Transport Expenses,310,18-Jan-2018,1802-00418,0.00,680.61,R,Aerling 2lgzhw Podlew,Yes
Http://opendatacommunities.org/id/metropolitan-district-council/leeds,Leeds City Council,28/02/2018,Resources and Housing,HRA Council Housing Growth Programme,Capital,Other Costs,7,02-Feb-2018,1802-00419,0.00,177351.00,C,Affinity Sutton Homes Ltd,No
Http://opendatacommunities.org/id/metropolitan-district-council/leeds,Leeds City Council,28/02/2018,Adults and Health,Assessment And Care Management,Third Party Payments,Home Care,568,01-Feb-2018,1802-00420,0.00,511.36,R,Affinity Trust,No
Http://opendatacommunities.org/id/metropolitan-district-council/leeds,Leeds City Council,28/02/2018,Adults and Health,Services For Adults Under 65 Mental/Dis,Third Party Payments,Home Care,568,02-Feb-2018,1802-00421,0.00,319.60,R,Affinity Trust,No
Http://opendatacommunities.org/id/metropolitan-district-council/leeds,Leeds City Council,28/02/2018,Adults and Health,Services For Older People Under 65 P/Dis,Third Party Payments,Home Care,568,02-Feb-2018,1802-00422,0.00,134.56,R,Affinity Trust,No
Http://opendatacommunities.org/id/metropolitan-district-council/leeds,Leeds City Council,28/02/2018,Adults and Health,Services For Older People Under 65 P/Dis,Third Party Payments,Home Care,568,02-Feb-2018,1802-00423,0.00,403.68,R,Affinity Trust,No
Http://opendatacommunities.org/id/metropolitan-district-council/leeds,Leeds City Council as Accountable Body,28/02/2018,Social Services Pooled Budgets,Jcs For People With Learning Disabilitie,Third Party Payments,Home Care,568,02-Feb-2018,1802-00424,0.00,479.40,R,Affinity Trust,No
Http://opendatacommunities.org/id/metropolitan-district-council/leeds,Leeds City Council as Accountable Body,28/02/2018,Social Services Pooled Budgets,Jcs For People With Learning Disabilitie,Third Party Payments,Home Care,568,02-Feb-2018,1802-00425,0.00,408.00,R,Affinity Trust,No
Http://opendatacommunities.org/id/metropolitan-district-council/leeds,Leeds City Council as Accountable Body,28/02/2018,Social Services Pooled Budgets,Jcs For People With Learning Disabilitie,Third Party Payments,Home Care,568,02-Feb-2018,1802-00426,0.00,2588.76,R,Affinity Trust,No
Http://opendatacommunities.org/id/metropolitan-district-council/leeds,Leeds City Council as Accountable Body,28/02/2018,Social Services Pooled Budgets,Jcs For People With Learning Disabilitie,Third Party Payments,Home Care,568,02-Feb-2018,1802-00427,0.00,102.16,R,Affinity Trust,No
Http://opendatacommunities.org/id/metropolitan-district-council/leeds,Leeds City Council as Accountable Body,28/02/2018,Social Services Pooled Budgets,Jcs For People With Learning Disabilitie,Third Party Payments,Home Care,568,02-Feb-2018,1802-00428,0.00,941.92,R,Affinity Trust,No
Http://opendatacommunities.org/id/metropolitan-district-council/leeds,Leeds City Council as Accountable Body,28/02/2018,Social Services Pooled Budgets,Jcs For People With Learning Disabilitie,Third Party Payments,Home Care,568,02-Feb-2018,1802-00429,0.00,958.80,R,Affinity Trust,No
Http://opendatacommunities.org/id/metropolitan-district-council/leeds,Leeds City Council as Accountable Body,28/02/2018,Social Services Pooled Budgets,Jcs For People With Learning Disabilitie,Third Party Payments,Home Care,568,02-Feb-2018,1802-00430,0.00,383.52,R,Affinity Trust,No
Http://opendatacommunities.org/id/metropolitan-district-council/leeds,Leeds City Council as Accountable Body,28/02/2018,Social Services Pooled Budgets,Jcs For People With Learning Disabilitie,Third Party Payments,Home Care,568,02-Feb-2018,1802-00431,0.00,383.52,R,Affinity Trust,No
Http://opendatacommunities.org/id/metropolitan-district-council/leeds,Leeds City Council,28/02/2018,Adults and Health,Assessment And Care Management,Third Party Payments,Home Care,568,02-Feb-2018,1802-00432,0.00,543.32,R,Affinity Trust,No
Http://opendatacommunities.org/id/metropolitan-district-council/leeds,Leeds City Council as Accountable Body,28/02/2018,Social Services Pooled Budgets,Jcs For People With Learning Disabilitie,Third Party Payments,Home Care,568,02-Feb-2018,1802-00433,0.00,1050.00,R,Affinity Trust,No
Http://opendatacommunities.org/id/metropolitan-district-council/leeds,Leeds City Council,28/02/2018,Adults and Health,Services For Older People Under 65 P/Dis,Third Party Payments,Home Care,568,02-Feb-2018,1802-00434,0.00,526.68,R,Affinity Trust,No
Http://opendatacommunities.org/id/metropolitan-district-council/leeds,Leeds City Council as Accountable Body,28/02/2018,Social Services Pooled Budgets,Jcs For People With Learning Disabilitie,Third Party Payments,Home Care,568,02-Feb-2018,1802-00435,0.00,3446.80,R,Affinity Trust,No
Http://opendatacommunities.org/id/metropolitan-district-council/leeds,Leeds City Council as Accountable Body,28/02/2018,Social Services Pooled Budgets,Jcs For People With Learning Disabilitie,Third Party Payments,Day Centre,564,02-Feb-2018,1802-00436,0.00,938.56,R,Affinity Trust,No
Http://opendatacommunities.org/id/metropolitan-district-council/leeds,Leeds City Council as Accountable Body,28/02/2018,Social Services Pooled Budgets,Jcs For People With Learning Disabilitie,Third Party Payments,Home Care,568,02-Feb-2018,1802-00437,0.00,525.72,R,Affinity Trust,No
Http://opendatacommunities.org/id/metropolitan-district-council/leeds,Leeds City Council as Accountable Body,28/02/2018,Social Services Pooled Budgets,Jcs For People With Learning Disabilitie,Third Party Payments,Day Centre,564,02-Feb-2018,1802-00438,0.00,3236.13,R,Affinity Trust,No
Http://opendatacommunities.org/id/metropolitan-district-council/leeds,Leeds City Council as Accountable Body,28/02/2018,Social Services Pooled Budgets,Jcs For People With Learning Disabilitie,Third Party Payments,Home Care,568,02-Feb-2018,1802-00439,0.00,1317.58,R,Affinity Trust,No
Http://opendatacommunities.org/id/metropolitan-district-council/leeds,Leeds City Council as Accountable Body,28/02/2018,Social Services Pooled Budgets,Jcs For People With Learning Disabilitie,Third Party Payments,Day Centre,564,02-Feb-2018,1802-00440,0.00,714.78,R,Affinity Trust,No
Http://opendatacommunities.org/id/metropolitan-district-council/leeds,Leeds City Council as Accountable Body,28/02/2018,Social Services Pooled Budgets,Jcs For People With Learning Disabilitie,Third Party Payments,Day Centre,564,02-Feb-2018,1802-00441,0.00,2346.40,R,Affinity Trust,No
Http://opendatacommunities.org/id/metropolitan-district-council/leeds,Leeds City Council as Accountable Body,28/02/2018,Social Services Pooled Budgets,Jcs For People With Learning Disabilitie,Third Party Payments,Day Centre,564,02-Feb-2018,1802-00442,0.00,1234.62,R,Affinity Trust,No
Http://opendatacommunities.org/id/metropolitan-district-council/leeds,Leeds City Council as Accountable Body,28/02/2018,Social Services Pooled Budgets,Jcs For People With Learning Disabilitie,Third Party Payments,Home Care,568,20-Feb-2018,1802-00443,0.00,2580.77,R,Affinity Trust,No
Http://opendatacommunities.org/id/metropolitan-district-council/leeds,Leeds City Council as Accountable Body,28/02/2018,Social Services Pooled Budgets,Jcs For People With Learning Disabilitie,Third Party Payments,Home Care,568,20-Feb-2018,1802-00444,0.00,383.52,R,Affinity Trust,No
Http://opendatacommunities.org/id/metropolitan-district-council/leeds,Leeds City Council,28/02/2018,Adults and Health,Services For Adults Under 65 Mental/Dis,Third Party Payments,Home Care,568,20-Feb-2018,1802-00445,0.00,591.26,R,Affinity Trust,No
Http://opendatacommunities.org/id/metropolitan-district-council/leeds,Leeds City Council,28/02/2018,Adults and Health,Services For Older People - 65 And Over,Third Party Payments,Home Care,568,20-Feb-2018,1802-00446,0.00,874.64,R,Affinity Trust,No
Http://opendatacommunities.org/id/metropolitan-district-council/leeds,Leeds City Council,28/02/2018,Adults and Health,Services For Older People Under 65 P/Dis,Third Party Payments,Home Care,568,20-Feb-2018,1802-00447,0.00,455.43,R,Affinity Trust,No
Http://opendatacommunities.org/id/metropolitan-district-council/leeds,Leeds City Council as Accountable Body,28/02/2018,Social Services Pooled Budgets,Jcs For People With Learning Disabilitie,Third Party Payments,Home Care,568,22-Feb-2018,1802-00448,0.00,479.40,R,Affinity Trust,No
Http://opendatacommunities.org/id/metropolitan-district-council/leeds,Leeds City Council as Accountable Body,28/02/2018,Social Services Pooled Budgets,Jcs For People With Learning Disabilitie,Third Party Payments,Home Care,568,22-Feb-2018,1802-00449,0.00,870.91,R,Affinity Trust,No
Http://opendatacommunities.org/id/metropolitan-district-council/leeds,Leeds City Council as Accountable Body,28/02/2018,Social Services Pooled Budgets,Jcs For People With Learning Disabilitie,Third Party Payments,Home Care,568,22-Feb-2018,1802-00450,0.00,351.56,R,Affinity Trust,No
Http://opendatacommunities.org/id/metropolitan-district-council/leeds,Leeds City Council,28/02/2018,Adults and Health,Services For Adults Under 65 Mental/Dis,Third Party Payments,Home Care,568,22-Feb-2018,1802-00451,0.00,319.60,R,Affinity Trust,No
Http://opendatacommunities.org/id/metropolitan-district-council/leeds,Leeds City Council,28/02/2018,Adults and Health,Services For Older People Under 65 P/Dis,Third Party Payments,Home Care,568,22-Feb-2018,1802-00452,0.00,100.92,R,Affinity Trust,No
Http://opendatacommunities.org/id/metropolitan-district-council/leeds,Leeds City Council,28/02/2018,Adults and Health,Services For Older People Under 65 P/Dis,Third Party Payments,Home Care,568,22-Feb-2018,1802-00453,0.00,403.68,R,Affinity Trust,No
Http://opendatacommunities.org/id/metropolitan-district-council/leeds,Leeds City Council as Accountable Body,28/02/2018,Social Services Pooled Budgets,Jcs For People With Learning Disabilitie,Third Party Payments,Home Care,568,22-Feb-2018,1802-00454,0.00,603.50,R,Affinity Trust,No
Http://opendatacommunities.org/id/metropolitan-district-council/leeds,Leeds City Council as Accountable Body,28/02/2018,Social Services Pooled Budgets,Jcs For People With Learning Disabilitie,Third Party Payments,Day Centre,564,22-Feb-2018,1802-00455,0.00,312.48,R,Affinity Trust,No
Http://opendatacommunities.org/id/metropolitan-district-council/leeds,Leeds City Council as Accountable Body,28/02/2018,Social Services Pooled Budgets,Jcs For People With Learning Disabilitie,Third Party Payments,Home Care,568,22-Feb-2018,1802-00456,0.00,1270.50,R,Affinity Trust,No
Http://opendatacommunities.org/id/metropolitan-district-council/leeds,Leeds City Council as Accountable Body,28/02/2018,Social Services Pooled Budgets,Jcs For People With Learning Disabilitie,Third Party Payments,Home Care,568,22-Feb-2018,1802-00457,0.00,1034.43,R,Affinity Trust,No
Http://opendatacommunities.org/id/metropolitan-district-council/leeds,Leeds City Council as Accountable Body,28/02/2018,Social Services Pooled Budgets,Jcs For People With Learning Disabilitie,Third Party Payments,Home Care,568,22-Feb-2018,1802-00458,0.00,2357.05,R,Affinity Trust,No
Http://opendatacommunities.org/id/metropolitan-district-council/leeds,Leeds City Council as Accountable Body,28/02/2018,Social Services Pooled Budgets,Jcs For People With Learning Disabilitie,Third Party Payments,Home Care,568,22-Feb-2018,1802-00459,0.00,143.82,R,Affinity Trust,No
Http://opendatacommunities.org/id/metropolitan-district-council/leeds,Leeds City Council as Accountable Body,28/02/2018,Social Services Pooled Budgets,Jcs For People With Learning Disabilitie,Third Party Payments,Home Care,568,22-Feb-2018,1802-00460,0.00,639.20,R,Affinity Trust,No
Http://opendatacommunities.org/id/metropolitan-district-council/leeds,Leeds City Council as Accountable Body,28/02/2018,Social Services Pooled Budgets,Jcs For People With Learning Disabilitie,Third Party Payments,Home Care,568,22-Feb-2018,1802-00461,0.00,204.00,R,Affinity Trust,No
Http://opendatacommunities.org/id/metropolitan-district-council/leeds,Leeds City Council as Accountable Body,28/02/2018,Social Services Pooled Budgets,Jcs For People With Learning Disabilitie,Third Party Payments,Home Care,568,22-Feb-2018,1802-00462,0.00,974.78,R,Affinity Trust,No
Http://opendatacommunities.org/id/metropolitan-district-council/leeds,Leeds City Council as Accountable Body,28/02/2018,Social Services Pooled Budgets,Jcs For People With Learning Disabilitie,Third Party Payments,Home Care,568,22-Feb-2018,1802-00463,0.00,2956.30,R,Affinity Trust,No
Http://opendatacommunities.org/id/metropolitan-district-council/leeds,Leeds City Council as Accountable Body,28/02/2018,Social Services Pooled Budgets,Jcs For People With Learning Disabilitie,Third Party Payments,Home Care,568,22-Feb-2018,1802-00464,0.00,306.48,R,Affinity Trust,No
Http://opendatacommunities.org/id/metropolitan-district-council/leeds,Leeds City Council as Accountable Body,28/02/2018,Social Services Pooled Budgets,Jcs For People With Learning Disabilitie,Third Party Payments,Home Care,568,22-Feb-2018,1802-00465,0.00,941.92,R,Affinity Trust,No
Http://opendatacommunities.org/id/metropolitan-district-council/leeds,Leeds City Council as Accountable Body,28/02/2018,Social Services Pooled Budgets,Jcs For People With Learning Disabilitie,Third Party Payments,Home Care,568,22-Feb-2018,1802-00466,0.00,255.68,R,Affinity Trust,No
Http://opendatacommunities.org/id/metropolitan-district-council/leeds,Leeds City Council as Accountable Body,28/02/2018,Social Services Pooled Budgets,Jcs For People With Learning Disabilitie,Third Party Payments,Home Care,568,22-Feb-2018,1802-00467,0.00,799.00,R,Affinity Trust,No
Http://opendatacommunities.org/id/metropolitan-district-council/leeds,Leeds City Council as Accountable Body,28/02/2018,Social Services Pooled Budgets,Jcs For People With Learning Disabilitie,Third Party Payments,Home Care,568,22-Feb-2018,1802-00468,0.00,239.70,R,Affinity Trust,No
Http://opendatacommunities.org/id/metropolitan-district-council/leeds,Leeds City Council as Accountable Body,28/02/2018,Social Services Pooled Budgets,Jcs For People With Learning Disabilitie,Third Party Payments,Home Care,568,22-Feb-2018,1802-00469,0.00,383.52,R,Affinity Trust,No
Http://opendatacommunities.org/id/metropolitan-district-council/leeds,Leeds City Council as Accountable Body,28/02/2018,Social Services Pooled Budgets,Jcs For People With Learning Disabilitie,Third Party Payments,Home Care,568,22-Feb-2018,1802-00470,0.00,787.50,R,Affinity Trust,No
Http://opendatacommunities.org/id/metropolitan-district-council/leeds,Leeds City Council as Accountable Body,28/02/2018,Social Services Pooled Budgets,Jcs For People With Learning Disabilitie,Third Party Payments,Home Care,568,22-Feb-2018,1802-00471,0.00,1170.00,R,Affinity Trust,No
Http://opendatacommunities.org/id/metropolitan-district-council/leeds,Leeds City Council as Accountable Body,28/02/2018,Social Services Pooled Budgets,Jcs For People With Learning Disabilitie,Third Party Payments,Home Care,568,22-Feb-2018,1802-00472,0.00,1824.60,R,Affinity Trust,No
Http://opendatacommunities.org/id/metropolitan-district-council/leeds,Leeds City Council as Accountable Body,28/02/2018,Social Services Pooled Budgets,Jcs For People With Learning Disabilitie,Third Party Payments,Home Care,568,22-Feb-2018,1802-00473,0.00,1228.29,R,Affinity Trust,No
Http://opendatacommunities.org/id/metropolitan-district-council/leeds,Leeds City Council as Accountable Body,28/02/2018,Social Services Pooled Budgets,Jcs For People With Learning Disabilitie,Third Party Payments,Day Centre,564,22-Feb-2018,1802-00474,0.00,1935.78,R,Affinity Trust,No
Http://opendatacommunities.org/id/metropolitan-district-council/leeds,Leeds City Council as Accountable Body,28/02/2018,Social Services Pooled Budgets,Jcs For People With Learning Disabilitie,Third Party Payments,Day Centre,564,22-Feb-2018,1802-00475,0.00,979.29,R,Affinity Trust,No
Http://opendatacommunities.org/id/metropolitan-district-council/leeds,Leeds City Council as Accountable Body,28/02/2018,Social Services Pooled Budgets,Jcs For People With Learning Disabilitie,Third Party Payments,Home Care,568,22-Feb-2018,1802-00476,0.00,1059.39,R,Affinity Trust,No
Http://opendatacommunities.org/id/metropolitan-district-council/leeds,Leeds City Council,28/02/2018,Adults and Health,Assessment And Care Management,Third Party Payments,Home Care,568,23-Feb-2018,1802-00477,0.00,495.38,R,Affinity Trust,No
Http://opendatacommunities.org/id/metropolitan-district-council/leeds,Leeds City Council,28/02/2018,Adults and Health,Assessment And Care Management,Third Party Payments,Home Care,568,23-Feb-2018,1802-00478,0.00,383.52,R,Affinity Trust,No
Http://opendatacommunities.org/id/metropolitan-district-council/leeds,Leeds City Council as Accountable Body,28/02/2018,Social Services Pooled Budgets,Jcs For People With Learning Disabilitie,Third Party Payments,Home Care,568,27-Feb-2018,1802-00479,0.00,63.90,R,Affinity Trust,No
Http://opendatacommunities.org/id/metropolitan-district-council/leeds,Leeds City Council as Accountable Body,28/02/2018,Social Services Pooled Budgets,Jcs For People With Learning Disabilitie,Third Party Payments,Home Care,568,27-Feb-2018,1802-00480,0.00,306.48,R,Affinity Trust,No
Http://opendatacommunities.org/id/metropolitan-district-council/leeds,Leeds City Council as Accountable Body,28/02/2018,Social Services Pooled Budgets,Jcs For People With Learning Disabilitie,Third Party Payments,Home Care,568,27-Feb-2018,1802-00481,0.00,941.92,R,Affinity Trust,No
Http://opendatacommunities.org/id/metropolitan-district-council/leeds,Leeds City Council as Accountable Body,28/02/2018,Social Services Pooled Budgets,Jcs For People With Learning Disabilitie,Third Party Payments,Home Care,568,27-Feb-2018,1802-00482,0.00,525.72,R,Affinity Trust,No
Http://opendatacommunities.org/id/metropolitan-district-council/leeds,Leeds City Council as Accountable Body,28/02/2018,Social Services Pooled Budgets,Jcs For People With Learning Disabilitie,Third Party Payments,Home Care,568,27-Feb-2018,1802-00483,0.00,402.24,R,Affinity Trust,No
Http://opendatacommunities.org/id/metropolitan-district-council/leeds,Leeds City Council as Accountable Body,28/02/2018,Social Services Pooled Budgets,Jcs For People With Learning Disabilitie,Third Party Payments,Home Care,568,27-Feb-2018,1802-00484,0.00,918.85,R,Affinity Trust,No
Http://opendatacommunities.org/id/metropolitan-district-council/leeds,Leeds City Council as Accountable Body,28/02/2018,Social Services Pooled Budgets,Jcs For People With Learning Disabilitie,Third Party Payments,Home Care,568,27-Feb-2018,1802-00485,0.00,2524.84,R,Affinity Trust,No
Http://opendatacommunities.org/id/metropolitan-district-council/leeds,Leeds City Council as Accountable Body,28/02/2018,Social Services Pooled Budgets,Jcs For People With Learning Disabilitie,Third Party Payments,Day Centre,564,28-Feb-2018,1802-00486,0.00,17538.00,R,Affinity Trust,No
Http://opendatacommunities.org/id/metropolitan-district-council/leeds,Leeds City Council as Accountable Body,28/02/2018,Social Services Pooled Budgets,Jcs For People With Learning Disabilitie,Third Party Payments,Day Centre,564,28-Feb-2018,1802-00487,0.00,14162.33,R,Affinity Trust,No
Http://opendatacommunities.org/id/metropolitan-district-council/leeds,Leeds City Council as Accountable Body,28/02/2018,Social Services Pooled Budgets,Jcs For People With Learning Disabilitie,Third Party Payments,Sheltered Accommodation,569,07-Feb-2018,1802-00488,0.00,193906.63,R,Affinity Trust North Divisional Office,No
Http://opendatacommunities.org/id/metropolitan-district-council/leeds,Leeds City Council,28/02/2018,Communities and Environment,Parks And Countryside  ,Supplies and Services,Operational Materials,205,03-Jan-2018,1802-00489,0.00,950.00,R,Afi Uplift Ltd,Yes
Http://opendatacommunities.org/id/metropolitan-district-council/leeds,Leeds City Council,28/02/2018,Communities and Environment,Parks And Countryside  ,Supplies and Services,Operational Materials,205,04-Jan-2018,1802-00490,0.00,570.00,R,Afi Uplift Ltd,Yes
Http://opendatacommunities.org/id/metropolitan-district-council/leeds,Leeds City Council,28/02/2018,Communities and Environment,Parks And Countryside  ,Supplies and Services,Operational Materials,205,04-Jan-2018,1802-00491,0.00,950.00,R,Afi Uplift Ltd,Yes
Http://opendatacommunities.org/id/metropolitan-district-council/leeds,Leeds City Council,28/02/2018,Communities and Environment,Parks And Countryside  ,Supplies and Services,Bought In Professional Services,277,17-Jan-2018,1802-00492,0.00,912.00,R,Afi Uplift Ltd,Yes
Http://opendatacommunities.org/id/metropolitan-district-council/leeds,Leeds City Council,28/02/2018,Communities and Environment,Parks and Countryside,Transport,Hire Of Movable Plant & Machinery,315,27-Feb-2018,1802-00493,0.00,950.00,R,Afi-Uplift Limited,No
Http://opendatacommunities.org/id/metropolitan-district-council/leeds,Leeds City Council,28/02/2018,Children and Families,Learning Skills & Universal,Supplies and Services,Teaching Materials,202,21-Feb-2018,1802-00494,0.00,225.00,R,Aid Training & Operations Ltd,No
Http://opendatacommunities.org/id/metropolitan-district-council/leeds,Leeds City Council as Accountable Body,28/02/2018,Social Services Pooled Budgets,Leeds Community Equip Store Pooled Budgt,Supplies and Services,Other Equipment,203,02-Feb-2018,1802-00495,0.00,84.74,R,Aidapt Bathrooms Ltd,No
Http://opendatacommunities.org/id/metropolitan-district-council/leeds,Leeds City Council as Accountable Body,28/02/2018,Social Services Pooled Budgets,Leeds Community Equip Store Pooled Budgt,Supplies and Services,Other Equipment,203,13-Feb-2018,1802-00496,0.00,1547.40,R,Aidapt Bathrooms Ltd,No
Http://opendatacommunities.org/id/metropolitan-district-council/leeds,Leeds City Council as Accountable Body,28/02/2018,Social Services Pooled Budgets,Leeds Community Equip Store Pooled Budgt,Supplies and Services,Other Equipment,203,23-Feb-2018,1802-00497,0.00,471.34,R,Aidapt Bathrooms Ltd,No
Http://opendatacommunities.org/id/metropolitan-district-council/leeds,Leeds City Council as Accountable Body,28/02/2018,Social Services Pooled Budgets,Leeds Community Equip Store Pooled Budgt,Supplies and Services,Other Equipment,203,23-Feb-2018,1802-00498,0.00,132.50,R,Aidapt Bathrooms Ltd,No
Http://opendatacommunities.org/id/metropolitan-district-council/leeds,Leeds City Council as Accountable Body,28/02/2018,Social Services Pooled Budgets,Leeds Community Equip Store Pooled Budgt,Supplies and Services,Other Equipment,203,28-Feb-2018,1802-00499,0.00,299.60,R,Aidapt Bathrooms Ltd,No
Http://opendatacommunities.org/id/metropolitan-district-council/leeds,Leeds City Council as Accountable Body,28/02/2018,Social Services Pooled Budgets,Leeds Community Equip Store Pooled Budgt,Supplies and Services,Other Equipment,203,28-Feb-2018,1802-00500,0.00,130.00,R,Aidapt Bathrooms Ltd,No
Http://opendatacommunities.org/id/metropolitan-district-council/leeds,Leeds City Council as Accountable Body,28/02/2018,Social Services Pooled Budgets,Leeds Community Equip Store Pooled Budgt,Supplies and Services,Other Equipment,203,28-Feb-2018,1802-00501,0.00,153.90,R,Aidapt Bathrooms Ltd,No
Http://opendatacommunities.org/id/metropolitan-district-council/leeds,Leeds City Council as Accountable Body,28/02/2018,Social Services Pooled Budgets,Leeds Community Equip Store Pooled Budgt,Supplies and Services,Other Equipment,203,28-Feb-2018,1802-00502,0.00,256.50,R,Aidapt Bathrooms Ltd,No
Http://opendatacommunities.org/id/metropolitan-district-council/leeds,Leeds City Council as Accountable Body,28/02/2018,Social Services Pooled Budgets,Leeds Community Equip Store Pooled Budgt,Supplies and Services,Other Equipment,203,28-Feb-2018,1802-00503,0.00,126.72,R,Aidapt Bathrooms Ltd,No
Http://opendatacommunities.org/id/metropolitan-district-council/leeds,Leeds City Council,28/02/2018,Communities and Environment,Communities,Supplies and Services,'Well Being' Large Grants Projects,230,07-Feb-2018,1802-00504,0.00,3423.00,R,Aim Education Leeds Limited,No
Http://opendatacommunities.org/id/metropolitan-district-council/leeds,Leeds City Council,28/02/2018,Communities and Environment,Communities,Supplies and Services,'Well Being' Large Grants Projects,230,07-Feb-2018,1802-00505,0.00,3000.00,R,Aim Education Leeds Limited,No
Http://opendatacommunities.org/id/metropolitan-district-council/leeds,Leeds City Council,28/02/2018,Children and Families,Safeguarding Targeted & Specialist,Supplies and Services,Teaching Materials,202,02-Feb-2018,1802-00506,0.00,91.00,R,Aim Project,No
Http://opendatacommunities.org/id/metropolitan-district-council/leeds,Leeds City Council,28/02/2018,City Development,Highways,Employees,Training & Development,70,16-Feb-2018,1802-00507,0.00,2400.00,R,Aimsun Ltd,No
Http://opendatacommunities.org/id/metropolitan-district-council/leeds,Leeds City Council,28/02/2018,City Development,Highways,Supplies and Services,Computer Software & Equipment,214,16-Feb-2018,1802-00508,0.00,9265.00,R,Aimsun Ltd,No
Http://opendatacommunities.org/id/metropolitan-district-council/leeds,Leeds City Council,28/02/2018,Resources and Housing,Leeds Building Services,Supplies and Services,Operational Materials,205,02-Feb-2018,1802-00509,0.00,60.00,R,Air Conditioning Accessories,No
Http://opendatacommunities.org/id/metropolitan-district-council/leeds,Leeds City Council,28/02/2018,Resources and Housing,Leeds Building Services,Supplies and Services,Operational Furniture And Equipment,203,02-Feb-2018,1802-00510,0.00,150.00,R,Air Conditioning Accessories,No
Http://opendatacommunities.org/id/metropolitan-district-council/leeds,Leeds City Council,28/02/2018,Resources and Housing,Leeds Building Services,Supplies and Services,Operational Materials,205,05-Feb-2018,1802-00511,0.00,4.98,R,Air Conditioning Accessories,No
Http://opendatacommunities.org/id/metropolitan-district-council/leeds,Leeds City Council,28/02/2018,Resources and Housing,Leeds Building Services,Supplies and Services,Operational Materials,205,05-Feb-2018,1802-00512,0.00,149.73,R,Air Conditioning Accessories,No
Http://opendatacommunities.org/id/metropolitan-district-council/leeds,Leeds City Council,28/02/2018,Resources and Housing,Leeds Building Services,Supplies and Services,Operational Materials,205,15-Feb-2018,1802-00513,0.00,80.00,R,Air Conditioning Accessories,No
Http://opendatacommunities.org/id/metropolitan-district-council/leeds,Leeds City Council,28/02/2018,Resources and Housing,Leeds Building Services,Supplies and Services,Operational Materials,205,21-Feb-2018,1802-00514,0.00,489.24,R,Air Conditioning Accessories,No
Http://opendatacommunities.org/id/metropolitan-district-council/leeds,Leeds City Council,28/02/2018,Resources and Housing,Leeds Building Services,Supplies and Services,Operational Materials,205,22-Feb-2018,1802-00515,0.00,1582.27,R,Air Conditioning Accessories,No
Http://opendatacommunities.org/id/metropolitan-district-council/leeds,Leeds City Council,28/02/2018,Resources and Housing,Leeds Building Services,Supplies and Services,Operational Materials,205,22-Feb-2018,1802-00516,0.00,160.00,R,Air Conditioning Accessories,No
Http://opendatacommunities.org/id/metropolitan-district-council/leeds,Leeds City Council,28/02/2018,Resources and Housing,Leeds Building Services,Supplies and Services,Operational Materials,205,23-Feb-2018,1802-00517,0.00,578.70,R,Air Conditioning Accessories,No
Http://opendatacommunities.org/id/metropolitan-district-council/leeds,Leeds City Council,28/02/2018,Resources and Housing,Leeds Building Services,Supplies and Services,Operational Materials,205,23-Feb-2018,1802-00518,0.00,476.61,R,Air Conditioning Accessories,No
Http://opendatacommunities.org/id/metropolitan-district-council/leeds,Leeds City Council,28/02/2018,Resources and Housing,Leeds Building Services,Supplies and Services,Operational Materials,205,23-Feb-2018,1802-00519,0.00,975.60,R,Air Conditioning Accessories,No
Http://opendatacommunities.org/id/metropolitan-district-council/leeds,Leeds City Council,28/02/2018,Resources and Housing,Commercial Services  ,Supplies and Services,Operational Materials,205,23-Jan-2018,1802-00520,0.00,79.54,R,Air Force Pneumati,Yes
Http://opendatacommunities.org/id/metropolitan-district-council/leeds,Leeds City Council,28/02/2018,Resources and Housing,Leeds Building Services,Supplies and Services,Operational Materials,205,01-Feb-2018,1802-00521,0.00,203.40,R,Air Liquide Uk,No
Http://opendatacommunities.org/id/metropolitan-district-council/leeds,Leeds City Council,28/02/2018,Communities and Environment,Environmental Health,Supplies and Services,Other Hired And Contracted Services,265,07-Feb-2018,1802-00522,0.00,9.39,R,Air Liquide Uk,No
Http://opendatacommunities.org/id/metropolitan-district-council/leeds,Leeds City Council,28/02/2018,Communities and Environment,Environmental Health,Supplies and Services,Other Hired And Contracted Services,265,07-Feb-2018,1802-00523,0.00,14.31,R,Air Liquide Uk,No
Http://opendatacommunities.org/id/metropolitan-district-council/leeds,Leeds City Council,28/02/2018,Communities and Environment,Environmental Health,Supplies and Services,Other Hired And Contracted Services,265,12-Feb-2018,1802-00524,0.00,75.12,R,Air Liquide Uk,No
Http://opendatacommunities.org/id/metropolitan-district-council/leeds,Leeds City Council,28/02/2018,Resources and Housing,Leeds Building Services,Supplies and Services,Operational Materials,205,14-Feb-2018,1802-00525,0.00,67.62,R,Air Liquide Uk,No
Http://opendatacommunities.org/id/metropolitan-district-council/leeds,Leeds City Council,28/02/2018,Adults and Health,Services For Adults Under 65 Mental/Dis,Third Party Payments,Residential,580,07-Feb-2018,1802-00526,0.00,39133.71,R,Aire House,No
Http://opendatacommunities.org/id/metropolitan-district-council/leeds,Leeds City Council,28/02/2018,Children and Families,Safeguarding Targeted & Specialist,Premises,Grounds Maintenance Work,111,19-Feb-2018,1802-00527,0.00,875.00,R,Aire Valley Tree Services Ltd,No
Http://opendatacommunities.org/id/metropolitan-district-council/leeds,Leeds City Council,28/02/2018,Adults and Health,Services For Older People - 65 And Over,Third Party Payments,Residential Care Dementia,571,07-Feb-2018,1802-00528,0.00,34556.16,R,Aire View Residential Home,No
Http://opendatacommunities.org/id/metropolitan-district-council/leeds,Leeds City Council,28/02/2018,Adults and Health,Services For Older People - 65 And Over,Third Party Payments,Residential,580,07-Feb-2018,1802-00529,0.00,41877.83,R,Aire View Residential Home,No
Http://opendatacommunities.org/id/metropolitan-district-council/leeds,Leeds City Council,28/02/2018,Strategic Accounts,Miscellaneous,Supplies and Services,Non-Recurring Grants,227,05-Feb-2018,1802-00530,0.00,367.44,R,Aireborough Civic Society,No
Http://opendatacommunities.org/id/metropolitan-district-council/leeds,Leeds City Council,28/02/2018,Strategic Accounts,Miscellaneous,Supplies and Services,Non-Recurring Grants,227,19-Feb-2018,1802-00531,0.00,750.00,R,Aireborough Civic Society,No
Http://opendatacommunities.org/id/metropolitan-district-council/leeds,Leeds City Council,28/02/2018,Adults and Health,Public Health,Third Party Payments,Public Health Commissioned Services,526,19-Feb-2018,1802-00532,0.00,1705.73,R,Aireborough Family Practice,No
Http://opendatacommunities.org/id/metropolitan-district-council/leeds,Leeds City Council,28/02/2018,Communities and Environment,Customer Access,Supplies and Services,Resaleable Materials,204,09-Feb-2018,1802-00533,0.00,243.00,R,Aireborough Historical Society,No
Http://opendatacommunities.org/id/metropolitan-district-council/leeds,Leeds City Council,28/02/2018,Adults and Health,Services For Older People - 65 And Over,Third Party Payments,Residential,580,07-Feb-2018,1802-00534,0.00,22533.90,R,Airedale (Goldsborough),No
Http://opendatacommunities.org/id/metropolitan-district-council/leeds,Leeds City Council,28/02/2018,Adults and Health,Services For Older People Under 65 P/Dis,Third Party Payments,Residential,580,07-Feb-2018,1802-00535,0.00,115.00,R,Airedale (Goldsborough),No
Http://opendatacommunities.org/id/metropolitan-district-council/leeds,Leeds City Council,28/02/2018,Adults and Health,Services For Older People - 65 And Over,Third Party Payments,Residential Care Dementia,571,07-Feb-2018,1802-00536,0.00,3547.36,R,Airedale Care Home,No
Http://opendatacommunities.org/id/metropolitan-district-council/leeds,Leeds City Council,28/02/2018,Adults and Health,Services For Older People - 65 And Over,Third Party Payments,Residential,580,07-Feb-2018,1802-00537,0.00,15149.31,R,Airedale Care Home,No
Http://opendatacommunities.org/id/metropolitan-district-council/leeds,Leeds City Council,28/02/2018,Adults and Health,Assessment And Care Management,Employees,Training Costs,71,02-Feb-2018,1802-00538,0.00,90.00,R,Airedale Community Trading (Act) Ltd,No
Http://opendatacommunities.org/id/metropolitan-district-council/leeds,Leeds City Council,28/02/2018,Communities and Environment,Community Safety,Supplies and Services,Bought In Professional Services,277,13-Feb-2018,1802-00539,0.00,802.84,R,Airwave Solutions Ltd,No
Http://opendatacommunities.org/id/metropolitan-district-council/leeds,Leeds City Council,28/02/2018,Resources and Housing,Commercial Services,Supplies and Services,Other Hired And Contracted Services,265,23-Feb-2018,1802-00540,0.00,270.00,R,Air-Weigh Europe Limited,No
Http://opendatacommunities.org/id/metropolitan-district-council/leeds,Leeds City Council,28/02/2018,Adults and Health,Services For Adults Under 65 Mental/Dis,Third Party Payments,Fees - Level 4,520,08-Feb-2018,1802-00541,0.00,239.50,R,Ait Mitra,No
Http://opendatacommunities.org/id/metropolitan-district-council/leeds,Leeds City Council,28/02/2018,Adults and Health,Services For Adults Under 65 Mental/Dis,Third Party Payments,Fees - Level 4,520,08-Feb-2018,1802-00542,0.00,175.00,R,Ait Mitra,No
Http://opendatacommunities.org/id/metropolitan-district-council/leeds,Leeds City Council,28/02/2018,Adults and Health,Services For Adults Under 65 Mental/Dis,Third Party Payments,Fees - Level 4,520,08-Feb-2018,1802-00543,0.00,175.00,R,Ait Mitra,No
Http://opendatacommunities.org/id/metropolitan-district-council/leeds,Leeds City Council,28/02/2018,Adults and Health,Services For Adults Under 65 Mental/Dis,Third Party Payments,Fees - Level 4,520,08-Feb-2018,1802-00544,0.00,175.00,R,Ait Mitra,No
Http://opendatacommunities.org/id/metropolitan-district-council/leeds,Leeds City Council,28/02/2018,Adults and Health,Services For Adults Under 65 Mental/Dis,Third Party Payments,Fees - Level 4,520,23-Feb-2018,1802-00545,0.00,175.00,R,Ait Mitra,No
Http://opendatacommunities.org/id/metropolitan-district-council/leeds,Leeds City Council,28/02/2018,Adults and Health,Services For Adults Under 65 Mental/Dis,Third Party Payments,Fees - Level 4,520,23-Feb-2018,1802-00546,0.00,175.00,R,Ait Mitra,No
Http://opendatacommunities.org/id/metropolitan-district-council/leeds,Leeds City Council,28/02/2018,Adults and Health,Services For Adults Under 65 Mental/Dis,Third Party Payments,Fees - Level 4,520,23-Feb-2018,1802-00547,0.00,175.00,R,Ait Mitra,No
Http://opendatacommunities.org/id/metropolitan-district-council/leeds,Leeds City Council as Accountable Body,28/02/2018,Social Services Pooled Budgets,Jcs For People With Learning Disabilitie,Third Party Payments,Residential,580,07-Feb-2018,1802-00548,0.00,6173.24,R,Aitch Care Homes,No
Http://opendatacommunities.org/id/metropolitan-district-council/leeds,Leeds City Council,28/02/2018,Adults and Health,Services For Older People - 65 And Over,Third Party Payments,Home Care,568,09-Feb-2018,1802-00549,0.00,5267.32,R,Aj Community Care Ltd,No
Http://opendatacommunities.org/id/metropolitan-district-council/leeds,Leeds City Council,28/02/2018,Adults and Health,Services For Older People - 65 And Over,Third Party Payments,Home Care,568,09-Feb-2018,1802-00550,0.00,14617.89,R,Aj Community Care Ltd,No
Http://opendatacommunities.org/id/metropolitan-district-council/leeds,Leeds City Council,28/02/2018,Adults and Health,Services For Older People Under 65 P/Dis,Third Party Payments,Home Care,568,09-Feb-2018,1802-00551,0.00,5105.75,R,Aj Community Care Ltd,No
Http://opendatacommunities.org/id/metropolitan-district-council/leeds,Leeds City Council,28/02/2018,Resources and Housing,Leeds Building Services,Supplies and Services,Operational Furniture And Equipment,203,01-Feb-2018,1802-00552,0.00,1890.00,R,Ajm Fixings & Power Tools Ltd,No
Http://opendatacommunities.org/id/metropolitan-district-council/leeds,Leeds City Council,28/02/2018,Resources and Housing,Leeds Building Services,Supplies and Services,Operational Furniture And Equipment,203,01-Feb-2018,1802-00553,0.00,289.50,R,Ajm Fixings & Power Tools Ltd,No
Http://opendatacommunities.org/id/metropolitan-district-council/leeds,Leeds City Council,28/02/2018,Resources and Housing,Leeds Building Services,Supplies and Services,Operational Materials,205,02-Feb-2018,1802-00554,0.00,72.00,R,Ajm Fixings & Power Tools Ltd,No
Http://opendatacommunities.org/id/metropolitan-district-council/leeds,Leeds City Council,28/02/2018,Resources and Housing,Leeds Building Services,Supplies and Services,Stores - Central And Other Depots,5,02-Feb-2018,1802-00555,0.00,513.50,R,Ajm Fixings & Power Tools Ltd,No
Http://opendatacommunities.org/id/metropolitan-district-council/leeds,Leeds City Council,28/02/2018,Resources and Housing,Leeds Building Services,Supplies and Services,Operational Furniture And Equipment,203,02-Feb-2018,1802-00556,0.00,246.50,R,Ajm Fixings & Power Tools Ltd,No
Http://opendatacommunities.org/id/metropolitan-district-council/leeds,Leeds City Council,28/02/2018,Resources and Housing,Leeds Building Services,Supplies and Services,Operational Furniture And Equipment,203,02-Feb-2018,1802-00557,0.00,150.00,R,Ajm Fixings & Power Tools Ltd,No
Http://opendatacommunities.org/id/metropolitan-district-council/leeds,Leeds City Council,28/02/2018,Resources and Housing,Leeds Building Services,Supplies and Services,Operational Furniture And Equipment,203,02-Feb-2018,1802-00558,0.00,129.87,R,Ajm Fixings & Power Tools Ltd,No
Http://opendatacommunities.org/id/metropolitan-district-council/leeds,Leeds City Council,28/02/2018,Resources and Housing,Leeds Building Services,Supplies and Services,Operational Furniture And Equipment,203,06-Feb-2018,1802-00559,0.00,508.00,R,Ajm Fixings & Power Tools Ltd,No
Http://opendatacommunities.org/id/metropolitan-district-council/leeds,Leeds City Council,28/02/2018,Resources and Housing,Leeds Building Services,Supplies and Services,Operational Furniture And Equipment,203,06-Feb-2018,1802-00560,0.00,37.19,R,Ajm Fixings & Power Tools Ltd,No
Http://opendatacommunities.org/id/metropolitan-district-council/leeds,Leeds City Council,28/02/2018,Resources and Housing,Leeds Building Services,Supplies and Services,Stores - Central And Other Depots,5,06-Feb-2018,1802-00561,0.00,339.70,R,Ajm Fixings & Power Tools Ltd,No
Http://opendatacommunities.org/id/metropolitan-district-council/leeds,Leeds City Council,28/02/2018,Resources and Housing,Leeds Building Services,Supplies and Services,Operational Furniture And Equipment,203,08-Feb-2018,1802-00562,0.00,3077.52,R,Ajm Fixings & Power Tools Ltd,No
Http://opendatacommunities.org/id/metropolitan-district-council/leeds,Leeds City Council,28/02/2018,Resources and Housing,Leeds Building Services,Supplies and Services,Operational Furniture And Equipment,203,08-Feb-2018,1802-00563,0.00,22.55,R,Ajm Fixings & Power Tools Ltd,No
Http://opendatacommunities.org/id/metropolitan-district-council/leeds,Leeds City Council,28/02/2018,Resources and Housing,Leeds Building Services,Supplies and Services,Operational Furniture And Equipment,203,08-Feb-2018,1802-00564,0.00,102.60,R,Ajm Fixings & Power Tools Ltd,No
Http://opendatacommunities.org/id/metropolitan-district-council/leeds,Leeds City Council,28/02/2018,Resources and Housing,Leeds Building Services,Supplies and Services,Operational Furniture And Equipment,203,12-Feb-2018,1802-00565,0.00,656.25,R,Ajm Fixings & Power Tools Ltd,No
Http://opendatacommunities.org/id/metropolitan-district-council/leeds,Leeds City Council,28/02/2018,Resources and Housing,Leeds Building Services,Supplies and Services,Stores - Central And Other Depots,5,14-Feb-2018,1802-00566,0.00,154.00,R,Ajm Fixings & Power Tools Ltd,No
Http://opendatacommunities.org/id/metropolitan-district-council/leeds,Leeds City Council,28/02/2018,Resources and Housing,Leeds Building Services,Supplies and Services,Operational Furniture And Equipment,203,14-Feb-2018,1802-00567,0.00,345.60,R,Ajm Fixings & Power Tools Ltd,No
Http://opendatacommunities.org/id/metropolitan-district-council/leeds,Leeds City Council,28/02/2018,Resources and Housing,Leeds Building Services,Supplies and Services,Operational Furniture And Equipment,203,16-Feb-2018,1802-00568,0.00,185.00,R,Ajm Fixings & Power Tools Ltd,No
Http://opendatacommunities.org/id/metropolitan-district-council/leeds,Leeds City Council,28/02/2018,Resources and Housing,Leeds Building Services,Supplies and Services,Operational Furniture And Equipment,203,16-Feb-2018,1802-00569,0.00,2291.00,R,Ajm Fixings & Power Tools Ltd,No
Http://opendatacommunities.org/id/metropolitan-district-council/leeds,Leeds City Council,28/02/2018,Resources and Housing,Leeds Building Services,Supplies and Services,Operational Furniture And Equipment,203,16-Feb-2018,1802-00570,0.00,876.58,R,Ajm Fixings & Power Tools Ltd,No
Http://opendatacommunities.org/id/metropolitan-district-council/leeds,Leeds City Council,28/02/2018,Resources and Housing,Leeds Building Services,Supplies and Services,Stores - Central And Other Depots,5,16-Feb-2018,1802-00571,0.00,700.10,R,Ajm Fixings & Power Tools Ltd,No
Http://opendatacommunities.org/id/metropolitan-district-council/leeds,Leeds City Council,28/02/2018,Resources and Housing,Leeds Building Services,Supplies and Services,Stores - Central And Other Depots,5,23-Feb-2018,1802-00572,0.00,677.70,R,Ajm Fixings & Power Tools Ltd,No
Http://opendatacommunities.org/id/metropolitan-district-council/leeds,Leeds City Council,28/02/2018,Resources and Housing,Leeds Building Services,Supplies and Services,Operational Furniture And Equipment,203,23-Feb-2018,1802-00573,0.00,236.00,R,Ajm Fixings & Power Tools Ltd,No
Http://opendatacommunities.org/id/metropolitan-district-council/leeds,Leeds City Council,28/02/2018,Adults and Health,Services For Older People - 65 And Over,Third Party Payments,Nursing Home,570,07-Feb-2018,1802-00574,0.00,1247.60,R,Akari Care Ltd,No
Http://opendatacommunities.org/id/metropolitan-district-council/leeds,Leeds City Council,28/02/2018,Resources and Housing,Commercial Services,Premises,Plant and Machinery,102,14-Feb-2018,1802-00575,0.00,112.00,R,Akua Uk Ltd,No
Http://opendatacommunities.org/id/metropolitan-district-council/leeds,Leeds City Council,28/02/2018,Resources and Housing,Commercial Services,Premises,Plant and Machinery,102,20-Feb-2018,1802-00576,0.00,178.29,R,Akua Uk Ltd,No
Http://opendatacommunities.org/id/metropolitan-district-council/leeds,Leeds City Council,28/02/2018,Communities and Environment,Cleaner Neighbourhood Teams,Supplies and Services,Other Hired And Contracted Services,265,23-Feb-2018,1802-00577,0.00,204.10,R,Akua Uk Ltd,No
Http://opendatacommunities.org/id/metropolitan-district-council/leeds,Leeds City Council,28/02/2018,Resources and Housing,Leeds Building Services,Supplies and Services,Operational Materials,205,02-Feb-2018,1802-00578,0.00,54.67,R,Akw Medicare Ltd,No
Http://opendatacommunities.org/id/metropolitan-district-council/leeds,Leeds City Council,28/02/2018,Resources and Housing,Leeds Building Services,Supplies and Services,Operational Materials,205,02-Feb-2018,1802-00579,0.00,54.67,R,Akw Medicare Ltd,No
Http://opendatacommunities.org/id/metropolitan-district-council/leeds,Leeds City Council,28/02/2018,Resources and Housing,Leeds Building Services,Supplies and Services,Operational Materials,205,05-Feb-2018,1802-00580,0.00,109.34,R,Akw Medicare Ltd,No
Http://opendatacommunities.org/id/metropolitan-district-council/leeds,Leeds City Council,28/02/2018,Resources and Housing,Leeds Building Services,Supplies and Services,Operational Materials,205,08-Feb-2018,1802-00581,0.00,54.67,R,Akw Medicare Ltd,No
Http://opendatacommunities.org/id/metropolitan-district-council/leeds,Leeds City Council,28/02/2018,Resources and Housing,Leeds Building Services,Supplies and Services,Operational Materials,205,15-Feb-2018,1802-00582,0.00,54.67,R,Akw Medicare Ltd,No
Http://opendatacommunities.org/id/metropolitan-district-council/leeds,Leeds City Council,28/02/2018,Resources and Housing,Leeds Building Services,Supplies and Services,Operational Materials,205,16-Feb-2018,1802-00583,0.00,54.67,R,Akw Medicare Ltd,No
Http://opendatacommunities.org/id/metropolitan-district-council/leeds,Leeds City Council,28/02/2018,Resources and Housing,Leeds Building Services,Supplies and Services,Operational Materials,205,16-Feb-2018,1802-00584,0.00,164.01,R,Akw Medicare Ltd,No
Http://opendatacommunities.org/id/metropolitan-district-council/leeds,Leeds City Council,28/02/2018,Resources and Housing,Leeds Building Services,Supplies and Services,Operational Materials,205,19-Feb-2018,1802-00585,0.00,54.67,R,Akw Medicare Ltd,No
Http://opendatacommunities.org/id/metropolitan-district-council/leeds,Leeds City Council,28/02/2018,City Development,Libraries  Arts & Heritage  ,Supplies and Services,Operational Materials,205,06-Jan-2018,1802-00586,0.00,116.58,R,Akzonobel,Yes
Http://opendatacommunities.org/id/metropolitan-district-council/leeds,Leeds City Council,28/02/2018,City Development,Libraries  Arts & Heritage  ,Supplies and Services,Other Hired And Contracted Services,265,06-Jan-2018,1802-00587,0.00,58.30,R,Akzonobel,Yes
Http://opendatacommunities.org/id/metropolitan-district-council/leeds,Leeds City Council,28/02/2018,Children and Families,Safeguarding Targeted & Specialist,Transfer Payments,16 Plus Top Up Allowance,625,09-Feb-2018,1802-00588,0.00,20.00,R,REDACTED PERSONAL DATA,No
Http://opendatacommunities.org/id/metropolitan-district-council/leeds,Leeds City Council,28/02/2018,Children and Families,Safeguarding Targeted & Specialist,Transfer Payments,Leaving Care Allowances,634,12-Feb-2018,1802-00589,0.00,23.00,R,REDACTED PERSONAL DATA,No
Http://opendatacommunities.org/id/metropolitan-district-council/leeds,Leeds City Council,28/02/2018,Children and Families,Safeguarding Targeted & Specialist,Transfer Payments,16 Plus Top Up Allowance,625,16-Feb-2018,1802-00590,0.00,20.00,R,REDACTED PERSONAL DATA,No
Http://opendatacommunities.org/id/metropolitan-district-council/leeds,Leeds City Council,28/02/2018,Children and Families,Safeguarding Targeted & Specialist,Transfer Payments,16 Plus Top Up Allowance,625,23-Feb-2018,1802-00591,0.00,20.00,R,REDACTED PERSONAL DATA,No
Http://opendatacommunities.org/id/metropolitan-district-council/leeds,Leeds City Council,28/02/2018,Resources and Housing,Strategy and Improvement,Supplies and Services,Memberships,226,02-Feb-2018,1802-00592,0.00,388.00,R,Alarm,No
Http://opendatacommunities.org/id/metropolitan-district-council/leeds,Leeds City Council,28/02/2018,Resources and Housing,Finance,Supplies and Services,Memberships,226,27-Feb-2018,1802-00593,0.00,199.00,R,Alarm,No
Http://opendatacommunities.org/id/metropolitan-district-council/leeds,Leeds City Council,28/02/2018,Communities and Environment,Communities,Supplies and Services,Other Hired And Contracted Services,265,06-Feb-2018,1802-00594,0.00,2300.00,R,Al-Bashir Academy Ltd,No
Http://opendatacommunities.org/id/metropolitan-district-council/leeds,Leeds City Council as Accountable Body,28/02/2018,Social Services Pooled Budgets,Leeds Community Equip Store Pooled Budgt,Supplies and Services,Other Equipment,203,27-Feb-2018,1802-00595,0.00,388.50,R,Albion Electric Stores Ltd,No
Http://opendatacommunities.org/id/metropolitan-district-council/leeds,Leeds City Council,28/02/2018,Children and Families,Safeguarding Targeted & Specialist  ,Supplies and Services,Teaching Materials,202,19-Jan-2018,1802-00596,0.00,7.79,R,Aldi 23 779,Yes
Http://opendatacommunities.org/id/metropolitan-district-council/leeds,Leeds City Council,28/02/2018,Children and Families,Safeguarding Targeted & Specialist  ,Supplies and Services,Food & Drink,231,03-Jan-2018,1802-00597,0.00,21.24,R,Aldi 40 779,Yes
Http://opendatacommunities.org/id/metropolitan-district-council/leeds,Leeds City Council,28/02/2018,Resources and Housing,Strategic Housing Partnership & Support  ,Supplies and Services,Other Hired And Contracted Services,265,10-Jan-2018,1802-00598,0.00,20.69,R,Aldi 40 779,Yes
Http://opendatacommunities.org/id/metropolitan-district-council/leeds,Leeds City Council,28/02/2018,Children and Families,Safeguarding Targeted & Specialist  ,Supplies and Services,Food & Drink,231,23-Jan-2018,1802-00599,0.00,93.80,R,Aldi 40 779,Yes
Http://opendatacommunities.org/id/metropolitan-district-council/leeds,Leeds City Council,28/02/2018,Children and Families,Safeguarding Targeted & Specialist  ,Premises,Cleaning Maintenance & Toiletries,127,23-Jan-2018,1802-00600,0.00,22.19,R,Aldi 40 779,Yes
Http://opendatacommunities.org/id/metropolitan-district-council/leeds,Leeds City Council,28/02/2018,Children and Families,Safeguarding Targeted & Specialist  ,Transfer Payments,Leaving Care Allowances,634,10-Jan-2018,1802-00601,0.00,30.96,R,Aldi 71 779,Yes
Http://opendatacommunities.org/id/metropolitan-district-council/leeds,Leeds City Council,28/02/2018,Children and Families,Safeguarding Targeted & Specialist  ,Transfer Payments,Leaving Care Allowances,634,23-Jan-2018,1802-00602,0.00,20.50,R,Aldi 71 779,Yes
Http://opendatacommunities.org/id/metropolitan-district-council/leeds,Leeds City Council,28/02/2018,Children and Families,Safeguarding Targeted & Specialist  ,Supplies and Services,Food & Drink,231,08-Jan-2018,1802-00603,0.00,39.98,R,Aldi 85 779,Yes
Http://opendatacommunities.org/id/metropolitan-district-council/leeds,Leeds City Council,28/02/2018,Communities and Environment,Parks And Countryside  ,Supplies and Services,Food & Drink,231,15-Jan-2018,1802-00604,0.00,4.77,R,Aldi 94 779,Yes
Http://opendatacommunities.org/id/metropolitan-district-council/leeds,Leeds City Council,28/02/2018,Communities and Environment,Communities  ,Supplies and Services,Operational Materials,205,16-Jan-2018,1802-00605,0.00,12.72,R,Aldi Stores,Yes
Http://opendatacommunities.org/id/metropolitan-district-council/leeds,Leeds City Council,28/02/2018,Communities and Environment,Customer Access,Supplies and Services,Other Hired And Contracted Services,265,05-Feb-2018,1802-00606,0.00,68.00,R,Alena Zueva,No
Http://opendatacommunities.org/id/metropolitan-district-council/leeds,Leeds City Council,28/02/2018,Children and Families,Safeguarding Targeted & Specialist,Support Services,Legal Disbursements,411,02-Feb-2018,1802-00607,0.00,131.75,R,Alere Toxicology Plc,No
Http://opendatacommunities.org/id/metropolitan-district-council/leeds,Leeds City Council,28/02/2018,Children and Families,Safeguarding Targeted & Specialist,Support Services,Legal Disbursements,411,08-Feb-2018,1802-00608,0.00,23.75,R,Alere Toxicology Plc,No
Http://opendatacommunities.org/id/metropolitan-district-council/leeds,Leeds City Council,28/02/2018,Children and Families,Safeguarding Targeted & Specialist,Support Services,Legal Disbursements,411,08-Feb-2018,1802-00609,0.00,222.36,R,Alere Toxicology Plc,No
Http://opendatacommunities.org/id/metropolitan-district-council/leeds,Leeds City Council,28/02/2018,Children and Families,Safeguarding Targeted & Specialist,Support Services,Legal Disbursements,411,20-Feb-2018,1802-00610,0.00,58.36,R,Alere Toxicology Plc,No
Http://opendatacommunities.org/id/metropolitan-district-council/leeds,Leeds City Council,28/02/2018,Communities and Environment,Elections  Licensing and Registration,Income,Licences  Registry & Land Charges,932,08-Feb-2018,1802-00611,0.00,21.00,R,Alex Hook,No
Http://opendatacommunities.org/id/metropolitan-district-council/leeds,Leeds City Council,28/02/2018,Children and Families,Safeguarding Targeted & Specialist,Support Services,Legal Disbursements,411,08-Feb-2018,1802-00612,0.00,523.00,R,Alex Taylor,No
Http://opendatacommunities.org/id/metropolitan-district-council/leeds,Leeds City Council,28/02/2018,Resources and Housing,Commercial Services,Supplies and Services,Other Hired And Contracted Services,265,01-Feb-2018,1802-00613,0.00,120.00,R,Alex Wagg,No
Http://opendatacommunities.org/id/metropolitan-district-council/leeds,Leeds City Council,28/02/2018,Children and Families,Safeguarding Targeted & Specialist,Transfer Payments,Leaving Care Allowances,634,02-Feb-2018,1802-00614,0.00,50.00,R,REDACTED PERSONAL DATA,No
Http://opendatacommunities.org/id/metropolitan-district-council/leeds,Leeds City Council,28/02/2018,Adults and Health,Assessment And Care Management,Third Party Payments,Residential Care Dementia,571,07-Feb-2018,1802-00615,0.00,445.85,R,Alexander Residential Home,No
Http://opendatacommunities.org/id/metropolitan-district-council/leeds,Leeds City Council,28/02/2018,Adults and Health,Services For Older People - 65 And Over,Third Party Payments,Residential Care Dementia,571,07-Feb-2018,1802-00616,0.00,52349.27,R,Alexander Residential Home,No
Http://opendatacommunities.org/id/metropolitan-district-council/leeds,Leeds City Council,28/02/2018,Adults and Health,Services For Older People - 65 And Over,Third Party Payments,Residential,580,07-Feb-2018,1802-00617,0.00,41147.90,R,Alexander Residential Home,No
Http://opendatacommunities.org/id/metropolitan-district-council/leeds,Leeds City Council,28/02/2018,Communities and Environment,Customer Access,Supplies and Services,Other Hired And Contracted Services,265,05-Feb-2018,1802-00618,0.00,748.50,R,Alexandra Costenco,No
Http://opendatacommunities.org/id/metropolitan-district-council/leeds,Leeds City Council,28/02/2018,Adults and Health,Services For Older People - 65 And Over,Third Party Payments,Residential Care Dementia,571,07-Feb-2018,1802-00619,0.00,1577.96,R,Alexandra Court,No
Http://opendatacommunities.org/id/metropolitan-district-council/leeds,Leeds City Council,28/02/2018,Adults and Health,Services For Older People - 65 And Over,Third Party Payments,Residential,580,07-Feb-2018,1802-00620,0.00,33072.08,R,Alexandra Court,No
Http://opendatacommunities.org/id/metropolitan-district-council/leeds,Leeds City Council,28/02/2018,Communities and Environment,Customer Access,Supplies and Services,Other Hired And Contracted Services,265,05-Feb-2018,1802-00621,0.00,15.00,R,Alexandra Hirst,No
Http://opendatacommunities.org/id/metropolitan-district-council/leeds,Leeds City Council,28/02/2018,Children and Families,Safeguarding Targeted & Specialist,Third Party Payments,Services Rendered By Other Organisations,511,19-Feb-2018,1802-00622,0.00,63.64,R,REDACTED PERSONAL DATA,No
Http://opendatacommunities.org/id/metropolitan-district-council/leeds,Leeds City Council,28/02/2018,City Development,Libraries  Arts & Heritage,Premises,Maintenance Of Buildings,101,01-Feb-2018,1802-00623,0.00,3300.00,R,Alfred Bagnall & Sons (Leeds) Ltd,No
Http://opendatacommunities.org/id/metropolitan-district-council/leeds,Leeds City Council,28/02/2018,Communities and Environment,Parks and Countryside,Supplies and Services,Other Hired And Contracted Services,265,01-Feb-2018,1802-00624,0.00,450.00,R,Alfred Bagnall & Sons (Leeds) Ltd,No
Http://opendatacommunities.org/id/metropolitan-district-council/leeds,Leeds City Council,28/02/2018,City Development,Recreation,Supplies and Services,Operational Materials,205,05-Feb-2018,1802-00625,0.00,5424.00,R,Alfred Bagnall & Sons (Leeds) Ltd,No
Http://opendatacommunities.org/id/metropolitan-district-council/leeds,Leeds City Council,28/02/2018,Resources and Housing,Corporate Property Management,Capital,Construction,3,08-Feb-2018,1802-00626,0.00,4933.00,C,Alfred Bagnall & Sons (Leeds) Ltd,No
Http://opendatacommunities.org/id/metropolitan-district-council/leeds,Leeds City Council,28/02/2018,Resources and Housing,Leeds Building Services,Supplies and Services,Other Hired And Contracted Services,265,12-Feb-2018,1802-00627,0.00,2192.00,R,Alfred Bagnall & Sons (Leeds) Ltd,No
Http://opendatacommunities.org/id/metropolitan-district-council/leeds,Leeds City Council,28/02/2018,Resources and Housing,Leeds Building Services,Supplies and Services,Other Hired And Contracted Services,265,12-Feb-2018,1802-00628,0.00,6750.00,R,Alfred Bagnall & Sons (Leeds) Ltd,No
Http://opendatacommunities.org/id/metropolitan-district-council/leeds,Leeds City Council,28/02/2018,Resources and Housing,Leeds Building Services,Supplies and Services,Other Hired And Contracted Services,265,12-Feb-2018,1802-00629,0.00,2334.18,R,Alfred Bagnall & Sons (Leeds) Ltd,No
Http://opendatacommunities.org/id/metropolitan-district-council/leeds,Leeds City Council,28/02/2018,Resources and Housing,Corporate Property Management,Capital,Construction,3,15-Feb-2018,1802-00630,0.00,3667.00,C,Alfred Bagnall & Sons (Leeds) Ltd,No
Http://opendatacommunities.org/id/metropolitan-district-council/leeds,Leeds City Council,28/02/2018,Resources and Housing,Leeds Building Services,Supplies and Services,Other Hired And Contracted Services,265,23-Feb-2018,1802-00631,0.00,4850.00,R,Alfred Bagnall & Sons (Leeds) Ltd,No
Http://opendatacommunities.org/id/metropolitan-district-council/leeds,Leeds City Council,28/02/2018,Resources and Housing,Leeds Building Services,Supplies and Services,Other Hired And Contracted Services,265,23-Feb-2018,1802-00632,0.00,2300.00,R,Alfred Bagnall & Sons (Leeds) Ltd,No
Http://opendatacommunities.org/id/metropolitan-district-council/leeds,Leeds City Council,28/02/2018,Resources and Housing,Leeds Building Services,Supplies and Services,Other Hired And Contracted Services,265,27-Feb-2018,1802-00633,0.00,3000.00,R,Alfred Bagnall & Sons (Leeds) Ltd,No
Http://opendatacommunities.org/id/metropolitan-district-council/leeds,Leeds City Council,28/02/2018,City Development,Libraries  Arts & Heritage,Supplies and Services,Other Hired And Contracted Services,265,27-Feb-2018,1802-00634,0.00,1800.00,R,Alfred Bagnall & Sons (Leeds) Ltd,No
Http://opendatacommunities.org/id/metropolitan-district-council/leeds,Leeds City Council,28/02/2018,Children and Families,Safeguarding Targeted & Specialist  ,Third Party Payments,Section 17,551,03-Jan-2018,1802-00635,0.00,425.83,R,Ali Baba Carpets Leeds,Yes
Http://opendatacommunities.org/id/metropolitan-district-council/leeds,Leeds City Council,28/02/2018,Communities and Environment,Customer Access,Supplies and Services,Other Hired And Contracted Services,265,05-Feb-2018,1802-00636,0.00,248.00,R,Ali Pourakaberian,No
Http://opendatacommunities.org/id/metropolitan-district-council/leeds,Leeds City Council,28/02/2018,Children and Families,Partnerships,Employees,Training & Development,70,16-Feb-2018,1802-00637,0.00,1416.64,R,REDACTED PERSONAL DATA,No
Http://opendatacommunities.org/id/metropolitan-district-council/leeds,Leeds City Council,28/02/2018,City Development,Libraries  Arts & Heritage,Supplies and Services,Bought In Professional Services,277,21-Feb-2018,1802-00638,0.00,250.00,R,Alice Withers,No
Http://opendatacommunities.org/id/metropolitan-district-council/leeds,Leeds City Council,28/02/2018,Children and Families,Safeguarding Targeted & Specialist,Third Party Payments,Services Rendered By Other Organisations,511,08-Feb-2018,1802-00639,0.00,22.20,R,REDACTED PERSONAL DATA,No
Http://opendatacommunities.org/id/metropolitan-district-council/leeds,Leeds City Council,28/02/2018,City Development,Libraries  Arts & Heritage,Supplies and Services,Other Hired And Contracted Services,265,06-Feb-2018,1802-00640,0.00,400.00,R,Alison Rhind,No
Http://opendatacommunities.org/id/metropolitan-district-council/leeds,Leeds City Council,28/02/2018,City Development,Libraries  Arts & Heritage,Supplies and Services,Other Hired And Contracted Services,265,22-Feb-2018,1802-00641,0.00,400.00,R,Alison Rhind,No
Http://opendatacommunities.org/id/metropolitan-district-council/leeds,Leeds City Council,28/02/2018,Resources and Housing,Leeds Building Services,Supplies and Services,Other Hired And Contracted Services,265,01-Feb-2018,1802-00642,0.00,195.00,R,All Clear Solutions Ltd,No
Http://opendatacommunities.org/id/metropolitan-district-council/leeds,Leeds City Council,28/02/2018,Resources and Housing,Leeds Building Services,Supplies and Services,Other Hired And Contracted Services,265,16-Feb-2018,1802-00643,0.00,195.00,R,All Clear Solutions Ltd,No
Http://opendatacommunities.org/id/metropolitan-district-council/leeds,Leeds City Council,28/02/2018,Resources and Housing,Leeds Building Services,Supplies and Services,Other Hired And Contracted Services,265,21-Feb-2018,1802-00644,0.00,195.00,R,All Clear Solutions Ltd,No
Http://opendatacommunities.org/id/metropolitan-district-council/leeds,Leeds City Council,28/02/2018,Resources and Housing,Leeds Building Services,Supplies and Services,Other Hired And Contracted Services,265,21-Feb-2018,1802-00645,0.00,195.00,R,All Clear Solutions Ltd,No
Http://opendatacommunities.org/id/metropolitan-district-council/leeds,Leeds City Council,28/02/2018,Resources and Housing,Leeds Building Services,Supplies and Services,Other Hired And Contracted Services,265,23-Feb-2018,1802-00646,0.00,195.00,R,All Clear Solutions Ltd,No
Http://opendatacommunities.org/id/metropolitan-district-council/leeds,Leeds City Council,28/02/2018,Resources and Housing,Leeds Building Services,Supplies and Services,Other Hired And Contracted Services,265,23-Feb-2018,1802-00647,0.00,195.00,R,All Clear Solutions Ltd,No
Http://opendatacommunities.org/id/metropolitan-district-council/leeds,Leeds City Council,28/02/2018,Resources and Housing,Leeds Building Services,Supplies and Services,Other Hired And Contracted Services,265,27-Feb-2018,1802-00648,0.00,195.00,R,All Clear Solutions Ltd,No
Http://opendatacommunities.org/id/metropolitan-district-council/leeds,Leeds City Council,28/02/2018,Resources and Housing,Leeds Building Services,Supplies and Services,Other Hired And Contracted Services,265,27-Feb-2018,1802-00649,0.00,195.00,R,All Clear Solutions Ltd,No
Http://opendatacommunities.org/id/metropolitan-district-council/leeds,Leeds City Council,28/02/2018,Children and Families,Safeguarding Targeted & Specialist,Third Party Payments,Services Rendered By Other Organisations,511,19-Feb-2018,1802-00650,0.00,587.35,R,All Stars Childcare,No
Http://opendatacommunities.org/id/metropolitan-district-council/leeds,Leeds City Council,28/02/2018,Communities and Environment,Elections  Licensing and Registration,Support Services,Legal Disbursements,411,06-Feb-2018,1802-00651,0.00,500.00,R,Allan Armbrister,No
Http://opendatacommunities.org/id/metropolitan-district-council/leeds,Leeds City Council,28/02/2018,Communities and Environment,Customer Access,Supplies and Services,Resaleable Materials,204,14-Feb-2018,1802-00652,0.00,3.75,R,Allan Radcliffe,No
Http://opendatacommunities.org/id/metropolitan-district-council/leeds,Leeds City Council as Accountable Body,28/02/2018,Social Services Pooled Budgets,Jcs For People With Learning Disabilitie,Third Party Payments,Sheltered Accommodation,569,07-Feb-2018,1802-00653,0.00,13578.36,R,Allerton Avenue,No
Http://opendatacommunities.org/id/metropolitan-district-council/leeds,Leeds City Council,28/02/2018,Strategic Accounts,Miscellaneous,Supplies and Services,Non-Recurring Grants,227,12-Feb-2018,1802-00654,0.00,500.00,R,Allerton Bywater Fc,No
Http://opendatacommunities.org/id/metropolitan-district-council/leeds,Leeds City Council,28/02/2018,Adults and Health,Public Health,Third Party Payments,Public Health Commissioned Services,526,19-Feb-2018,1802-00655,0.00,2092.83,R,Allerton Medical Centre,No
Http://opendatacommunities.org/id/metropolitan-district-council/leeds,Leeds City Council,28/02/2018,Communities and Environment,Parks and Countryside,Supplies and Services,Operational Materials,205,28-Feb-2018,1802-00656,0.00,3.50,R,Allflex Uk Group Ltd,No
Http://opendatacommunities.org/id/metropolitan-district-council/leeds,Leeds City Council,28/02/2018,Resources and Housing,Finance,Supplies and Services,Bank Charges,263,01-Feb-2018,1802-00657,0.00,-125.39,R,Alliance & Leicester Commercial Bank,No
Http://opendatacommunities.org/id/metropolitan-district-council/leeds,Leeds City Council,28/02/2018,Resources and Housing,Finance,Supplies and Services,Bank Charges,263,06-Feb-2018,1802-00658,0.00,738.78,R,Alliance & Leicester Commercial Bank,No
Http://opendatacommunities.org/id/metropolitan-district-council/leeds,Leeds City Council,28/02/2018,Resources and Housing,Finance,Supplies and Services,Bank Charges,263,06-Feb-2018,1802-00659,0.00,100.00,R,Alliance & Leicester Commercial Bank,No
Http://opendatacommunities.org/id/metropolitan-district-council/leeds,Leeds City Council,28/02/2018,City Development,Recreation,Supplies and Services,Printing,215,15-Feb-2018,1802-00660,0.00,933.20,R,Alliance Leisure Service Ltd,No
Http://opendatacommunities.org/id/metropolitan-district-council/leeds,Leeds City Council,28/02/2018,City Development,Highways,Supplies and Services,Other Hired And Contracted Services,265,08-Feb-2018,1802-00661,0.00,2996.20,R,Allied Exploration & Geotechnics Ltd,No
Http://opendatacommunities.org/id/metropolitan-district-council/leeds,Leeds City Council,28/02/2018,City Development,Highways,Supplies and Services,Other Hired And Contracted Services,265,12-Feb-2018,1802-00662,0.00,3045.73,R,Allied Exploration & Geotechnics Ltd,No
Http://opendatacommunities.org/id/metropolitan-district-council/leeds,Leeds City Council,28/02/2018,City Development,Highways,Capital,Other Costs,7,12-Feb-2018,1802-00663,0.00,1437.13,C,Allied Exploration & Geotechnics Ltd,No
Http://opendatacommunities.org/id/metropolitan-district-council/leeds,Leeds City Council,28/02/2018,City Development,Highways,Supplies and Services,Other Hired And Contracted Services,265,12-Feb-2018,1802-00664,0.00,108.00,R,Allied Exploration & Geotechnics Ltd,No
Http://opendatacommunities.org/id/metropolitan-district-council/leeds,Leeds City Council,28/02/2018,City Development,Highways,Supplies and Services,Other Hired And Contracted Services,265,12-Feb-2018,1802-00665,0.00,769.20,R,Allied Exploration & Geotechnics Ltd,No
Http://opendatacommunities.org/id/metropolitan-district-council/leeds,Leeds City Council,28/02/2018,City Development,Highways,Supplies and Services,Other Hired And Contracted Services,265,12-Feb-2018,1802-00666,0.00,741.40,R,Allied Exploration & Geotechnics Ltd,No
Http://opendatacommunities.org/id/metropolitan-district-council/leeds,Leeds City Council,28/02/2018,City Development,Highways,Supplies and Services,Other Hired And Contracted Services,265,16-Feb-2018,1802-00667,0.00,8587.86,R,Allied Exploration & Geotechnics Ltd,No
Http://opendatacommunities.org/id/metropolitan-district-council/leeds,Leeds City Council,28/02/2018,City Development,Highways,Supplies and Services,Other Hired And Contracted Services,265,23-Feb-2018,1802-00668,0.00,7928.34,R,Allied Exploration & Geotechnics Ltd,No
Http://opendatacommunities.org/id/metropolitan-district-council/leeds,Leeds City Council,28/02/2018,City Development,Highways,Capital,Other Costs,7,28-Feb-2018,1802-00669,0.00,43549.83,C,Allied Exploration & Geotechnics Ltd,No
Http://opendatacommunities.org/id/metropolitan-district-council/leeds,Leeds City Council as Accountable Body,28/02/2018,Social Services Pooled Budgets,Jcs For People With Learning Disabilitie,Third Party Payments,Home Care,568,05-Feb-2018,1802-00670,0.00,11.24,R,Allied Healthcare,No
Http://opendatacommunities.org/id/metropolitan-district-council/leeds,Leeds City Council as Accountable Body,28/02/2018,Social Services Pooled Budgets,Jcs For People With Learning Disabilitie,Third Party Payments,Home Care,568,05-Feb-2018,1802-00671,0.00,211.28,R,Allied Healthcare,No
Http://opendatacommunities.org/id/metropolitan-district-council/leeds,Leeds City Council as Accountable Body,28/02/2018,Social Services Pooled Budgets,Jcs For People With Learning Disabilitie,Third Party Payments,Home Care,568,15-Feb-2018,1802-00672,0.00,15435.69,R,Allied Healthcare,No
Http://opendatacommunities.org/id/metropolitan-district-council/leeds,Leeds City Council,28/02/2018,Adults and Health,Other Generic Services,Third Party Payments,Home Care,568,16-Feb-2018,1802-00673,0.00,86.27,R,Allied Healthcare,No
Http://opendatacommunities.org/id/metropolitan-district-council/leeds,Leeds City Council as Accountable Body,28/02/2018,Social Services Pooled Budgets,Jcs For People With Learning Disabilitie,Third Party Payments,Home Care,568,16-Feb-2018,1802-00674,0.00,16438.10,R,Allied Healthcare,No
Http://opendatacommunities.org/id/metropolitan-district-council/leeds,Leeds City Council as Accountable Body,28/02/2018,Social Services Pooled Budgets,Jcs For People With Learning Disabilitie,Third Party Payments,Home Care,568,21-Feb-2018,1802-00675,0.00,819.00,R,Allied Healthcare,No
Http://opendatacommunities.org/id/metropolitan-district-council/leeds,Leeds City Council as Accountable Body,28/02/2018,Social Services Pooled Budgets,Jcs For People With Learning Disabilitie,Third Party Payments,Home Care,568,21-Feb-2018,1802-00676,0.00,177.92,R,Allied Healthcare,No
Http://opendatacommunities.org/id/metropolitan-district-council/leeds,Leeds City Council,28/02/2018,Children and Families,Partnerships,Third Party Payments,Services Rendered By Voluntary Sector,505,22-Feb-2018,1802-00677,0.00,684.00,R,Allied Healthcare,No
Http://opendatacommunities.org/id/metropolitan-district-council/leeds,Leeds City Council,28/02/2018,Adults and Health,Services For Older People - 65 And Over,Third Party Payments,Home Care,568,22-Feb-2018,1802-00678,0.00,893.87,R,Allied Healthcare,No
Http://opendatacommunities.org/id/metropolitan-district-council/leeds,Leeds City Council,28/02/2018,Adults and Health,Services For Older People - 65 And Over,Third Party Payments,Home Care,568,22-Feb-2018,1802-00679,0.00,9903.13,R,Allied Healthcare,No
Http://opendatacommunities.org/id/metropolitan-district-council/leeds,Leeds City Council,28/02/2018,Adults and Health,Services For Older People - 65 And Over,Third Party Payments,Home Care,568,22-Feb-2018,1802-00680,0.00,12845.11,R,Allied Healthcare,No
Http://opendatacommunities.org/id/metropolitan-district-council/leeds,Leeds City Council,28/02/2018,Adults and Health,Services For Older People Under 65 P/Dis,Third Party Payments,Home Care,568,22-Feb-2018,1802-00681,0.00,1506.40,R,Allied Healthcare,No
Http://opendatacommunities.org/id/metropolitan-district-council/leeds,Leeds City Council,28/02/2018,Adults and Health,Services For Older People - 65 And Over,Third Party Payments,Home Care,568,22-Feb-2018,1802-00682,0.00,8557.49,R,Allied Healthcare,No
Http://opendatacommunities.org/id/metropolitan-district-council/leeds,Leeds City Council,28/02/2018,Adults and Health,Services For Older People Under 65 P/Dis,Third Party Payments,Home Care,568,22-Feb-2018,1802-00683,0.00,11533.08,R,Allied Healthcare,No
Http://opendatacommunities.org/id/metropolitan-district-council/leeds,Leeds City Council as Accountable Body,28/02/2018,Social Services Pooled Budgets,Jcs For People With Learning Disabilitie,Third Party Payments,Home Care,568,27-Feb-2018,1802-00684,0.00,787.92,R,Allied Healthcare,No
Http://opendatacommunities.org/id/metropolitan-district-council/leeds,Leeds City Council as Accountable Body,28/02/2018,Social Services Pooled Budgets,Jcs For People With Learning Disabilitie,Third Party Payments,Home Care,568,27-Feb-2018,1802-00685,0.00,16922.61,R,Allied Healthcare,No
Http://opendatacommunities.org/id/metropolitan-district-council/leeds,Leeds City Council,28/02/2018,Adults and Health,Services For Older People - 65 And Over,Third Party Payments,Home Care,568,27-Feb-2018,1802-00686,0.00,1971.75,R,Allied Healthcare,No
Http://opendatacommunities.org/id/metropolitan-district-council/leeds,Leeds City Council,28/02/2018,Communities and Environment,Parks And Countryside  ,Supplies and Services,Operational Materials,205,05-Jan-2018,1802-00687,0.00,222.27,R,Alloy Sales Ltd,Yes
Http://opendatacommunities.org/id/metropolitan-district-council/leeds,Leeds City Council,28/02/2018,Resources and Housing,Finance,Supplies and Services,Bank Charges,263,01-Feb-2018,1802-00688,0.00,5.52,R,Allpay Limted,No
Http://opendatacommunities.org/id/metropolitan-district-council/leeds,Leeds City Council,28/02/2018,Resources and Housing,Finance,Supplies and Services,Bank Charges,263,01-Feb-2018,1802-00689,0.00,10126.56,R,Allpay Limted,No
Http://opendatacommunities.org/id/metropolitan-district-council/leeds,Leeds City Council,28/02/2018,Resources and Housing,Finance,Supplies and Services,Bank Charges,263,01-Feb-2018,1802-00690,0.00,5860.28,R,Allpay Limted,No
Http://opendatacommunities.org/id/metropolitan-district-council/leeds,Leeds City Council,28/02/2018,Resources and Housing,Finance,Supplies and Services,Bank Charges,263,01-Feb-2018,1802-00691,0.00,353.78,R,Allpay Limted,No
Http://opendatacommunities.org/id/metropolitan-district-council/leeds,Leeds City Council,28/02/2018,Resources and Housing,Finance,Supplies and Services,Bank Charges,263,01-Feb-2018,1802-00692,0.00,93.41,R,Allpay Limted,No
Http://opendatacommunities.org/id/metropolitan-district-council/leeds,Leeds City Council,28/02/2018,Resources and Housing,Finance,Supplies and Services,Bank Charges,263,01-Feb-2018,1802-00693,0.00,2299.60,R,Allpay Limted,No
Http://opendatacommunities.org/id/metropolitan-district-council/leeds,Leeds City Council,28/02/2018,Strategic Landlord,Housing Management,Supplies and Services,Other Hired And Contracted Services,265,07-Feb-2018,1802-00694,0.00,15.55,R,Allpay Limted,No
Http://opendatacommunities.org/id/metropolitan-district-council/leeds,Leeds City Council,28/02/2018,Strategic Landlord,Housing Management,Supplies and Services,Other Hired And Contracted Services,265,07-Feb-2018,1802-00695,0.00,262.33,R,Allpay Limted,No
Http://opendatacommunities.org/id/metropolitan-district-council/leeds,Leeds City Council,28/02/2018,Resources and Housing,Strategic Housing Partnership & Support  ,Supplies and Services,Other Hired And Contracted Services,265,22-Jan-2018,1802-00696,0.00,349.32,R,Allpay Moto (Callpay/I,Yes
Http://opendatacommunities.org/id/metropolitan-district-council/leeds,Leeds City Council,28/02/2018,Resources and Housing,Democratic Services,Transport,Fuel (Non LCC Supplies),321,07-Feb-2018,1802-00697,0.00,358.42,R,Allstar Business Solutions Ltd,No
Http://opendatacommunities.org/id/metropolitan-district-council/leeds,Leeds City Council,28/02/2018,Children and Families,Learning Skills & Universal,Transport,Fuel (Non LCC Supplies),321,07-Feb-2018,1802-00698,0.00,1578.65,R,Allstar Business Solutions Ltd,No
Http://opendatacommunities.org/id/metropolitan-district-council/leeds,Leeds City Council,28/02/2018,Communities and Environment,Parks and Countryside,Transport,Fuel (Non LCC Supplies),321,07-Feb-2018,1802-00699,0.00,115.66,R,Allstar Business Solutions Ltd,No
Http://opendatacommunities.org/id/metropolitan-district-council/leeds,Leeds City Council,28/02/2018,City Development,Highways,Transport,Fuel (Non LCC Supplies),321,07-Feb-2018,1802-00700,0.00,343.03,R,Allstar Business Solutions Ltd,No
Http://opendatacommunities.org/id/metropolitan-district-council/leeds,Leeds City Council,28/02/2018,Resources and Housing,Leeds Building Services,Transport,Fuel (Non LCC Supplies),321,12-Feb-2018,1802-00701,0.00,63.54,R,Allstar Business Solutions Ltd,No
Http://opendatacommunities.org/id/metropolitan-district-council/leeds,Leeds City Council,28/02/2018,Resources and Housing,SP Contracts & SECC,Third Party Payments,Supporting Ppl - Block Gross Chargeable,514,13-Feb-2018,1802-00702,0.00,30.10,R,Alpha (Rsl) Limited,No
Http://opendatacommunities.org/id/metropolitan-district-council/leeds,Leeds City Council,28/02/2018,City Development,Recreation,Supplies and Services,Other Hired And Contracted Services,265,22-Feb-2018,1802-00703,0.00,176.40,R,Alpha Awards Ltd,No
Http://opendatacommunities.org/id/metropolitan-district-council/leeds,Leeds City Council,28/02/2018,Resources and Housing,Strategic Housing Partnership & Support,Supplies and Services,Other Hired And Contracted Services,265,16-Feb-2018,1802-00704,0.00,400.00,R,Alpha Property Rentals Ltd,No
Http://opendatacommunities.org/id/metropolitan-district-council/leeds,Leeds City Council,28/02/2018,Children and Families,Safeguarding Targeted & Specialist,Support Services,Legal Disbursements,411,01-Feb-2018,1802-00705,0.00,226.00,R,Alphabiolabs,No
Http://opendatacommunities.org/id/metropolitan-district-council/leeds,Leeds City Council,28/02/2018,Children and Families,Safeguarding Targeted & Specialist,Support Services,Legal Disbursements,411,02-Feb-2018,1802-00706,0.00,507.50,R,Alphabiolabs,No
Http://opendatacommunities.org/id/metropolitan-district-council/leeds,Leeds City Council,28/02/2018,Children and Families,Safeguarding Targeted & Specialist,Support Services,Legal Disbursements,411,02-Feb-2018,1802-00707,0.00,443.34,R,Alphabiolabs,No
Http://opendatacommunities.org/id/metropolitan-district-council/leeds,Leeds City Council,28/02/2018,Children and Families,Safeguarding Targeted & Specialist,Support Services,Legal Disbursements,411,23-Feb-2018,1802-00708,0.00,504.00,R,Alphabiolabs,No
Http://opendatacommunities.org/id/metropolitan-district-council/leeds,Leeds City Council,28/02/2018,Communities and Environment,Environmental Health,Supplies and Services,Other Hired And Contracted Services,265,28-Feb-2018,1802-00709,0.00,75.00,R,Als Environmental Limited,No
Http://opendatacommunities.org/id/metropolitan-district-council/leeds,Leeds City Council,28/02/2018,Communities and Environment,Environmental Health,Supplies and Services,Other Hired And Contracted Services,265,28-Feb-2018,1802-00710,0.00,124.73,R,Als Environmental Limited,No
Http://opendatacommunities.org/id/metropolitan-district-council/leeds,Leeds City Council,28/02/2018,Communities and Environment,Environmental Health,Supplies and Services,Other Hired And Contracted Services,265,28-Feb-2018,1802-00711,0.00,100.96,R,Als Environmental Limited,No
Http://opendatacommunities.org/id/metropolitan-district-council/leeds,Leeds City Council,28/02/2018,Communities and Environment,Environmental Health,Supplies and Services,Other Hired And Contracted Services,265,28-Feb-2018,1802-00712,0.00,75.00,R,Als Environmental Limited,No
Http://opendatacommunities.org/id/metropolitan-district-council/leeds,Leeds City Council,28/02/2018,Communities and Environment,Environmental Health,Supplies and Services,Other Hired And Contracted Services,265,28-Feb-2018,1802-00713,0.00,84.23,R,Als Environmental Limited,No
Http://opendatacommunities.org/id/metropolitan-district-council/leeds,Leeds City Council,28/02/2018,Communities and Environment,Environmental Health,Supplies and Services,Other Hired And Contracted Services,265,28-Feb-2018,1802-00714,0.00,75.00,R,Als Environmental Limited,No
Http://opendatacommunities.org/id/metropolitan-district-council/leeds,Leeds City Council,28/02/2018,Communities and Environment,Environmental Health,Supplies and Services,Other Hired And Contracted Services,265,28-Feb-2018,1802-00715,0.00,75.00,R,Als Environmental Limited,No
Http://opendatacommunities.org/id/metropolitan-district-council/leeds,Leeds City Council,28/02/2018,Communities and Environment,Environmental Health,Supplies and Services,Other Hired And Contracted Services,265,28-Feb-2018,1802-00716,0.00,60.00,R,Als Environmental Limited,No
Http://opendatacommunities.org/id/metropolitan-district-council/leeds,Leeds City Council,28/02/2018,Communities and Environment,Environmental Health,Supplies and Services,Other Hired And Contracted Services,265,28-Feb-2018,1802-00717,0.00,75.00,R,Als Environmental Limited,No
Http://opendatacommunities.org/id/metropolitan-district-council/leeds,Leeds City Council,28/02/2018,Communities and Environment,Environmental Health,Supplies and Services,Other Hired And Contracted Services,265,28-Feb-2018,1802-00718,0.00,100.96,R,Als Environmental Limited,No
Http://opendatacommunities.org/id/metropolitan-district-council/leeds,Leeds City Council,28/02/2018,Communities and Environment,Environmental Health,Supplies and Services,Other Hired And Contracted Services,265,28-Feb-2018,1802-00719,0.00,75.00,R,Als Environmental Limited,No
Http://opendatacommunities.org/id/metropolitan-district-council/leeds,Leeds City Council,28/02/2018,Communities and Environment,Environmental Health,Supplies and Services,Other Hired And Contracted Services,265,28-Feb-2018,1802-00720,0.00,75.00,R,Als Environmental Limited,No
Http://opendatacommunities.org/id/metropolitan-district-council/leeds,Leeds City Council,28/02/2018,Communities and Environment,Environmental Health,Supplies and Services,Other Hired And Contracted Services,265,28-Feb-2018,1802-00721,0.00,75.00,R,Als Environmental Limited,No
Http://opendatacommunities.org/id/metropolitan-district-council/leeds,Leeds City Council,28/02/2018,Communities and Environment,Environmental Health,Supplies and Services,Other Hired And Contracted Services,265,28-Feb-2018,1802-00722,0.00,75.00,R,Als Environmental Limited,No
Http://opendatacommunities.org/id/metropolitan-district-council/leeds,Leeds City Council,28/02/2018,Communities and Environment,Environmental Health,Supplies and Services,Other Hired And Contracted Services,265,28-Feb-2018,1802-00723,0.00,75.00,R,Als Environmental Limited,No
Http://opendatacommunities.org/id/metropolitan-district-council/leeds,Leeds City Council,28/02/2018,Communities and Environment,Environmental Health,Supplies and Services,Other Hired And Contracted Services,265,28-Feb-2018,1802-00724,0.00,84.23,R,Als Environmental Limited,No
Http://opendatacommunities.org/id/metropolitan-district-council/leeds,Leeds City Council,28/02/2018,Communities and Environment,Environmental Health,Supplies and Services,Other Hired And Contracted Services,265,28-Feb-2018,1802-00725,0.00,76.73,R,Als Environmental Limited,No
Http://opendatacommunities.org/id/metropolitan-district-council/leeds,Leeds City Council,28/02/2018,Communities and Environment,Environmental Health,Supplies and Services,Other Hired And Contracted Services,265,28-Feb-2018,1802-00726,0.00,124.73,R,Als Environmental Limited,No
Http://opendatacommunities.org/id/metropolitan-district-council/leeds,Leeds City Council,28/02/2018,Communities and Environment,Environmental Health,Supplies and Services,Other Hired And Contracted Services,265,27-Feb-2018,1802-00727,0.00,-75.00,R,Als Life Sciences Limited,No
Http://opendatacommunities.org/id/metropolitan-district-council/leeds,Leeds City Council,28/02/2018,Communities and Environment,Waste Management,Supplies and Services,Other Hired And Contracted Services,265,27-Feb-2018,1802-00728,0.00,103.00,R,Als Life Sciences Limited,No
Http://opendatacommunities.org/id/metropolitan-district-council/leeds,Leeds City Council,28/02/2018,Resources and Housing,Leeds Building Services,Supplies and Services,Operational Materials,205,01-Feb-2018,1802-00729,0.00,40.00,R,Alternative Windows (Leeds) Ltd,No
Http://opendatacommunities.org/id/metropolitan-district-council/leeds,Leeds City Council,28/02/2018,Resources and Housing,Technology  ,Supplies and Services,Computer Software & Equipment,214,25-Jan-2018,1802-00730,0.00,615.00,R,Altia Solutions Ltd,Yes
Http://opendatacommunities.org/id/metropolitan-district-council/leeds,Leeds City Council,28/02/2018,City Development,Planning & Sustainable Development,Support Services,Professional Legal Services Charges,410,27-Feb-2018,1802-00731,0.00,18339.08,R,Alun Alesbury,No
Http://opendatacommunities.org/id/metropolitan-district-council/leeds,Leeds City Council,28/02/2018,Children and Families,Safeguarding Targeted & Specialist,Premises,Grounds Maintenance Work,111,21-Feb-2018,1802-00732,0.00,3988.00,R,Alwoodley Developments Ltd,No
Http://opendatacommunities.org/id/metropolitan-district-council/leeds,Leeds City Council,28/02/2018,Communities and Environment,Customer Access,Supplies and Services,Other Hired And Contracted Services,265,05-Feb-2018,1802-00733,0.00,38.75,R,Amad Mezori,No
Http://opendatacommunities.org/id/metropolitan-district-council/leeds,Leeds City Council,28/02/2018,Children and Families,Safeguarding Targeted & Specialist,Third Party Payments,Services Rendered By Other Organisations,511,19-Feb-2018,1802-00734,0.00,95.46,R,REDACTED PERSONAL DATA,No
Http://opendatacommunities.org/id/metropolitan-district-council/leeds,Leeds City Council,28/02/2018,Strategic Landlord,Housing Management,Transport,Miscellaneous Transport Related Costs,324,01-Feb-2018,1802-00735,0.00,17.55,R,REDACTED PERSONAL DATA,No
Http://opendatacommunities.org/id/metropolitan-district-council/leeds,Leeds City Council,28/02/2018,City Development,Libraries  Arts & Heritage,Supplies and Services,Other Hired And Contracted Services,265,01-Feb-2018,1802-00736,0.00,351.28,R,Amanda Wheat,No
Http://opendatacommunities.org/id/metropolitan-district-council/leeds,Leeds City Council,28/02/2018,City Development,Libraries  Arts & Heritage,Supplies and Services,Other Hired And Contracted Services,265,02-Feb-2018,1802-00737,0.00,197.29,R,Amanda Wheat,No
Http://opendatacommunities.org/id/metropolitan-district-council/leeds,Leeds City Council,28/02/2018,City Development,Libraries  Arts & Heritage,Supplies and Services,Other Hired And Contracted Services,265,02-Feb-2018,1802-00738,0.00,262.95,R,Amanda Wheat,No
Http://opendatacommunities.org/id/metropolitan-district-council/leeds,Leeds City Council,28/02/2018,City Development,Libraries  Arts & Heritage,Supplies and Services,Other Hired And Contracted Services,265,02-Feb-2018,1802-00739,0.00,527.48,R,Amanda Wheat,No
Http://opendatacommunities.org/id/metropolitan-district-council/leeds,Leeds City Council,28/02/2018,Children and Families,Safeguarding Targeted & Specialist  ,Premises,Maintenance Of Buildings,101,26-Jan-2018,1802-00740,0.00,741.70,R,Amari Leeds,Yes
Http://opendatacommunities.org/id/metropolitan-district-council/leeds,Leeds City Council,28/02/2018,Resources and Housing,Leeds Building Services,Supplies and Services,Operational Materials,205,01-Feb-2018,1802-00741,0.00,69.54,R,Amari Plastics Plc,No
Http://opendatacommunities.org/id/metropolitan-district-council/leeds,Leeds City Council,28/02/2018,Resources and Housing,Shared Services,Supplies and Services,Operational Materials,205,09-Feb-2018,1802-00742,0.00,480.00,R,Amari Plastics Plc,No
Http://opendatacommunities.org/id/metropolitan-district-council/leeds,Leeds City Council,28/02/2018,Resources and Housing,Leeds Building Services,Supplies and Services,Operational Materials,205,14-Feb-2018,1802-00743,0.00,98.40,R,Amari Plastics Plc,No
Http://opendatacommunities.org/id/metropolitan-district-council/leeds,Leeds City Council,28/02/2018,Children and Families,Safeguarding Targeted & Specialist,Third Party Payments,Services Rendered By Other Organisations,511,19-Feb-2018,1802-00744,0.00,1891.99,R,Amazing Grace Early Years Childcare,No
Http://opendatacommunities.org/id/metropolitan-district-council/leeds,Leeds City Council,28/02/2018,City Development,Recreation  ,Supplies and Services,Operational Furniture And Equipment,203,25-Jan-2018,1802-00745,0.00,9.99,R,Amazon Digital Svcs,Yes
Http://opendatacommunities.org/id/metropolitan-district-council/leeds,Leeds City Council,28/02/2018,Children and Families,Safeguarding Targeted & Specialist  ,Supplies and Services,Operational Furniture And Equipment,203,28-Dec-2017,1802-00746,0.00,30.59,R,Amazon Eu Amazon.Co.Uk,Yes
Http://opendatacommunities.org/id/metropolitan-district-council/leeds,Leeds City Council,28/02/2018,Resources and Housing,Commercial Services  ,Supplies and Services,Operational Furniture And Equipment,203,03-Jan-2018,1802-00747,0.00,141.60,R,Amazon Eu Amazon.Co.Uk,Yes
Http://opendatacommunities.org/id/metropolitan-district-council/leeds,Leeds City Council,28/02/2018,Communities and Environment,Benefits  Wlefare And Poverty  ,Supplies and Services,Office Furniture & Equipment,201,03-Jan-2018,1802-00748,0.00,23.33,R,Amazon Eu Amazon.Co.Uk,Yes
Http://opendatacommunities.org/id/metropolitan-district-council/leeds,Leeds City Council,28/02/2018,City Development,Employment & Skills  ,Supplies and Services,Operational Materials,205,04-Jan-2018,1802-00749,0.00,11.94,R,Amazon Eu Amazon.Co.Uk,Yes
Http://opendatacommunities.org/id/metropolitan-district-council/leeds,Leeds City Council,28/02/2018,Resources and Housing,Commercial Services  ,Supplies and Services,Office Consumables,210,04-Jan-2018,1802-00750,0.00,35.88,R,Amazon Eu Amazon.Co.Uk,Yes
Http://opendatacommunities.org/id/metropolitan-district-council/leeds,Leeds City Council,28/02/2018,Children and Families,Safeguarding Targeted & Specialist  ,Supplies and Services,Office Consumables,210,05-Jan-2018,1802-00751,0.00,27.78,R,Amazon Eu Amazon.Co.Uk,Yes
Http://opendatacommunities.org/id/metropolitan-district-council/leeds,Leeds City Council,28/02/2018,Children and Families,Safeguarding Targeted & Specialist  ,Supplies and Services,Office Consumables,210,05-Jan-2018,1802-00752,0.00,79.92,R,Amazon Eu Amazon.Co.Uk,Yes
Http://opendatacommunities.org/id/metropolitan-district-council/leeds,Leeds City Council,28/02/2018,Children and Families,Safeguarding Targeted & Specialist  ,Supplies and Services,Office Consumables,210,06-Jan-2018,1802-00753,0.00,21.69,R,Amazon Eu Amazon.Co.Uk,Yes
Http://opendatacommunities.org/id/metropolitan-district-council/leeds,Leeds City Council,28/02/2018,Children and Families,Safeguarding Targeted & Specialist  ,Supplies and Services,Office Consumables,210,06-Jan-2018,1802-00754,0.00,14.35,R,Amazon Eu Amazon.Co.Uk,Yes
Http://opendatacommunities.org/id/metropolitan-district-council/leeds,Leeds City Council,28/02/2018,Children and Families,Safeguarding Targeted & Specialist  ,Supplies and Services,Office Consumables,210,08-Jan-2018,1802-00755,0.00,0.64,R,Amazon Eu Amazon.Co.Uk,Yes
Http://opendatacommunities.org/id/metropolitan-district-council/leeds,Leeds City Council,28/02/2018,Children and Families,Safeguarding Targeted & Specialist  ,Supplies and Services,Office Consumables,210,08-Jan-2018,1802-00756,0.00,11.16,R,Amazon Eu Amazon.Co.Uk,Yes
Http://opendatacommunities.org/id/metropolitan-district-council/leeds,Leeds City Council,28/02/2018,Children and Families,Safeguarding Targeted & Specialist  ,Supplies and Services,Office Consumables,210,09-Jan-2018,1802-00757,0.00,19.99,R,Amazon Eu Amazon.Co.Uk,Yes
Http://opendatacommunities.org/id/metropolitan-district-council/leeds,Leeds City Council,28/02/2018,Children and Families,Learning Skills & Universal  ,Supplies and Services,Office Consumables,210,09-Jan-2018,1802-00758,0.00,17.70,R,Amazon Eu Amazon.Co.Uk,Yes
Http://opendatacommunities.org/id/metropolitan-district-council/leeds,Leeds City Council,28/02/2018,Children and Families,Safeguarding Targeted & Specialist  ,Supplies and Services,Operational Materials,205,10-Jan-2018,1802-00759,0.00,20.48,R,Amazon Eu Amazon.Co.Uk,Yes
